Workbook

Sheet Calculation
I3: With Holiday Adjustment? | J3: YES | K3: standard: YES
D5: IMSM Margin Calculator Example V 3.0.6
D6: last update: 2023-03-08
A10: Date | B10: Exposure | C10: T0Exposure | D10: ="Exposure > " & minIMSM & " EUR" -> Exposure > 0 EUR | E10: ="1-day-Exposure > " & minIMSM & " EUR" -> 1-day-Exposure > 0 EUR | F10: Holiday Adjustment | G10: ="T0Exposure > " & minIMSM & " EUR" -> T0Exposure > 0 EUR | H10: Mean | I10: Standard Deviation (SD) | J10: Number of datapoints | K10: SD with Securityfactor (SDS) | L10: Mean + alpha * SDS | M10: beta * Max (T-30 to T) | N10: IMSM Requirement
A11: =IF($A$12="","",OFFSET(Calendar!$A$1,VLOOKUP(Calculation!$A$12,Calendar!$A$2:$C$2598,2,FALSE)+1,0)) -> 2022-05-20 | H11: =IF($A11="","",IFERROR((AVERAGE(G12,INDIRECT("D" & ROW(A13) & ":D" & ROW(A13) + window_size-2))),0)) -> 883471.3692 | I11: 563305.9667 | J11: 214 | K11: 603452.4961 | L11: =IF($A11="","",H11+alpha*K11) -> 2271412.11 | M11: =IF($A11="","",beta*MAX(G12,INDIRECT("B" & ROW(A13) & ":B" & ROW(A13) + window_size_max-2))) -> 4444297.6 | N11: =IF(VLOOKUP(A11,Calendar!A:E,5,FALSE)=0,"",IF(ISERROR(O11),minIMSM+add_margin,CEILING(MAX(OFFSET(M11,O11,0),OFFSET(L11,O11,0),minIMSM)+add_margin,roundto))) -> 4500000 | O11: =IF(INDIRECT("Calendar!E"&MATCH($A11,Calendar!A:A,0)-1),0,IF(INDIRECT("Calendar!E"&MATCH($A11,Calendar!A:A,0)-2),1,2)) -> 0
A12: 2022-05-19 | B12: 323440 | C12: 240947 | D12: =IF(B12>minIMSM,B12,"") -> 323440 | E12: =IF(OR(A12=$A$11,A12=""),"",IF(AND(A11-A12=1,A12-A13=1),D12,"")) -> 323440 | F12: =IF(ISERROR(MATCH($A12,Calendar!$A$2:$A$2598,0)),"", IF(VLOOKUP(A12,Calendar!$A$2:$D$2598,3)=0,"", IF(ISERROR(AVERAGE(OFFSET(E13,0,0,window_size,1))), IF(COUNTBLANK(OFFSET(E13,0,0,window_size_max-1))=window_size_max-1,"",MAX(OFFSET(D13,0,0,window_size_max-1))), VLOOKUP(A12,Calendar!$A$2:$D$2598,3)*AVERAGE(OFFSET(E13,0,0,window_size,1))+MAX(OFFSET(D13,0,0,window_size_max-1))))) ->  | G12: =IF(AND(F12<>"",$J$3="YES",F12>minIMSM),F12,IF(C12>minIMSM,C12,"")) -> 240947 | H12: 882945.8084 | I12: 564454.8823 | J12: 214 | K12: 604683.2944 | L12: =IF($A12="","",H12+alpha*K12) -> 2273717.386 | M12: =IF($A12="","",beta*MAX(G13,INDIRECT("B" & ROW(A14) & ":B" & ROW(A14) + window_size_max-2))) -> 4444297.6 | N12: =IF(VLOOKUP(A12,Calendar!A:E,5,FALSE)=0,"",IF(ISERROR(O12),minIMSM+add_margin,CEILING(MAX(OFFSET(M12,O12,0),OFFSET(L12,O12,0),minIMSM)+add_margin,roundto))) -> 4500000 | O12: =IF(INDIRECT("Calendar!E"&MATCH($A12,Calendar!A:A,0)-1),0,IF(INDIRECT("Calendar!E"&MATCH($A12,Calendar!A:A,0)-2),1,2)) -> 0
A13: 2022-05-18 | B13: 566967 | C13: 326020 | D13: 566967 | E13: 566967 | F13: =IF(ISERROR(MATCH($A13,Calendar!$A$2:$A$2598,0)),"", IF(VLOOKUP(A13,Calendar!$A$2:$D$2598,3)=0,"", IF(ISERROR(AVERAGE(OFFSET(E14,0,0,window_size,1))), IF(COUNTBLANK(OFFSET(E14,0,0,window_size_max-1))=window_size_max-1,"",MAX(OFFSET(D14,0,0,window_size_max-1))), VLOOKUP(A13,Calendar!$A$2:$D$2598,3)*AVERAGE(OFFSET(E14,0,0,window_size,1))+MAX(OFFSET(D14,0,0,window_size_max-1))))) ->  | G13: 326020 | H13: 886098.1308 | I13: 567824.8617 | J13: 214 | K13: 608293.4505 | L13: 2285173.067 | M13: 4444297.6 | N13: =IF(VLOOKUP(A13,Calendar!A:E,5,FALSE)=0,"",IF(ISERROR(O13),minIMSM+add_margin,CEILING(MAX(OFFSET(M13,O13,0),OFFSET(L13,O13,0),minIMSM)+add_margin,roundto))) -> 4500000 | O13: =IF(INDIRECT("Calendar!E"&MATCH($A13,Calendar!A:A,0)-1),0,IF(INDIRECT("Calendar!E"&MATCH($A13,Calendar!A:A,0)-2),1,2)) -> 0
A14: 2022-05-17 | B14: 340789 | C14: 56745 | D14: 340789 | E14: 340789 | F14: =IF(ISERROR(MATCH($A14,Calendar!$A$2:$A$2598,0)),"", IF(VLOOKUP(A14,Calendar!$A$2:$D$2598,3)=0,"", IF(ISERROR(AVERAGE(OFFSET(E15,0,0,window_size,1))), IF(COUNTBLANK(OFFSET(E15,0,0,window_size_max-1))=window_size_max-1,"",MAX(OFFSET(D15,0,0,window_size_max-1))), VLOOKUP(A14,Calendar!$A$2:$D$2598,3)*AVERAGE(OFFSET(E15,0,0,window_size,1))+MAX(OFFSET(D15,0,0,window_size_max-1))))) ->  | G14: 56745 | H14: 887080.9814 | I14: 567655.7774 | J14: 215 | K14: 607965.1591 | L14: 2285400.847 | M14: 4444297.6 | N14: =IF(VLOOKUP(A14,Calendar!A:E,5,FALSE)=0,"",IF(ISERROR(O14),minIMSM+add_margin,CEILING(MAX(OFFSET(M14,O14,0),OFFSET(L14,O14,0),minIMSM)+add_margin,roundto))) -> 4500000 | O14: =IF(INDIRECT("Calendar!E"&MATCH($A14,Calendar!A:A,0)-1),0,IF(INDIRECT("Calendar!E"&MATCH($A14,Calendar!A:A,0)-2),1,2)) -> 0
A15: 2022-05-16 | B15: -3109 | C15: 40545 | F15: =IF(ISERROR(MATCH($A15,Calendar!$A$2:$A$2598,0)),"", IF(VLOOKUP(A15,Calendar!$A$2:$D$2598,3)=0,"", IF(ISERROR(AVERAGE(OFFSET(E16,0,0,window_size,1))), IF(COUNTBLANK(OFFSET(E16,0,0,window_size_max-1))=window_size_max-1,"",MAX(OFFSET(D16,0,0,window_size_max-1))), VLOOKUP(A15,Calendar!$A$2:$D$2598,3)*AVERAGE(OFFSET(E16,0,0,window_size,1))+MAX(OFFSET(D16,0,0,window_size_max-1))))) ->  | G15: 40545 | H15: 888625.0744 | I15: 563442.8035 | J15: 215 | K15: 603453.0209 | L15: 2276567.022 | M15: 4444297.6 | N15: =IF(VLOOKUP(A15,Calendar!A:E,5,FALSE)=0,"",IF(ISERROR(O15),minIMSM+add_margin,CEILING(MAX(OFFSET(M15,O15,0),OFFSET(L15,O15,0),minIMSM)+add_margin,roundto))) -> 4500000 | O15: =IF(INDIRECT("Calendar!E"&MATCH($A15,Calendar!A:A,0)-1),0,IF(INDIRECT("Calendar!E"&MATCH($A15,Calendar!A:A,0)-2),1,2)) -> 0
A16: 2022-05-13 | B16: 1015000 | C16: 1029335 | D16: 1015000 | F16: =IF(ISERROR(MATCH($A16,Calendar!$A$2:$A$2598,0)),"", IF(VLOOKUP(A16,Calendar!$A$2:$D$2598,3)=0,"", IF(ISERROR(AVERAGE(OFFSET(E17,0,0,window_size,1))), IF(COUNTBLANK(OFFSET(E17,0,0,window_size_max-1))=window_size_max-1,"",MAX(OFFSET(D17,0,0,window_size_max-1))), VLOOKUP(A16,Calendar!$A$2:$D$2598,3)*AVERAGE(OFFSET(E17,0,0,window_size,1))+MAX(OFFSET(D17,0,0,window_size_max-1))))) ->  | G16: 1029335 | H16: 881563.493 | I16: 570761.7244 | J16: 215 | K16: 611291.6603 | L16: 2287534.312 | M16: 4444297.6 | N16: =IF(VLOOKUP(A16,Calendar!A:E,5,FALSE)=0,"",IF(ISERROR(O16),minIMSM+add_margin,CEILING(MAX(OFFSET(M16,O16,0),OFFSET(L16,O16,0),minIMSM)+add_margin,roundto))) -> 4500000 | O16: =IF(INDIRECT("Calendar!E"&MATCH($A16,Calendar!A:A,0)-1),0,IF(INDIRECT("Calendar!E"&MATCH($A16,Calendar!A:A,0)-2),1,2)) -> 0
A17: 2022-05-12 | B17: 1121777 | C17: 252812 | D17: 1121777 | E17: 1121777 | F17: =IF(ISERROR(MATCH($A17,Calendar!$A$2:$A$2598,0)),"", IF(VLOOKUP(A17,Calendar!$A$2:$D$2598,3)=0,"", IF(ISERROR(AVERAGE(OFFSET(E18,0,0,window_size,1))), IF(COUNTBLANK(OFFSET(E18,0,0,window_size_max-1))=window_size_max-1,"",MAX(OFFSET(D18,0,0,window_size_max-1))), VLOOKUP(A17,Calendar!$A$2:$D$2598,3)*AVERAGE(OFFSET(E18,0,0,window_size,1))+MAX(OFFSET(D18,0,0,window_size_max-1))))) ->  | G17: 252812 | H17: 881088.9721 | I17: 567297.9148 | J17: 215 | K17: 607581.8846 | L17: 2278527.307 | M17: 4444297.6 | N17: =IF(VLOOKUP(A17,Calendar!A:E,5,FALSE)=0,"",IF(ISERROR(O17),minIMSM+add_margin,CEILING(MAX(OFFSET(M17,O17,0),OFFSET(L17,O17,0),minIMSM)+add_margin,roundto))) -> 4500000 | O17: =IF(INDIRECT("Calendar!E"&MATCH($A17,Calendar!A:A,0)-1),0,IF(INDIRECT("Calendar!E"&MATCH($A17,Calendar!A:A,0)-2),1,2)) -> 0
A18: 2022-05-11 | B18: 2167612 | C18: 2048958 | D18: 2167612 | E18: 2167612 | F18: =IF(ISERROR(MATCH($A18,Calendar!$A$2:$A$2598,0)),"", IF(VLOOKUP(A18,Calendar!$A$2:$D$2598,3)=0,"", IF(ISERROR(AVERAGE(OFFSET(E19,0,0,window_size,1))), IF(COUNTBLANK(OFFSET(E19,0,0,window_size_max-1))=window_size_max-1,"",MAX(OFFSET(D19,0,0,window_size_max-1))), VLOOKUP(A18,Calendar!$A$2:$D$2598,3)*AVERAGE(OFFSET(E19,0,0,window_size,1))+MAX(OFFSET(D19,0,0,window_size_max-1))))) ->  | G18: 2048958 | H18: 865846.0744 | I18: 520192.5122 | J18: 215 | K18: 557131.5154 | L18: 2147248.56 | M18: 2520105.6 | N18: =IF(VLOOKUP(A18,Calendar!A:E,5,FALSE)=0,"",IF(ISERROR(O18),minIMSM+add_margin,CEILING(MAX(OFFSET(M18,O18,0),OFFSET(L18,O18,0),minIMSM)+add_margin,roundto))) -> 2580000 | O18: =IF(INDIRECT("Calendar!E"&MATCH($A18,Calendar!A:A,0)-1),0,IF(INDIRECT("Calendar!E"&MATCH($A18,Calendar!A:A,0)-2),1,2)) -> 0
A19: 2022-05-10 | B19: 2777686 | C19: 861622 | D19: 2777686 | E19: 2777686 | F19: =IF(ISERROR(MATCH($A19,Calendar!$A$2:$A$2598,0)),"", IF(VLOOKUP(A19,Calendar!$A$2:$D$2598,3)=0,"", IF(ISERROR(AVERAGE(OFFSET(E20,0,0,window_size,1))), IF(COUNTBLANK(OFFSET(E20,0,0,window_size_max-1))=window_size_max-1,"",MAX(OFFSET(D20,0,0,window_size_max-1))), VLOOKUP(A19,Calendar!$A$2:$D$2598,3)*AVERAGE(OFFSET(E20,0,0,window_size,1))+MAX(OFFSET(D20,0,0,window_size_max-1))))) ->  | G19: 861622 | H19: 861613.3628 | I19: 524586.0406 | J19: 215 | K19: 561837.0293 | L19: 2153838.53 | M19: 2783016 | N19: =IF(VLOOKUP(A19,Calendar!A:E,5,FALSE)=0,"",IF(ISERROR(O19),minIMSM+add_margin,CEILING(MAX(OFFSET(M19,O19,0),OFFSET(L19,O19,0),minIMSM)+add_margin,roundto))) -> 2840000 | O19: =IF(INDIRECT("Calendar!E"&MATCH($A19,Calendar!A:A,0)-1),0,IF(INDIRECT("Calendar!E"&MATCH($A19,Calendar!A:A,0)-2),1,2)) -> 0
A20: 2022-05-09 | B20: 1149197 | C20: 421528 | D20: 1149197 | F20: =IF(ISERROR(MATCH($A20,Calendar!$A$2:$A$2598,0)),"", IF(VLOOKUP(A20,Calendar!$A$2:$D$2598,3)=0,"", IF(ISERROR(AVERAGE(OFFSET(E21,0,0,window_size,1))), IF(COUNTBLANK(OFFSET(E21,0,0,window_size_max-1))=window_size_max-1,"",MAX(OFFSET(D21,0,0,window_size_max-1))), VLOOKUP(A20,Calendar!$A$2:$D$2598,3)*AVERAGE(OFFSET(E21,0,0,window_size,1))+MAX(OFFSET(D21,0,0,window_size_max-1))))) ->  | G20: 421528 | H20: 861285.7256 | I20: 523582.2045 | J20: 215 | K20: 560761.9105 | L20: 2151038.12 | M20: 2783016 | N20: =IF(VLOOKUP(A20,Calendar!A:E,5,FALSE)=0,"",IF(ISERROR(O20),minIMSM+add_margin,CEILING(MAX(OFFSET(M20,O20,0),OFFSET(L20,O20,0),minIMSM)+add_margin,roundto))) -> 2840000 | O20: =IF(INDIRECT("Calendar!E"&MATCH($A20,Calendar!A:A,0)-1),0,IF(INDIRECT("Calendar!E"&MATCH($A20,Calendar!A:A,0)-2),1,2)) -> 0
A21: 2022-05-06 | B21: 1257405 | C21: 935896 | D21: 1257405 | F21: =IF(ISERROR(MATCH($A21,Calendar!$A$2:$A$2598,0)),"", IF(VLOOKUP(A21,Calendar!$A$2:$D$2598,3)=0,"", IF(ISERROR(AVERAGE(OFFSET(E22,0,0,window_size,1))), IF(COUNTBLANK(OFFSET(E22,0,0,window_size_max-1))=window_size_max-1,"",MAX(OFFSET(D22,0,0,window_size_max-1))), VLOOKUP(A21,Calendar!$A$2:$D$2598,3)*AVERAGE(OFFSET(E22,0,0,window_size,1))+MAX(OFFSET(D22,0,0,window_size_max-1))))) ->  | G21: 935896 | H21: 856982.7674 | I21: 525662.725 | J21: 215 | K21: 562990.1693 | L21: 2151860.157 | M21: 2783016 | N21: =IF(VLOOKUP(A21,Calendar!A:E,5,FALSE)=0,"",IF(ISERROR(O21),minIMSM+add_margin,CEILING(MAX(OFFSET(M21,O21,0),OFFSET(L21,O21,0),minIMSM)+add_margin,roundto))) -> 2840000 | O21: =IF(INDIRECT("Calendar!E"&MATCH($A21,Calendar!A:A,0)-1),0,IF(INDIRECT("Calendar!E"&MATCH($A21,Calendar!A:A,0)-2),1,2)) -> 0
A22: 2022-05-05 | B22: 1248066 | C22: 628424 | D22: 1248066 | E22: 1248066 | F22: =IF(ISERROR(MATCH($A22,Calendar!$A$2:$A$2598,0)),"", IF(VLOOKUP(A22,Calendar!$A$2:$D$2598,3)=0,"", IF(ISERROR(AVERAGE(OFFSET(E23,0,0,window_size,1))), IF(COUNTBLANK(OFFSET(E23,0,0,window_size_max-1))=window_size_max-1,"",MAX(OFFSET(D23,0,0,window_size_max-1))), VLOOKUP(A22,Calendar!$A$2:$D$2598,3)*AVERAGE(OFFSET(E23,0,0,window_size,1))+MAX(OFFSET(D23,0,0,window_size_max-1))))) ->  | G22: 628424 | H22: 852287.0279 | I22: 529210.4343 | J22: 215 | K22: 566789.8023 | L22: 2155903.573 | M22: 2783016 | N22: =IF(VLOOKUP(A22,Calendar!A:E,5,FALSE)=0,"",IF(ISERROR(O22),minIMSM+add_margin,CEILING(MAX(OFFSET(M22,O22,0),OFFSET(L22,O22,0),minIMSM)+add_margin,roundto))) -> 2840000 | O22: =IF(INDIRECT("Calendar!E"&MATCH($A22,Calendar!A:A,0)-1),0,IF(INDIRECT("Calendar!E"&MATCH($A22,Calendar!A:A,0)-2),1,2)) -> 0
A23: 2022-05-04 | B23: 1102410 | C23: 548039 | D23: =IF(B23>minIMSM,B23,"") -> 1102410 | E23: 1102410 | F23: =IF(ISERROR(MATCH($A23,Calendar!$A$2:$A$2598,0)),"", IF(VLOOKUP(A23,Calendar!$A$2:$D$2598,3)=0,"", IF(ISERROR(AVERAGE(OFFSET(E24,0,0,window_size,1))), IF(COUNTBLANK(OFFSET(E24,0,0,window_size_max-1))=window_size_max-1,"",MAX(OFFSET(D24,0,0,window_size_max-1))), VLOOKUP(A23,Calendar!$A$2:$D$2598,3)*AVERAGE(OFFSET(E24,0,0,window_size,1))+MAX(OFFSET(D24,0,0,window_size_max-1))))) ->  | G23: 548039 | H23: 848978.5628 | I23: 537321.8409 | J23: 215 | K23: 575477.202 | L23: 2172576.127 | M23: 2783016 | N23: =IF(VLOOKUP(A23,Calendar!A:E,5,FALSE)=0,"",IF(ISERROR(O23),minIMSM+add_margin,CEILING(MAX(OFFSET(M23,O23,0),OFFSET(L23,O23,0),minIMSM)+add_margin,roundto))) -> 2840000 | O23: =IF(INDIRECT("Calendar!E"&MATCH($A23,Calendar!A:A,0)-1),0,IF(INDIRECT("Calendar!E"&MATCH($A23,Calendar!A:A,0)-2),1,2)) -> 0
A24: 2022-05-03 | B24: 453305 | C24: 19400 | D24: 453305 | E24: 453305 | F24: =IF(ISERROR(MATCH($A24,Calendar!$A$2:$A$2598,0)),"", IF(VLOOKUP(A24,Calendar!$A$2:$D$2598,3)=0,"", IF(ISERROR(AVERAGE(OFFSET(E25,0,0,window_size,1))), IF(COUNTBLANK(OFFSET(E25,0,0,window_size_max-1))=window_size_max-1,"",MAX(OFFSET(D25,0,0,window_size_max-1))), VLOOKUP(A24,Calendar!$A$2:$D$2598,3)*AVERAGE(OFFSET(E25,0,0,window_size,1))+MAX(OFFSET(D25,0,0,window_size_max-1))))) ->  | G24: 19400 | H24: 851415.9349 | I24: 531557.5187 | J24: 215 | K24: 569303.5539 | L24: 2160814.109 | M24: 2783016 | N24: =IF(VLOOKUP(A24,Calendar!A:E,5,FALSE)=0,"",IF(ISERROR(O24),minIMSM+add_margin,CEILING(MAX(OFFSET(M24,O24,0),OFFSET(L24,O24,0),minIMSM)+add_margin,roundto))) -> 2840000 | O24: =IF(INDIRECT("Calendar!E"&MATCH($A24,Calendar!A:A,0)-1),0,IF(INDIRECT("Calendar!E"&MATCH($A24,Calendar!A:A,0)-2),1,2)) -> 0
A25: 2022-05-02 | B25: 293583 | C25: 388371 | D25: 293583 | F25: =IF(ISERROR(MATCH($A25,Calendar!$A$2:$A$2598,0)),"", IF(VLOOKUP(A25,Calendar!$A$2:$D$2598,3)=0,"", IF(ISERROR(AVERAGE(OFFSET(E26,0,0,window_size,1))), IF(COUNTBLANK(OFFSET(E26,0,0,window_size_max-1))=window_size_max-1,"",MAX(OFFSET(D26,0,0,window_size_max-1))), VLOOKUP(A25,Calendar!$A$2:$D$2598,3)*AVERAGE(OFFSET(E26,0,0,window_size,1))+MAX(OFFSET(D26,0,0,window_size_max-1))))) ->  | G25: 388371 | H25: 850887.4093 | I25: 533607.5257 | J25: 215 | K25: 571499.1324 | L25: 2165335.414 | M25: 2783016 | N25: =IF(VLOOKUP(A25,Calendar!A:E,5,FALSE)=0,"",IF(ISERROR(O25),minIMSM+add_margin,CEILING(MAX(OFFSET(M25,O25,0),OFFSET(L25,O25,0),minIMSM)+add_margin,roundto))) -> 2840000 | O25: =IF(INDIRECT("Calendar!E"&MATCH($A25,Calendar!A:A,0)-1),0,IF(INDIRECT("Calendar!E"&MATCH($A25,Calendar!A:A,0)-2),1,2)) -> 0
A26: 2022-04-29 | B26: 651970 | C26: 432616 | D26: 651970 | F26: =IF(ISERROR(MATCH($A26,Calendar!$A$2:$A$2598,0)),"", IF(VLOOKUP(A26,Calendar!$A$2:$D$2598,3)=0,"", IF(ISERROR(AVERAGE(OFFSET(E27,0,0,window_size,1))), IF(COUNTBLANK(OFFSET(E27,0,0,window_size_max-1))=window_size_max-1,"",MAX(OFFSET(D27,0,0,window_size_max-1))), VLOOKUP(A26,Calendar!$A$2:$D$2598,3)*AVERAGE(OFFSET(E27,0,0,window_size,1))+MAX(OFFSET(D27,0,0,window_size_max-1))))) ->  | G26: 432616 | H26: 850236.9349 | I26: 535345.088 | J26: 215 | K26: 573360.0794 | L26: 2168965.117 | M26: 2783016 | N26: =IF(VLOOKUP(A26,Calendar!A:E,5,FALSE)=0,"",IF(ISERROR(O26),minIMSM+add_margin,CEILING(MAX(OFFSET(M26,O26,0),OFFSET(L26,O26,0),minIMSM)+add_margin,roundto))) -> 2840000 | O26: =IF(INDIRECT("Calendar!E"&MATCH($A26,Calendar!A:A,0)-1),0,IF(INDIRECT("Calendar!E"&MATCH($A26,Calendar!A:A,0)-2),1,2)) -> 0
A27: 2022-04-28 | B27: 862497 | C27: 588877 | D27: 862497 | E27: 862497 | F27: =IF(ISERROR(MATCH($A27,Calendar!$A$2:$A$2598,0)),"", IF(VLOOKUP(A27,Calendar!$A$2:$D$2598,3)=0,"", IF(ISERROR(AVERAGE(OFFSET(E28,0,0,window_size,1))), IF(COUNTBLANK(OFFSET(E28,0,0,window_size_max-1))=window_size_max-1,"",MAX(OFFSET(D28,0,0,window_size_max-1))), VLOOKUP(A27,Calendar!$A$2:$D$2598,3)*AVERAGE(OFFSET(E28,0,0,window_size,1))+MAX(OFFSET(D28,0,0,window_size_max-1))))) ->  | G27: 588877 | H27: 845683.0186 | I27: 537015.6102 | J27: 215 | K27: 575149.2258 | L27: 2168526.238 | M27: 2783016 | N27: =IF(VLOOKUP(A27,Calendar!A:E,5,FALSE)=0,"",IF(ISERROR(O27),minIMSM+add_margin,CEILING(MAX(OFFSET(M27,O27,0),OFFSET(L27,O27,0),minIMSM)+add_margin,roundto))) -> 2840000 | O27: =IF(INDIRECT("Calendar!E"&MATCH($A27,Calendar!A:A,0)-1),0,IF(INDIRECT("Calendar!E"&MATCH($A27,Calendar!A:A,0)-2),1,2)) -> 0
A28: 2022-04-27 | B28: 1253310 | C28: 741357 | D28: 1253310 | E28: 1253310 | F28: =IF(ISERROR(MATCH($A28,Calendar!$A$2:$A$2598,0)),"", IF(VLOOKUP(A28,Calendar!$A$2:$D$2598,3)=0,"", IF(ISERROR(AVERAGE(OFFSET(E29,0,0,window_size,1))), IF(COUNTBLANK(OFFSET(E29,0,0,window_size_max-1))=window_size_max-1,"",MAX(OFFSET(D29,0,0,window_size_max-1))), VLOOKUP(A28,Calendar!$A$2:$D$2598,3)*AVERAGE(OFFSET(E29,0,0,window_size,1))+MAX(OFFSET(D29,0,0,window_size_max-1))))) ->  | G28: 741357 | H28: 843432.7256 | I28: 540121.508 | J28: 215 | K28: 578475.6742 | L28: 2173926.776 | M28: 2783016 | N28: =IF(VLOOKUP(A28,Calendar!A:E,5,FALSE)=0,"",IF(ISERROR(O28),minIMSM+add_margin,CEILING(MAX(OFFSET(M28,O28,0),OFFSET(L28,O28,0),minIMSM)+add_margin,roundto))) -> 2840000 | O28: =IF(INDIRECT("Calendar!E"&MATCH($A28,Calendar!A:A,0)-1),0,IF(INDIRECT("Calendar!E"&MATCH($A28,Calendar!A:A,0)-2),1,2)) -> 0
A29: 2022-04-26 | B29: 1123881 | C29: 533563 | D29: 1123881 | E29: 1123881 | F29: =IF(ISERROR(MATCH($A29,Calendar!$A$2:$A$2598,0)),"", IF(VLOOKUP(A29,Calendar!$A$2:$D$2598,3)=0,"", IF(ISERROR(AVERAGE(OFFSET(E30,0,0,window_size,1))), IF(COUNTBLANK(OFFSET(E30,0,0,window_size_max-1))=window_size_max-1,"",MAX(OFFSET(D30,0,0,window_size_max-1))), VLOOKUP(A29,Calendar!$A$2:$D$2598,3)*AVERAGE(OFFSET(E30,0,0,window_size,1))+MAX(OFFSET(D30,0,0,window_size_max-1))))) ->  | G29: 533563 | H29: 845044.5488 | I29: 542871.4911 | J29: 215 | K29: 581420.9343 | L29: 2182312.698 | M29: 2783016 | N29: =IF(VLOOKUP(A29,Calendar!A:E,5,FALSE)=0,"",IF(ISERROR(O29),minIMSM+add_margin,CEILING(MAX(OFFSET(M29,O29,0),OFFSET(L29,O29,0),minIMSM)+add_margin,roundto))) -> 2840000 | O29: =IF(INDIRECT("Calendar!E"&MATCH($A29,Calendar!A:A,0)-1),0,IF(INDIRECT("Calendar!E"&MATCH($A29,Calendar!A:A,0)-2),1,2)) -> 0
A30: 2022-04-25 | B30: 695014 | C30: 474965 | D30: 695014 | F30: =IF(ISERROR(MATCH($A30,Calendar!$A$2:$A$2598,0)),"", IF(VLOOKUP(A30,Calendar!$A$2:$D$2598,3)=0,"", IF(ISERROR(AVERAGE(OFFSET(E31,0,0,window_size,1))), IF(COUNTBLANK(OFFSET(E31,0,0,window_size_max-1))=window_size_max-1,"",MAX(OFFSET(D31,0,0,window_size_max-1))), VLOOKUP(A30,Calendar!$A$2:$D$2598,3)*AVERAGE(OFFSET(E31,0,0,window_size,1))+MAX(OFFSET(D31,0,0,window_size_max-1))))) ->  | G30: 474965 | H30: 843933.8884 | I30: 545118.2309 | J30: 215 | K30: 583827.2157 | L30: 2186736.484 | M30: 2783016 | N30: =IF(VLOOKUP(A30,Calendar!A:E,5,FALSE)=0,"",IF(ISERROR(O30),minIMSM+add_margin,CEILING(MAX(OFFSET(M30,O30,0),OFFSET(L30,O30,0),minIMSM)+add_margin,roundto))) -> 2840000 | O30: =IF(INDIRECT("Calendar!E"&MATCH($A30,Calendar!A:A,0)-1),0,IF(INDIRECT("Calendar!E"&MATCH($A30,Calendar!A:A,0)-2),1,2)) -> 0
A31: 2022-04-22 | B31: 884049 | C31: 587569 | D31: 884049 | F31: =IF(ISERROR(MATCH($A31,Calendar!$A$2:$A$2598,0)),"", IF(VLOOKUP(A31,Calendar!$A$2:$D$2598,3)=0,"", IF(ISERROR(AVERAGE(OFFSET(E32,0,0,window_size,1))), IF(COUNTBLANK(OFFSET(E32,0,0,window_size_max-1))=window_size_max-1,"",MAX(OFFSET(D32,0,0,window_size_max-1))), VLOOKUP(A31,Calendar!$A$2:$D$2598,3)*AVERAGE(OFFSET(E32,0,0,window_size,1))+MAX(OFFSET(D32,0,0,window_size_max-1))))) ->  | G31: 587569 | H31: 843160.6326 | I31: 546527.6173 | J31: 215 | K31: 585336.6829 | L31: 2189435.003 | M31: 2783016 | N31: =IF(VLOOKUP(A31,Calendar!A:E,5,FALSE)=0,"",IF(ISERROR(O31),minIMSM+add_margin,CEILING(MAX(OFFSET(M31,O31,0),OFFSET(L31,O31,0),minIMSM)+add_margin,roundto))) -> 2840000 | O31: =IF(INDIRECT("Calendar!E"&MATCH($A31,Calendar!A:A,0)-1),0,IF(INDIRECT("Calendar!E"&MATCH($A31,Calendar!A:A,0)-2),1,2)) -> 0
A32: 2022-04-21 | B32: 1144105 | C32: 715273 | D32: 1144105 | E32: 1144105 | F32: =IF(ISERROR(MATCH($A32,Calendar!$A$2:$A$2598,0)),"", IF(VLOOKUP(A32,Calendar!$A$2:$D$2598,3)=0,"", IF(ISERROR(AVERAGE(OFFSET(E33,0,0,window_size,1))), IF(COUNTBLANK(OFFSET(E33,0,0,window_size_max-1))=window_size_max-1,"",MAX(OFFSET(D33,0,0,window_size_max-1))), VLOOKUP(A32,Calendar!$A$2:$D$2598,3)*AVERAGE(OFFSET(E33,0,0,window_size,1))+MAX(OFFSET(D33,0,0,window_size_max-1))))) ->  | G32: 715273 | H32: 840939.9674 | I32: 544389.0454 | J32: 215 | K32: 583046.2505 | L32: 2181946.344 | M32: 2783016 | N32: =IF(VLOOKUP(A32,Calendar!A:E,5,FALSE)=0,"",IF(ISERROR(O32),minIMSM+add_margin,CEILING(MAX(OFFSET(M32,O32,0),OFFSET(L32,O32,0),minIMSM)+add_margin,roundto))) -> 2840000 | O32: =IF(INDIRECT("Calendar!E"&MATCH($A32,Calendar!A:A,0)-1),0,IF(INDIRECT("Calendar!E"&MATCH($A32,Calendar!A:A,0)-2),1,2)) -> 0
A33: 2022-04-20 | B33: 1575066 | C33: 1063504 | D33: 1575066 | E33: 1575066 | F33: =IF(ISERROR(MATCH($A33,Calendar!$A$2:$A$2598,0)),"", IF(VLOOKUP(A33,Calendar!$A$2:$D$2598,3)=0,"", IF(ISERROR(AVERAGE(OFFSET(E34,0,0,window_size,1))), IF(COUNTBLANK(OFFSET(E34,0,0,window_size_max-1))=window_size_max-1,"",MAX(OFFSET(D34,0,0,window_size_max-1))), VLOOKUP(A33,Calendar!$A$2:$D$2598,3)*AVERAGE(OFFSET(E34,0,0,window_size,1))+MAX(OFFSET(D34,0,0,window_size_max-1))))) ->  | G33: 1063504 | H33: 837869.6744 | I33: 548696.3793 | J33: 215 | K33: 587659.4493 | L33: 2189486.408 | M33: 3581795.2 | N33: =IF(VLOOKUP(A33,Calendar!A:E,5,FALSE)=0,"",IF(ISERROR(O33),minIMSM+add_margin,CEILING(MAX(OFFSET(M33,O33,0),OFFSET(L33,O33,0),minIMSM)+add_margin,roundto))) -> 3640000 | O33: =IF(INDIRECT("Calendar!E"&MATCH($A33,Calendar!A:A,0)-1),0,IF(INDIRECT("Calendar!E"&MATCH($A33,Calendar!A:A,0)-2),1,2)) -> 0
A34: 2022-04-19 | B34: 1217077 | C34: 310029 | D34: 1217077 | E34: 1217077 | F34: =IF(ISERROR(MATCH($A34,Calendar!$A$2:$A$2598,0)),"", IF(VLOOKUP(A34,Calendar!$A$2:$D$2598,3)=0,"", IF(ISERROR(AVERAGE(OFFSET(E35,0,0,window_size,1))), IF(COUNTBLANK(OFFSET(E35,0,0,window_size_max-1))=window_size_max-1,"",MAX(OFFSET(D35,0,0,window_size_max-1))), VLOOKUP(A34,Calendar!$A$2:$D$2598,3)*AVERAGE(OFFSET(E35,0,0,window_size,1))+MAX(OFFSET(D35,0,0,window_size_max-1))))) ->  | G34: 310029 | H34: 840061.5953 | I34: 549364.1045 | J34: 215 | K34: 588374.5899 | L34: 2193323.152 | M34: 3581795.2 | N34: =IF(VLOOKUP(A34,Calendar!A:E,5,FALSE)=0,"",IF(ISERROR(O34),minIMSM+add_margin,CEILING(MAX(OFFSET(M34,O34,0),OFFSET(L34,O34,0),minIMSM)+add_margin,roundto))) -> 6770000 | O34: =IF(INDIRECT("Calendar!E"&MATCH($A34,Calendar!A:A,0)-1),0,IF(INDIRECT("Calendar!E"&MATCH($A34,Calendar!A:A,0)-2),1,2)) -> 2
A35: 2022-04-18 | B35: 410225 | C35: 301574 | D35: 410225 | F35: =IF(ISERROR(MATCH($A35,Calendar!$A$2:$A$2598,0)),"", IF(VLOOKUP(A35,Calendar!$A$2:$D$2598,3)=0,"", IF(ISERROR(AVERAGE(OFFSET(E36,0,0,window_size,1))), IF(COUNTBLANK(OFFSET(E36,0,0,window_size_max-1))=window_size_max-1,"",MAX(OFFSET(D36,0,0,window_size_max-1))), VLOOKUP(A35,Calendar!$A$2:$D$2598,3)*AVERAGE(OFFSET(E36,0,0,window_size,1))+MAX(OFFSET(D36,0,0,window_size_max-1))))) ->  | G35: 301574 | H35: 839145.6186 | I35: 550507.187 | J35: 215 | K35: 589598.8429 | L35: 2195222.957 | M35: 3581795.2 | N35: =IF(VLOOKUP(A35,Calendar!A:E,5,FALSE)=0,"",IF(ISERROR(O35),minIMSM+add_margin,CEILING(MAX(OFFSET(M35,O35,0),OFFSET(L35,O35,0),minIMSM)+add_margin,roundto))) ->  | O35: =IF(INDIRECT("Calendar!E"&MATCH($A35,Calendar!A:A,0)-1),0,IF(INDIRECT("Calendar!E"&MATCH($A35,Calendar!A:A,0)-2),1,2)) -> 1
A36: 2022-04-15 | B36: 626020 | C36: 483621 | D36: 626020 | F36: =IF(ISERROR(MATCH($A36,Calendar!$A$2:$A$2598,0)),"", IF(VLOOKUP(A36,Calendar!$A$2:$D$2598,3)=0,"", IF(ISERROR(AVERAGE(OFFSET(E37,0,0,window_size,1))), IF(COUNTBLANK(OFFSET(E37,0,0,window_size_max-1))=window_size_max-1,"",MAX(OFFSET(D37,0,0,window_size_max-1))), VLOOKUP(A36,Calendar!$A$2:$D$2598,3)*AVERAGE(OFFSET(E37,0,0,window_size,1))+MAX(OFFSET(D37,0,0,window_size_max-1))))) ->  | G36: 483621 | H36: 854424.926 | I36: 654781.201 | J36: 215 | K36: 701277.3813 | L36: 2467362.903 | M36: 6719707.334 | N36: =IF(VLOOKUP(A36,Calendar!A:E,5,FALSE)=0,"",IF(ISERROR(O36),minIMSM+add_margin,CEILING(MAX(OFFSET(M36,O36,0),OFFSET(L36,O36,0),minIMSM)+add_margin,roundto))) ->  | O36: =IF(INDIRECT("Calendar!E"&MATCH($A36,Calendar!A:A,0)-1),0,IF(INDIRECT("Calendar!E"&MATCH($A36,Calendar!A:A,0)-2),1,2)) -> 0
A37: 2022-04-14 | B37: 580668 | C37: 333994 | D37: 580668 | E37: 580668 | F37: =IF(ISERROR(MATCH($A37,Calendar!$A$2:$A$2598,0)),"", IF(VLOOKUP(A37,Calendar!$A$2:$D$2598,3)=0,"", IF(ISERROR(AVERAGE(OFFSET(E38,0,0,window_size,1))), IF(COUNTBLANK(OFFSET(E38,0,0,window_size_max-1))=window_size_max-1,"",MAX(OFFSET(D38,0,0,window_size_max-1))), VLOOKUP(A37,Calendar!$A$2:$D$2598,3)*AVERAGE(OFFSET(E38,0,0,window_size,1))+MAX(OFFSET(D38,0,0,window_size_max-1))))) -> 4199817.084 | G37: 4199817.084 | H37: 852065.6699 | I37: 657375.0752 | J37: 215 | K37: 704055.4471 | L37: 2471393.198 | M37: 6708894.437 | N37: =IF(VLOOKUP(A37,Calendar!A:E,5,FALSE)=0,"",IF(ISERROR(O37),minIMSM+add_margin,CEILING(MAX(OFFSET(M37,O37,0),OFFSET(L37,O37,0),minIMSM)+add_margin,roundto))) -> 6760000 | O37: =IF(INDIRECT("Calendar!E"&MATCH($A37,Calendar!A:A,0)-1),0,IF(INDIRECT("Calendar!E"&MATCH($A37,Calendar!A:A,0)-2),1,2)) -> 0
A38: 2022-04-13 | B38: 743322 | C38: 628866 | D38: 743322 | E38: 743322 | F38: =IF(ISERROR(MATCH($A38,Calendar!$A$2:$A$2598,0)),"", IF(VLOOKUP(A38,Calendar!$A$2:$D$2598,3)=0,"", IF(ISERROR(AVERAGE(OFFSET(E39,0,0,window_size,1))), IF(COUNTBLANK(OFFSET(E39,0,0,window_size_max-1))=window_size_max-1,"",MAX(OFFSET(D39,0,0,window_size_max-1))), VLOOKUP(A38,Calendar!$A$2:$D$2598,3)*AVERAGE(OFFSET(E39,0,0,window_size,1))+MAX(OFFSET(D39,0,0,window_size_max-1))))) -> 4193059.023 | G38: 4193059.023 | H38: 832089.6977 | I38: 562266.9374 | J38: 215 | K38: 602193.6562 | L38: 2217135.107 | M38: 3581795.2 | N38: =IF(VLOOKUP(A38,Calendar!A:E,5,FALSE)=0,"",IF(ISERROR(O38),minIMSM+add_margin,CEILING(MAX(OFFSET(M38,O38,0),OFFSET(L38,O38,0),minIMSM)+add_margin,roundto))) -> 3640000 | O38: =IF(INDIRECT("Calendar!E"&MATCH($A38,Calendar!A:A,0)-1),0,IF(INDIRECT("Calendar!E"&MATCH($A38,Calendar!A:A,0)-2),1,2)) -> 0
A39: 2022-04-12 | B39: 656513 | C39: 254069 | D39: 656513 | E39: 656513 | F39: =IF(ISERROR(MATCH($A39,Calendar!$A$2:$A$2598,0)),"", IF(VLOOKUP(A39,Calendar!$A$2:$D$2598,3)=0,"", IF(ISERROR(AVERAGE(OFFSET(E40,0,0,window_size,1))), IF(COUNTBLANK(OFFSET(E40,0,0,window_size_max-1))=window_size_max-1,"",MAX(OFFSET(D40,0,0,window_size_max-1))), VLOOKUP(A39,Calendar!$A$2:$D$2598,3)*AVERAGE(OFFSET(E40,0,0,window_size,1))+MAX(OFFSET(D40,0,0,window_size_max-1))))) ->  | G39: 254069 | H39: 831369.4791 | I39: 563624.5824 | J39: 215 | K39: 603647.7079 | L39: 2219759.207 | M39: 3581795.2 | N39: =IF(VLOOKUP(A39,Calendar!A:E,5,FALSE)=0,"",IF(ISERROR(O39),minIMSM+add_margin,CEILING(MAX(OFFSET(M39,O39,0),OFFSET(L39,O39,0),minIMSM)+add_margin,roundto))) -> 3640000 | O39: =IF(INDIRECT("Calendar!E"&MATCH($A39,Calendar!A:A,0)-1),0,IF(INDIRECT("Calendar!E"&MATCH($A39,Calendar!A:A,0)-2),1,2)) -> 0
A40: 2022-04-11 | B40: 248557 | C40: 144410 | D40: 248557 | F40: =IF(ISERROR(MATCH($A40,Calendar!$A$2:$A$2598,0)),"", IF(VLOOKUP(A40,Calendar!$A$2:$D$2598,3)=0,"", IF(ISERROR(AVERAGE(OFFSET(E41,0,0,window_size,1))), IF(COUNTBLANK(OFFSET(E41,0,0,window_size_max-1))=window_size_max-1,"",MAX(OFFSET(D41,0,0,window_size_max-1))), VLOOKUP(A40,Calendar!$A$2:$D$2598,3)*AVERAGE(OFFSET(E41,0,0,window_size,1))+MAX(OFFSET(D41,0,0,window_size_max-1))))) ->  | G40: 144410 | H40: 831170.2558 | I40: 563926.2337 | J40: 215 | K40: 603970.7796 | L40: 2220303.049 | M40: 3581795.2 | N40: =IF(VLOOKUP(A40,Calendar!A:E,5,FALSE)=0,"",IF(ISERROR(O40),minIMSM+add_margin,CEILING(MAX(OFFSET(M40,O40,0),OFFSET(L40,O40,0),minIMSM)+add_margin,roundto))) -> 3640000 | O40: =IF(INDIRECT("Calendar!E"&MATCH($A40,Calendar!A:A,0)-1),0,IF(INDIRECT("Calendar!E"&MATCH($A40,Calendar!A:A,0)-2),1,2)) -> 0
A41: 2022-04-08 | B41: 165393 | C41: 44105 | D41: 165393 | F41: =IF(ISERROR(MATCH($A41,Calendar!$A$2:$A$2598,0)),"", IF(VLOOKUP(A41,Calendar!$A$2:$D$2598,3)=0,"", IF(ISERROR(AVERAGE(OFFSET(E42,0,0,window_size,1))), IF(COUNTBLANK(OFFSET(E42,0,0,window_size_max-1))=window_size_max-1,"",MAX(OFFSET(D42,0,0,window_size_max-1))), VLOOKUP(A41,Calendar!$A$2:$D$2598,3)*AVERAGE(OFFSET(E42,0,0,window_size,1))+MAX(OFFSET(D42,0,0,window_size_max-1))))) ->  | G41: 44105 | H41: 832233.3488 | I41: 560874.9652 | J41: 215 | K41: 600702.8397 | L41: =IF($A41="","",H41+alpha*K41) -> 2213849.88 | M41: 3581795.2 | N41: =IF(VLOOKUP(A41,Calendar!A:E,5,FALSE)=0,"",IF(ISERROR(O41),minIMSM+add_margin,CEILING(MAX(OFFSET(M41,O41,0),OFFSET(L41,O41,0),minIMSM)+add_margin,roundto))) -> 3640000 | O41: =IF(INDIRECT("Calendar!E"&MATCH($A41,Calendar!A:A,0)-1),0,IF(INDIRECT("Calendar!E"&MATCH($A41,Calendar!A:A,0)-2),1,2)) -> 0
A42: 2022-04-07 | B42: 123163 | C42: 106375 | D42: 123163 | E42: 123163 | F42: =IF(ISERROR(MATCH($A42,Calendar!$A$2:$A$2598,0)),"", IF(VLOOKUP(A42,Calendar!$A$2:$D$2598,3)=0,"", IF(ISERROR(AVERAGE(OFFSET(E43,0,0,window_size,1))), IF(COUNTBLANK(OFFSET(E43,0,0,window_size_max-1))=window_size_max-1,"",MAX(OFFSET(D43,0,0,window_size_max-1))), VLOOKUP(A42,Calendar!$A$2:$D$2598,3)*AVERAGE(OFFSET(E43,0,0,window_size,1))+MAX(OFFSET(D43,0,0,window_size_max-1))))) ->  | G42: 106375 | H42: 833384.6047 | I42: 558372.6727 | J42: 215 | K42: 598022.8588 | L42: 2208837.18 | M42: 3581795.2 | N42: =IF(VLOOKUP(A42,Calendar!A:E,5,FALSE)=0,"",IF(ISERROR(O42),minIMSM+add_margin,CEILING(MAX(OFFSET(M42,O42,0),OFFSET(L42,O42,0),minIMSM)+add_margin,roundto))) -> 3640000 | O42: =IF(INDIRECT("Calendar!E"&MATCH($A42,Calendar!A:A,0)-1),0,IF(INDIRECT("Calendar!E"&MATCH($A42,Calendar!A:A,0)-2),1,2)) -> 0
A43: 2022-04-06 | B43: 713075 | C43: 711429 | D43: 713075 | E43: 713075 | F43: =IF(ISERROR(MATCH($A43,Calendar!$A$2:$A$2598,0)),"", IF(VLOOKUP(A43,Calendar!$A$2:$D$2598,3)=0,"", IF(ISERROR(AVERAGE(OFFSET(E44,0,0,window_size,1))), IF(COUNTBLANK(OFFSET(E44,0,0,window_size_max-1))=window_size_max-1,"",MAX(OFFSET(D44,0,0,window_size_max-1))), VLOOKUP(A43,Calendar!$A$2:$D$2598,3)*AVERAGE(OFFSET(E44,0,0,window_size,1))+MAX(OFFSET(D44,0,0,window_size_max-1))))) ->  | G43: 711429 | H43: 833963.1302 | I43: 563441.9821 | J43: 215 | K43: 603452.1412 | L43: 2221903.055 | M43: 3581795.2 | N43: =IF(VLOOKUP(A43,Calendar!A:E,5,FALSE)=0,"",IF(ISERROR(O43),minIMSM+add_margin,CEILING(MAX(OFFSET(M43,O43,0),OFFSET(L43,O43,0),minIMSM)+add_margin,roundto))) -> 3640000 | O43: =IF(INDIRECT("Calendar!E"&MATCH($A43,Calendar!A:A,0)-1),0,IF(INDIRECT("Calendar!E"&MATCH($A43,Calendar!A:A,0)-2),1,2)) -> 0
A44: 2022-04-05 | B44: 972766 | C44: 357968 | D44: 972766 | E44: 972766 | F44: =IF(ISERROR(MATCH($A44,Calendar!$A$2:$A$2598,0)),"", IF(VLOOKUP(A44,Calendar!$A$2:$D$2598,3)=0,"", IF(ISERROR(AVERAGE(OFFSET(E45,0,0,window_size,1))), IF(COUNTBLANK(OFFSET(E45,0,0,window_size_max-1))=window_size_max-1,"",MAX(OFFSET(D45,0,0,window_size_max-1))), VLOOKUP(A44,Calendar!$A$2:$D$2598,3)*AVERAGE(OFFSET(E45,0,0,window_size,1))+MAX(OFFSET(D45,0,0,window_size_max-1))))) ->  | G44: 357968 | H44: 838211.9628 | I44: 564598.3957 | J44: 215 | K44: 604690.672 | L44: 2229000.508 | M44: 3581795.2 | N44: =IF(VLOOKUP(A44,Calendar!A:E,5,FALSE)=0,"",IF(ISERROR(O44),minIMSM+add_margin,CEILING(MAX(OFFSET(M44,O44,0),OFFSET(L44,O44,0),minIMSM)+add_margin,roundto))) -> 3640000 | O44: =IF(INDIRECT("Calendar!E"&MATCH($A44,Calendar!A:A,0)-1),0,IF(INDIRECT("Calendar!E"&MATCH($A44,Calendar!A:A,0)-2),1,2)) -> 0
A45: 2022-04-04 | B45: 428502 | C45: 309315 | D45: 428502 | F45: =IF(ISERROR(MATCH($A45,Calendar!$A$2:$A$2598,0)),"", IF(VLOOKUP(A45,Calendar!$A$2:$D$2598,3)=0,"", IF(ISERROR(AVERAGE(OFFSET(E46,0,0,window_size,1))), IF(COUNTBLANK(OFFSET(E46,0,0,window_size_max-1))=window_size_max-1,"",MAX(OFFSET(D46,0,0,window_size_max-1))), VLOOKUP(A45,Calendar!$A$2:$D$2598,3)*AVERAGE(OFFSET(E46,0,0,window_size,1))+MAX(OFFSET(D46,0,0,window_size_max-1))))) ->  | G45: 309315 | H45: 837879.0093 | I45: 566351.7966 | J45: 215 | K45: 606568.5823 | L45: 2232986.749 | M45: 3581795.2 | N45: =IF(VLOOKUP(A45,Calendar!A:E,5,FALSE)=0,"",IF(ISERROR(O45),minIMSM+add_margin,CEILING(MAX(OFFSET(M45,O45,0),OFFSET(L45,O45,0),minIMSM)+add_margin,roundto))) -> 3640000 | O45: =IF(INDIRECT("Calendar!E"&MATCH($A45,Calendar!A:A,0)-1),0,IF(INDIRECT("Calendar!E"&MATCH($A45,Calendar!A:A,0)-2),1,2)) -> 0
A46: 2022-04-01 | B46: 615845 | C46: 391934 | D46: 615845 | F46: =IF(ISERROR(MATCH($A46,Calendar!$A$2:$A$2598,0)),"", IF(VLOOKUP(A46,Calendar!$A$2:$D$2598,3)=0,"", IF(ISERROR(AVERAGE(OFFSET(E47,0,0,window_size,1))), IF(COUNTBLANK(OFFSET(E47,0,0,window_size_max-1))=window_size_max-1,"",MAX(OFFSET(D47,0,0,window_size_max-1))), VLOOKUP(A46,Calendar!$A$2:$D$2598,3)*AVERAGE(OFFSET(E47,0,0,window_size,1))+MAX(OFFSET(D47,0,0,window_size_max-1))))) ->  | G46: 391934 | H46: 837739.893 | I46: 568886.0582 | J46: 215 | K46: 609282.8025 | L46: 2239090.339 | M46: 3581795.2 | N46: =IF(VLOOKUP(A46,Calendar!A:E,5,FALSE)=0,"",IF(ISERROR(O46),minIMSM+add_margin,CEILING(MAX(OFFSET(M46,O46,0),OFFSET(L46,O46,0),minIMSM)+add_margin,roundto))) -> 3640000 | O46: =IF(INDIRECT("Calendar!E"&MATCH($A46,Calendar!A:A,0)-1),0,IF(INDIRECT("Calendar!E"&MATCH($A46,Calendar!A:A,0)-2),1,2)) -> 0
A47: 2022-03-31 | B47: 695085 | C47: 411384 | D47: 695085 | E47: 695085 | F47: =IF(ISERROR(MATCH($A47,Calendar!$A$2:$A$2598,0)),"", IF(VLOOKUP(A47,Calendar!$A$2:$D$2598,3)=0,"", IF(ISERROR(AVERAGE(OFFSET(E48,0,0,window_size,1))), IF(COUNTBLANK(OFFSET(E48,0,0,window_size_max-1))=window_size_max-1,"",MAX(OFFSET(D48,0,0,window_size_max-1))), VLOOKUP(A47,Calendar!$A$2:$D$2598,3)*AVERAGE(OFFSET(E48,0,0,window_size,1))+MAX(OFFSET(D48,0,0,window_size_max-1))))) ->  | G47: 411384 | H47: 836292.1209 | I47: 568796.4731 | J47: 215 | K47: 609186.8559 | L47: 2237421.889 | M47: 3581795.2 | N47: =IF(VLOOKUP(A47,Calendar!A:E,5,FALSE)=0,"",IF(ISERROR(O47),minIMSM+add_margin,CEILING(MAX(OFFSET(M47,O47,0),OFFSET(L47,O47,0),minIMSM)+add_margin,roundto))) -> 3640000 | O47: =IF(INDIRECT("Calendar!E"&MATCH($A47,Calendar!A:A,0)-1),0,IF(INDIRECT("Calendar!E"&MATCH($A47,Calendar!A:A,0)-2),1,2)) -> 0
A48: 2022-03-30 | B48: 1300802 | C48: 1041538 | D48: 1300802 | E48: 1300802 | F48: =IF(ISERROR(MATCH($A48,Calendar!$A$2:$A$2598,0)),"", IF(VLOOKUP(A48,Calendar!$A$2:$D$2598,3)=0,"", IF(ISERROR(AVERAGE(OFFSET(E49,0,0,window_size,1))), IF(COUNTBLANK(OFFSET(E49,0,0,window_size_max-1))=window_size_max-1,"",MAX(OFFSET(D49,0,0,window_size_max-1))), VLOOKUP(A48,Calendar!$A$2:$D$2598,3)*AVERAGE(OFFSET(E49,0,0,window_size,1))+MAX(OFFSET(D49,0,0,window_size_max-1))))) ->  | G48: 1041538 | H48: 832405.8558 | I48: 564003.2607 | J48: 215 | K48: 604053.2763 | L48: 2221728.391 | M48: 3581795.2 | N48: =IF(VLOOKUP(A48,Calendar!A:E,5,FALSE)=0,"",IF(ISERROR(O48),minIMSM+add_margin,CEILING(MAX(OFFSET(M48,O48,0),OFFSET(L48,O48,0),minIMSM)+add_margin,roundto))) -> 3640000 | O48: =IF(INDIRECT("Calendar!E"&MATCH($A48,Calendar!A:A,0)-1),0,IF(INDIRECT("Calendar!E"&MATCH($A48,Calendar!A:A,0)-2),1,2)) -> 0
A49: 2022-03-29 | B49: 1739385 | C49: 825822 | D49: 1739385 | E49: 1739385 | F49: =IF(ISERROR(MATCH($A49,Calendar!$A$2:$A$2598,0)),"", IF(VLOOKUP(A49,Calendar!$A$2:$D$2598,3)=0,"", IF(ISERROR(AVERAGE(OFFSET(E50,0,0,window_size,1))), IF(COUNTBLANK(OFFSET(E50,0,0,window_size_max-1))=window_size_max-1,"",MAX(OFFSET(D50,0,0,window_size_max-1))), VLOOKUP(A49,Calendar!$A$2:$D$2598,3)*AVERAGE(OFFSET(E50,0,0,window_size,1))+MAX(OFFSET(D50,0,0,window_size_max-1))))) ->  | G49: 825822 | H49: 835561.1488 | I49: 563682.649 | J49: 215 | K49: 603709.8979 | L49: 2224093.914 | M49: 3581795.2 | N49: =IF(VLOOKUP(A49,Calendar!A:E,5,FALSE)=0,"",IF(ISERROR(O49),minIMSM+add_margin,CEILING(MAX(OFFSET(M49,O49,0),OFFSET(L49,O49,0),minIMSM)+add_margin,roundto))) -> 3640000 | O49: =IF(INDIRECT("Calendar!E"&MATCH($A49,Calendar!A:A,0)-1),0,IF(INDIRECT("Calendar!E"&MATCH($A49,Calendar!A:A,0)-2),1,2)) -> 0
A50: 2022-03-28 | B50: 1495665 | C50: 996898 | D50: 1495665 | F50: =IF(ISERROR(MATCH($A50,Calendar!$A$2:$A$2598,0)),"", IF(VLOOKUP(A50,Calendar!$A$2:$D$2598,3)=0,"", IF(ISERROR(AVERAGE(OFFSET(E51,0,0,window_size,1))), IF(COUNTBLANK(OFFSET(E51,0,0,window_size_max-1))=window_size_max-1,"",MAX(OFFSET(D51,0,0,window_size_max-1))), VLOOKUP(A50,Calendar!$A$2:$D$2598,3)*AVERAGE(OFFSET(E51,0,0,window_size,1))+MAX(OFFSET(D51,0,0,window_size_max-1))))) ->  | G50: 996898 | H50: 832489.8977 | I50: 569634.7437 | J50: 215 | K50: 610084.6523 | L50: 2235684.598 | M50: 3581795.2 | N50: =IF(VLOOKUP(A50,Calendar!A:E,5,FALSE)=0,"",IF(ISERROR(O50),minIMSM+add_margin,CEILING(MAX(OFFSET(M50,O50,0),OFFSET(L50,O50,0),minIMSM)+add_margin,roundto))) -> 3640000 | O50: =IF(INDIRECT("Calendar!E"&MATCH($A50,Calendar!A:A,0)-1),0,IF(INDIRECT("Calendar!E"&MATCH($A50,Calendar!A:A,0)-2),1,2)) -> 0
A51: 2022-03-25 | B51: 920419 | C51: 299301 | D51: 920419 | F51: =IF(ISERROR(MATCH($A51,Calendar!$A$2:$A$2598,0)),"", IF(VLOOKUP(A51,Calendar!$A$2:$D$2598,3)=0,"", IF(ISERROR(AVERAGE(OFFSET(E52,0,0,window_size,1))), IF(COUNTBLANK(OFFSET(E52,0,0,window_size_max-1))=window_size_max-1,"",MAX(OFFSET(D52,0,0,window_size_max-1))), VLOOKUP(A51,Calendar!$A$2:$D$2598,3)*AVERAGE(OFFSET(E52,0,0,window_size,1))+MAX(OFFSET(D52,0,0,window_size_max-1))))) ->  | G51: 299301 | H51: 834671.9349 | I51: 569350.1955 | J51: 215 | K51: 609779.8983 | L51: 2237165.701 | M51: 3581795.2 | N51: =IF(VLOOKUP(A51,Calendar!A:E,5,FALSE)=0,"",IF(ISERROR(O51),minIMSM+add_margin,CEILING(MAX(OFFSET(M51,O51,0),OFFSET(L51,O51,0),minIMSM)+add_margin,roundto))) -> 3640000 | O51: =IF(INDIRECT("Calendar!E"&MATCH($A51,Calendar!A:A,0)-1),0,IF(INDIRECT("Calendar!E"&MATCH($A51,Calendar!A:A,0)-2),1,2)) -> 0
A52: 2022-03-24 | B52: 506366 | C52: 489028 | D52: 506366 | E52: 506366 | F52: =IF(ISERROR(MATCH($A52,Calendar!$A$2:$A$2598,0)),"", IF(VLOOKUP(A52,Calendar!$A$2:$D$2598,3)=0,"", IF(ISERROR(AVERAGE(OFFSET(E53,0,0,window_size,1))), IF(COUNTBLANK(OFFSET(E53,0,0,window_size_max-1))=window_size_max-1,"",MAX(OFFSET(D53,0,0,window_size_max-1))), VLOOKUP(A52,Calendar!$A$2:$D$2598,3)*AVERAGE(OFFSET(E53,0,0,window_size,1))+MAX(OFFSET(D53,0,0,window_size_max-1))))) ->  | G52: 489028 | H52: 834080.8558 | I52: 568353.9544 | J52: 215 | K52: 608712.9138 | L52: 2234120.558 | M52: 3581795.2 | N52: =IF(VLOOKUP(A52,Calendar!A:E,5,FALSE)=0,"",IF(ISERROR(O52),minIMSM+add_margin,CEILING(MAX(OFFSET(M52,O52,0),OFFSET(L52,O52,0),minIMSM)+add_margin,roundto))) -> 3640000 | O52: =IF(INDIRECT("Calendar!E"&MATCH($A52,Calendar!A:A,0)-1),0,IF(INDIRECT("Calendar!E"&MATCH($A52,Calendar!A:A,0)-2),1,2)) -> 0
A53: 2022-03-23 | B53: 1508966 | C53: 1245077 | D53: 1508966 | E53: 1508966 | F53: =IF(ISERROR(MATCH($A53,Calendar!$A$2:$A$2598,0)),"", IF(VLOOKUP(A53,Calendar!$A$2:$D$2598,3)=0,"", IF(ISERROR(AVERAGE(OFFSET(E54,0,0,window_size,1))), IF(COUNTBLANK(OFFSET(E54,0,0,window_size_max-1))=window_size_max-1,"",MAX(OFFSET(D54,0,0,window_size_max-1))), VLOOKUP(A53,Calendar!$A$2:$D$2598,3)*AVERAGE(OFFSET(E54,0,0,window_size,1))+MAX(OFFSET(D54,0,0,window_size_max-1))))) ->  | G53: 1245077 | H53: 829224.186 | I53: 572457.0956 | J53: 215 | K53: 613107.4201 | L53: 2239371.252 | M53: 3581795.2 | N53: =IF(VLOOKUP(A53,Calendar!A:E,5,FALSE)=0,"",IF(ISERROR(O53),minIMSM+add_margin,CEILING(MAX(OFFSET(M53,O53,0),OFFSET(L53,O53,0),minIMSM)+add_margin,roundto))) -> 3640000 | O53: =IF(INDIRECT("Calendar!E"&MATCH($A53,Calendar!A:A,0)-1),0,IF(INDIRECT("Calendar!E"&MATCH($A53,Calendar!A:A,0)-2),1,2)) -> 0
A54: 2022-03-22 | B54: 1090451 | C54: 314357 | D54: 1090451 | E54: 1090451 | F54: =IF(ISERROR(MATCH($A54,Calendar!$A$2:$A$2598,0)),"", IF(VLOOKUP(A54,Calendar!$A$2:$D$2598,3)=0,"", IF(ISERROR(AVERAGE(OFFSET(E55,0,0,window_size,1))), IF(COUNTBLANK(OFFSET(E55,0,0,window_size_max-1))=window_size_max-1,"",MAX(OFFSET(D55,0,0,window_size_max-1))), VLOOKUP(A54,Calendar!$A$2:$D$2598,3)*AVERAGE(OFFSET(E55,0,0,window_size,1))+MAX(OFFSET(D55,0,0,window_size_max-1))))) ->  | G54: 314357 | H54: 832571.8 | I54: 573669.4254 | J54: 215 | K54: 614405.8378 | L54: 2245705.227 | M54: 3581795.2 | N54: =IF(VLOOKUP(A54,Calendar!A:E,5,FALSE)=0,"",IF(ISERROR(O54),minIMSM+add_margin,CEILING(MAX(OFFSET(M54,O54,0),OFFSET(L54,O54,0),minIMSM)+add_margin,roundto))) -> 3640000 | O54: =IF(INDIRECT("Calendar!E"&MATCH($A54,Calendar!A:A,0)-1),0,IF(INDIRECT("Calendar!E"&MATCH($A54,Calendar!A:A,0)-2),1,2)) -> 0
A55: 2022-03-21 | B55: 298362 | C55: 171660 | D55: 298362 | F55: =IF(ISERROR(MATCH($A55,Calendar!$A$2:$A$2598,0)),"", IF(VLOOKUP(A55,Calendar!$A$2:$D$2598,3)=0,"", IF(ISERROR(AVERAGE(OFFSET(E56,0,0,window_size,1))), IF(COUNTBLANK(OFFSET(E56,0,0,window_size_max-1))=window_size_max-1,"",MAX(OFFSET(D56,0,0,window_size_max-1))), VLOOKUP(A55,Calendar!$A$2:$D$2598,3)*AVERAGE(OFFSET(E56,0,0,window_size,1))+MAX(OFFSET(D56,0,0,window_size_max-1))))) ->  | G55: 171660 | H55: 833119.893 | I55: 572958.8615 | J55: 215 | K55: 613644.8166 | L55: 2244502.971 | M55: 3581795.2 | N55: =IF(VLOOKUP(A55,Calendar!A:E,5,FALSE)=0,"",IF(ISERROR(O55),minIMSM+add_margin,CEILING(MAX(OFFSET(M55,O55,0),OFFSET(L55,O55,0),minIMSM)+add_margin,roundto))) -> 3640000 | O55: =IF(INDIRECT("Calendar!E"&MATCH($A55,Calendar!A:A,0)-1),0,IF(INDIRECT("Calendar!E"&MATCH($A55,Calendar!A:A,0)-2),1,2)) -> 0
A56: 2022-03-18 | B56: 493521 | C56: 412646 | D56: 493521 | F56: =IF(ISERROR(MATCH($A56,Calendar!$A$2:$A$2598,0)),"", IF(VLOOKUP(A56,Calendar!$A$2:$D$2598,3)=0,"", IF(ISERROR(AVERAGE(OFFSET(E57,0,0,window_size,1))), IF(COUNTBLANK(OFFSET(E57,0,0,window_size_max-1))=window_size_max-1,"",MAX(OFFSET(D57,0,0,window_size_max-1))), VLOOKUP(A56,Calendar!$A$2:$D$2598,3)*AVERAGE(OFFSET(E57,0,0,window_size,1))+MAX(OFFSET(D57,0,0,window_size_max-1))))) ->  | G56: 412646 | H56: 832790.0744 | I56: 573903.5348 | J56: 215 | K56: 614656.5714 | L56: 2246500.189 | M56: 3581795.2 | N56: =IF(VLOOKUP(A56,Calendar!A:E,5,FALSE)=0,"",IF(ISERROR(O56),minIMSM+add_margin,CEILING(MAX(OFFSET(M56,O56,0),OFFSET(L56,O56,0),minIMSM)+add_margin,roundto))) -> 3640000 | O56: =IF(INDIRECT("Calendar!E"&MATCH($A56,Calendar!A:A,0)-1),0,IF(INDIRECT("Calendar!E"&MATCH($A56,Calendar!A:A,0)-2),1,2)) -> 0
A57: 2022-03-17 | B57: 1025796 | C57: 760015 | D57: 1025796 | E57: 1025796 | F57: =IF(ISERROR(MATCH($A57,Calendar!$A$2:$A$2598,0)),"", IF(VLOOKUP(A57,Calendar!$A$2:$D$2598,3)=0,"", IF(ISERROR(AVERAGE(OFFSET(E58,0,0,window_size,1))), IF(COUNTBLANK(OFFSET(E58,0,0,window_size_max-1))=window_size_max-1,"",MAX(OFFSET(D58,0,0,window_size_max-1))), VLOOKUP(A57,Calendar!$A$2:$D$2598,3)*AVERAGE(OFFSET(E58,0,0,window_size,1))+MAX(OFFSET(D58,0,0,window_size_max-1))))) ->  | G57: 760015 | H57: 829113.1814 | I57: 578212.234 | J57: 215 | K57: 619271.2324 | L57: 2253437.016 | M57: 3581795.2 | N57: =IF(VLOOKUP(A57,Calendar!A:E,5,FALSE)=0,"",IF(ISERROR(O57),minIMSM+add_margin,CEILING(MAX(OFFSET(M57,O57,0),OFFSET(L57,O57,0),minIMSM)+add_margin,roundto))) -> 3640000 | O57: =IF(INDIRECT("Calendar!E"&MATCH($A57,Calendar!A:A,0)-1),0,IF(INDIRECT("Calendar!E"&MATCH($A57,Calendar!A:A,0)-2),1,2)) -> 0
A58: 2022-03-16 | B58: 1064666 | C58: 487404 | D58: 1064666 | E58: 1064666 | F58: =IF(ISERROR(MATCH($A58,Calendar!$A$2:$A$2598,0)),"", IF(VLOOKUP(A58,Calendar!$A$2:$D$2598,3)=0,"", IF(ISERROR(AVERAGE(OFFSET(E59,0,0,window_size,1))), IF(COUNTBLANK(OFFSET(E59,0,0,window_size_max-1))=window_size_max-1,"",MAX(OFFSET(D59,0,0,window_size_max-1))), VLOOKUP(A58,Calendar!$A$2:$D$2598,3)*AVERAGE(OFFSET(E59,0,0,window_size,1))+MAX(OFFSET(D59,0,0,window_size_max-1))))) ->  | G58: 487404 | H58: 827349.6326 | I58: 582064.5394 | J58: 215 | K58: 623397.091 | L58: 2261162.942 | M58: 3936224 | N58: =IF(VLOOKUP(A58,Calendar!A:E,5,FALSE)=0,"",IF(ISERROR(O58),minIMSM+add_margin,CEILING(MAX(OFFSET(M58,O58,0),OFFSET(L58,O58,0),minIMSM)+add_margin,roundto))) -> 3990000 | O58: =IF(INDIRECT("Calendar!E"&MATCH($A58,Calendar!A:A,0)-1),0,IF(INDIRECT("Calendar!E"&MATCH($A58,Calendar!A:A,0)-2),1,2)) -> 0
A59: 2022-03-15 | B59: 776991 | C59: 423471 | D59: 776991 | E59: 776991 | F59: =IF(ISERROR(MATCH($A59,Calendar!$A$2:$A$2598,0)),"", IF(VLOOKUP(A59,Calendar!$A$2:$D$2598,3)=0,"", IF(ISERROR(AVERAGE(OFFSET(E60,0,0,window_size,1))), IF(COUNTBLANK(OFFSET(E60,0,0,window_size_max-1))=window_size_max-1,"",MAX(OFFSET(D60,0,0,window_size_max-1))), VLOOKUP(A59,Calendar!$A$2:$D$2598,3)*AVERAGE(OFFSET(E60,0,0,window_size,1))+MAX(OFFSET(D60,0,0,window_size_max-1))))) ->  | G59: 423471 | H59: 832236.0651 | I59: 583171.4916 | J59: 215 | K59: 624582.6482 | L59: 2268776.156 | M59: 3953004.8 | N59: =IF(VLOOKUP(A59,Calendar!A:E,5,FALSE)=0,"",IF(ISERROR(O59),minIMSM+add_margin,CEILING(MAX(OFFSET(M59,O59,0),OFFSET(L59,O59,0),minIMSM)+add_margin,roundto))) -> 4010000 | O59: =IF(INDIRECT("Calendar!E"&MATCH($A59,Calendar!A:A,0)-1),0,IF(INDIRECT("Calendar!E"&MATCH($A59,Calendar!A:A,0)-2),1,2)) -> 0
A60: 2022-03-14 | B60: 734205 | C60: 654561 | D60: 734205 | F60: =IF(ISERROR(MATCH($A60,Calendar!$A$2:$A$2598,0)),"", IF(VLOOKUP(A60,Calendar!$A$2:$D$2598,3)=0,"", IF(ISERROR(AVERAGE(OFFSET(E61,0,0,window_size,1))), IF(COUNTBLANK(OFFSET(E61,0,0,window_size_max-1))=window_size_max-1,"",MAX(OFFSET(D61,0,0,window_size_max-1))), VLOOKUP(A60,Calendar!$A$2:$D$2598,3)*AVERAGE(OFFSET(E61,0,0,window_size,1))+MAX(OFFSET(D61,0,0,window_size_max-1))))) ->  | G60: 654561 | H60: 832747.0605 | I60: 586569.0612 | J60: 215 | K60: 628221.48 | L60: 2277656.465 | M60: 3953004.8 | N60: =IF(VLOOKUP(A60,Calendar!A:E,5,FALSE)=0,"",IF(ISERROR(O60),minIMSM+add_margin,CEILING(MAX(OFFSET(M60,O60,0),OFFSET(L60,O60,0),minIMSM)+add_margin,roundto))) -> 4010000 | O60: =IF(INDIRECT("Calendar!E"&MATCH($A60,Calendar!A:A,0)-1),0,IF(INDIRECT("Calendar!E"&MATCH($A60,Calendar!A:A,0)-2),1,2)) -> 0
A61: 2022-03-11 | B61: 902164 | C61: 540256 | D61: 902164 | F61: =IF(ISERROR(MATCH($A61,Calendar!$A$2:$A$2598,0)),"", IF(VLOOKUP(A61,Calendar!$A$2:$D$2598,3)=0,"", IF(ISERROR(AVERAGE(OFFSET(E62,0,0,window_size,1))), IF(COUNTBLANK(OFFSET(E62,0,0,window_size_max-1))=window_size_max-1,"",MAX(OFFSET(D62,0,0,window_size_max-1))), VLOOKUP(A61,Calendar!$A$2:$D$2598,3)*AVERAGE(OFFSET(E62,0,0,window_size,1))+MAX(OFFSET(D62,0,0,window_size_max-1))))) ->  | G61: 540256 | H61: 834509.2744 | I61: 587285.1306 | J61: 215 | K61: 628988.3977 | L61: 2281182.589 | M61: 3953004.8 | N61: =IF(VLOOKUP(A61,Calendar!A:E,5,FALSE)=0,"",IF(ISERROR(O61),minIMSM+add_margin,CEILING(MAX(OFFSET(M61,O61,0),OFFSET(L61,O61,0),minIMSM)+add_margin,roundto))) -> 4010000 | O61: =IF(INDIRECT("Calendar!E"&MATCH($A61,Calendar!A:A,0)-1),0,IF(INDIRECT("Calendar!E"&MATCH($A61,Calendar!A:A,0)-2),1,2)) -> 0
A62: 2022-03-10 | B62: 1333530 | C62: 1202454 | D62: 1333530 | E62: 1333530 | F62: =IF(ISERROR(MATCH($A62,Calendar!$A$2:$A$2598,0)),"", IF(VLOOKUP(A62,Calendar!$A$2:$D$2598,3)=0,"", IF(ISERROR(AVERAGE(OFFSET(E63,0,0,window_size,1))), IF(COUNTBLANK(OFFSET(E63,0,0,window_size_max-1))=window_size_max-1,"",MAX(OFFSET(D63,0,0,window_size_max-1))), VLOOKUP(A62,Calendar!$A$2:$D$2598,3)*AVERAGE(OFFSET(E63,0,0,window_size,1))+MAX(OFFSET(D63,0,0,window_size_max-1))))) ->  | G62: 1202454 | H62: 830294.6744 | I62: 576492.9007 | J62: 215 | K62: 617429.8088 | L62: 2250383.235 | M62: 3953004.8 | N62: =IF(VLOOKUP(A62,Calendar!A:E,5,FALSE)=0,"",IF(ISERROR(O62),minIMSM+add_margin,CEILING(MAX(OFFSET(M62,O62,0),OFFSET(L62,O62,0),minIMSM)+add_margin,roundto))) -> 4010000 | O62: =IF(INDIRECT("Calendar!E"&MATCH($A62,Calendar!A:A,0)-1),0,IF(INDIRECT("Calendar!E"&MATCH($A62,Calendar!A:A,0)-2),1,2)) -> 0
A63: 2022-03-09 | B63: 2238622 | C63: 1611184 | D63: 2238622 | E63: 2238622 | F63: =IF(ISERROR(MATCH($A63,Calendar!$A$2:$A$2598,0)),"", IF(VLOOKUP(A63,Calendar!$A$2:$D$2598,3)=0,"", IF(ISERROR(AVERAGE(OFFSET(E64,0,0,window_size,1))), IF(COUNTBLANK(OFFSET(E64,0,0,window_size_max-1))=window_size_max-1,"",MAX(OFFSET(D64,0,0,window_size_max-1))), VLOOKUP(A63,Calendar!$A$2:$D$2598,3)*AVERAGE(OFFSET(E64,0,0,window_size,1))+MAX(OFFSET(D64,0,0,window_size_max-1))))) ->  | G63: 1611184 | H63: 822744.7721 | I63: 570476.8015 | J63: 215 | K63: 610986.5049 | L63: 2228013.733 | M63: 3953004.8 | N63: =IF(VLOOKUP(A63,Calendar!A:E,5,FALSE)=0,"",IF(ISERROR(O63),minIMSM+add_margin,CEILING(MAX(OFFSET(M63,O63,0),OFFSET(L63,O63,0),minIMSM)+add_margin,roundto))) -> 4010000 | O63: =IF(INDIRECT("Calendar!E"&MATCH($A63,Calendar!A:A,0)-1),0,IF(INDIRECT("Calendar!E"&MATCH($A63,Calendar!A:A,0)-2),1,2)) -> 0
A64: 2022-03-08 | B64: 1637678 | C64: 373375 | D64: 1637678 | E64: 1637678 | F64: =IF(ISERROR(MATCH($A64,Calendar!$A$2:$A$2598,0)),"", IF(VLOOKUP(A64,Calendar!$A$2:$D$2598,3)=0,"", IF(ISERROR(AVERAGE(OFFSET(E65,0,0,window_size,1))), IF(COUNTBLANK(OFFSET(E65,0,0,window_size_max-1))=window_size_max-1,"",MAX(OFFSET(D65,0,0,window_size_max-1))), VLOOKUP(A64,Calendar!$A$2:$D$2598,3)*AVERAGE(OFFSET(E65,0,0,window_size,1))+MAX(OFFSET(D65,0,0,window_size_max-1))))) ->  | G64: 373375 | H64: 827611.7488 | I64: 572927.2661 | J64: 215 | K64: 613610.9776 | L64: 2238916.997 | M64: 3953004.8 | N64: =IF(VLOOKUP(A64,Calendar!A:E,5,FALSE)=0,"",IF(ISERROR(O64),minIMSM+add_margin,CEILING(MAX(OFFSET(M64,O64,0),OFFSET(L64,O64,0),minIMSM)+add_margin,roundto))) -> 4010000 | O64: =IF(INDIRECT("Calendar!E"&MATCH($A64,Calendar!A:A,0)-1),0,IF(INDIRECT("Calendar!E"&MATCH($A64,Calendar!A:A,0)-2),1,2)) -> 0
A65: 2022-03-07 | B65: 489865 | C65: 286974 | D65: 489865 | F65: =IF(ISERROR(MATCH($A65,Calendar!$A$2:$A$2598,0)),"", IF(VLOOKUP(A65,Calendar!$A$2:$D$2598,3)=0,"", IF(ISERROR(AVERAGE(OFFSET(E66,0,0,window_size,1))), IF(COUNTBLANK(OFFSET(E66,0,0,window_size_max-1))=window_size_max-1,"",MAX(OFFSET(D66,0,0,window_size_max-1))), VLOOKUP(A65,Calendar!$A$2:$D$2598,3)*AVERAGE(OFFSET(E66,0,0,window_size,1))+MAX(OFFSET(D66,0,0,window_size_max-1))))) ->  | G65: 286974 | H65: 831349.214 | I65: 573363.8569 | J65: 215 | K65: 614078.5708 | L65: 2243729.927 | M65: 3953004.8 | N65: =IF(VLOOKUP(A65,Calendar!A:E,5,FALSE)=0,"",IF(ISERROR(O65),minIMSM+add_margin,CEILING(MAX(OFFSET(M65,O65,0),OFFSET(L65,O65,0),minIMSM)+add_margin,roundto))) -> 4010000 | O65: =IF(INDIRECT("Calendar!E"&MATCH($A65,Calendar!A:A,0)-1),0,IF(INDIRECT("Calendar!E"&MATCH($A65,Calendar!A:A,0)-2),1,2)) -> 0
A66: 2022-03-04 | B66: 245244 | C66: 162842 | D66: 245244 | F66: =IF(ISERROR(MATCH($A66,Calendar!$A$2:$A$2598,0)),"", IF(VLOOKUP(A66,Calendar!$A$2:$D$2598,3)=0,"", IF(ISERROR(AVERAGE(OFFSET(E67,0,0,window_size,1))), IF(COUNTBLANK(OFFSET(E67,0,0,window_size_max-1))=window_size_max-1,"",MAX(OFFSET(D67,0,0,window_size_max-1))), VLOOKUP(A66,Calendar!$A$2:$D$2598,3)*AVERAGE(OFFSET(E67,0,0,window_size,1))+MAX(OFFSET(D67,0,0,window_size_max-1))))) ->  | G66: 162842 | H66: 837038.493 | I66: 570839.7978 | J66: 215 | K66: 611375.2776 | L66: 2243201.632 | M66: 3953004.8 | N66: =IF(VLOOKUP(A66,Calendar!A:E,5,FALSE)=0,"",IF(ISERROR(O66),minIMSM+add_margin,CEILING(MAX(OFFSET(M66,O66,0),OFFSET(L66,O66,0),minIMSM)+add_margin,roundto))) -> 4010000 | O66: =IF(INDIRECT("Calendar!E"&MATCH($A66,Calendar!A:A,0)-1),0,IF(INDIRECT("Calendar!E"&MATCH($A66,Calendar!A:A,0)-2),1,2)) -> 0
A67: 2022-03-03 | B67: 576536 | C67: 612163 | D67: 576536 | E67: 576536 | F67: =IF(ISERROR(MATCH($A67,Calendar!$A$2:$A$2598,0)),"", IF(VLOOKUP(A67,Calendar!$A$2:$D$2598,3)=0,"", IF(ISERROR(AVERAGE(OFFSET(E68,0,0,window_size,1))), IF(COUNTBLANK(OFFSET(E68,0,0,window_size_max-1))=window_size_max-1,"",MAX(OFFSET(D68,0,0,window_size_max-1))), VLOOKUP(A67,Calendar!$A$2:$D$2598,3)*AVERAGE(OFFSET(E68,0,0,window_size,1))+MAX(OFFSET(D68,0,0,window_size_max-1))))) ->  | G67: 612163 | H67: 838182.893 | I67: 573112.807 | J67: 215 | K67: 613809.6938 | L67: 2249945.189 | M67: 3953004.8 | N67: =IF(VLOOKUP(A67,Calendar!A:E,5,FALSE)=0,"",IF(ISERROR(O67),minIMSM+add_margin,CEILING(MAX(OFFSET(M67,O67,0),OFFSET(L67,O67,0),minIMSM)+add_margin,roundto))) -> 4010000 | O67: =IF(INDIRECT("Calendar!E"&MATCH($A67,Calendar!A:A,0)-1),0,IF(INDIRECT("Calendar!E"&MATCH($A67,Calendar!A:A,0)-2),1,2)) -> 0
A68: 2022-03-02 | B68: 920563 | C68: 976776 | D68: 920563 | E68: 920563 | F68: =IF(ISERROR(MATCH($A68,Calendar!$A$2:$A$2598,0)),"", IF(VLOOKUP(A68,Calendar!$A$2:$D$2598,3)=0,"", IF(ISERROR(AVERAGE(OFFSET(E69,0,0,window_size,1))), IF(COUNTBLANK(OFFSET(E69,0,0,window_size_max-1))=window_size_max-1,"",MAX(OFFSET(D69,0,0,window_size_max-1))), VLOOKUP(A68,Calendar!$A$2:$D$2598,3)*AVERAGE(OFFSET(E69,0,0,window_size,1))+MAX(OFFSET(D69,0,0,window_size_max-1))))) ->  | G68: 976776 | H68: 834978.6093 | I68: 577336.2427 | J68: 215 | K68: 618333.0367 | L68: 2257144.594 | M68: 3953004.8 | N68: =IF(VLOOKUP(A68,Calendar!A:E,5,FALSE)=0,"",IF(ISERROR(O68),minIMSM+add_margin,CEILING(MAX(OFFSET(M68,O68,0),OFFSET(L68,O68,0),minIMSM)+add_margin,roundto))) -> 4010000 | O68: =IF(INDIRECT("Calendar!E"&MATCH($A68,Calendar!A:A,0)-1),0,IF(INDIRECT("Calendar!E"&MATCH($A68,Calendar!A:A,0)-2),1,2)) -> 0
A69: 2022-03-01 | B69: 1106078 | C69: 430946 | D69: 1106078 | E69: 1106078 | F69: =IF(ISERROR(MATCH($A69,Calendar!$A$2:$A$2598,0)),"", IF(VLOOKUP(A69,Calendar!$A$2:$D$2598,3)=0,"", IF(ISERROR(AVERAGE(OFFSET(E70,0,0,window_size,1))), IF(COUNTBLANK(OFFSET(E70,0,0,window_size_max-1))=window_size_max-1,"",MAX(OFFSET(D70,0,0,window_size_max-1))), VLOOKUP(A69,Calendar!$A$2:$D$2598,3)*AVERAGE(OFFSET(E70,0,0,window_size,1))+MAX(OFFSET(D70,0,0,window_size_max-1))))) ->  | G69: 430946 | H69: 835497.3488 | I69: 578623.5716 | J69: 215 | K69: 619711.7792 | L69: 2260834.441 | M69: 3953004.8 | N69: =IF(VLOOKUP(A69,Calendar!A:E,5,FALSE)=0,"",IF(ISERROR(O69),minIMSM+add_margin,CEILING(MAX(OFFSET(M69,O69,0),OFFSET(L69,O69,0),minIMSM)+add_margin,roundto))) -> 4010000 | O69: =IF(INDIRECT("Calendar!E"&MATCH($A69,Calendar!A:A,0)-1),0,IF(INDIRECT("Calendar!E"&MATCH($A69,Calendar!A:A,0)-2),1,2)) -> 0
A70: 2022-02-28 | B70: 502617 | C70: 504279 | D70: 502617 | F70: =IF(ISERROR(MATCH($A70,Calendar!$A$2:$A$2598,0)),"", IF(VLOOKUP(A70,Calendar!$A$2:$D$2598,3)=0,"", IF(ISERROR(AVERAGE(OFFSET(E71,0,0,window_size,1))), IF(COUNTBLANK(OFFSET(E71,0,0,window_size_max-1))=window_size_max-1,"",MAX(OFFSET(D71,0,0,window_size_max-1))), VLOOKUP(A70,Calendar!$A$2:$D$2598,3)*AVERAGE(OFFSET(E71,0,0,window_size,1))+MAX(OFFSET(D71,0,0,window_size_max-1))))) ->  | G70: 504279 | H70: 836134.9346 | I70: 581411.8012 | J70: 214 | K70: 622848.7243 | L70: 2268687 | M70: 3953004.8 | N70: =IF(VLOOKUP(A70,Calendar!A:E,5,FALSE)=0,"",IF(ISERROR(O70),minIMSM+add_margin,CEILING(MAX(OFFSET(M70,O70,0),OFFSET(L70,O70,0),minIMSM)+add_margin,roundto))) -> 4010000 | O70: =IF(INDIRECT("Calendar!E"&MATCH($A70,Calendar!A:A,0)-1),0,IF(INDIRECT("Calendar!E"&MATCH($A70,Calendar!A:A,0)-2),1,2)) -> 0
A71: 2022-02-25 | B71: 749778 | C71: 555003 | D71: 749778 | F71: =IF(ISERROR(MATCH($A71,Calendar!$A$2:$A$2598,0)),"", IF(VLOOKUP(A71,Calendar!$A$2:$D$2598,3)=0,"", IF(ISERROR(AVERAGE(OFFSET(E72,0,0,window_size,1))), IF(COUNTBLANK(OFFSET(E72,0,0,window_size_max-1))=window_size_max-1,"",MAX(OFFSET(D72,0,0,window_size_max-1))), VLOOKUP(A71,Calendar!$A$2:$D$2598,3)*AVERAGE(OFFSET(E72,0,0,window_size,1))+MAX(OFFSET(D72,0,0,window_size_max-1))))) ->  | G71: 555003 | H71: 834015.7991 | I71: 585494.234 | J71: 214 | K71: 627222.11 | L71: 2276626.652 | M71: 3953004.8 | N71: =IF(VLOOKUP(A71,Calendar!A:E,5,FALSE)=0,"",IF(ISERROR(O71),minIMSM+add_margin,CEILING(MAX(OFFSET(M71,O71,0),OFFSET(L71,O71,0),minIMSM)+add_margin,roundto))) -> 4010000 | O71: =IF(INDIRECT("Calendar!E"&MATCH($A71,Calendar!A:A,0)-1),0,IF(INDIRECT("Calendar!E"&MATCH($A71,Calendar!A:A,0)-2),1,2)) -> 0
A72: 2022-02-24 | B72: 530542 | C72: 379485 | D72: 530542 | E72: 530542 | F72: =IF(ISERROR(MATCH($A72,Calendar!$A$2:$A$2598,0)),"", IF(VLOOKUP(A72,Calendar!$A$2:$D$2598,3)=0,"", IF(ISERROR(AVERAGE(OFFSET(E73,0,0,window_size,1))), IF(COUNTBLANK(OFFSET(E73,0,0,window_size_max-1))=window_size_max-1,"",MAX(OFFSET(D73,0,0,window_size_max-1))), VLOOKUP(A72,Calendar!$A$2:$D$2598,3)*AVERAGE(OFFSET(E73,0,0,window_size,1))+MAX(OFFSET(D73,0,0,window_size_max-1))))) ->  | G72: 379485 | H72: 833140.3738 | I72: 587667.7979 | J72: 214 | K72: 629550.5826 | L72: 2281106.714 | M72: 3953004.8 | N72: =IF(VLOOKUP(A72,Calendar!A:E,5,FALSE)=0,"",IF(ISERROR(O72),minIMSM+add_margin,CEILING(MAX(OFFSET(M72,O72,0),OFFSET(L72,O72,0),minIMSM)+add_margin,roundto))) -> 4010000 | O72: =IF(INDIRECT("Calendar!E"&MATCH($A72,Calendar!A:A,0)-1),0,IF(INDIRECT("Calendar!E"&MATCH($A72,Calendar!A:A,0)-2),1,2)) -> 0
A73: 2022-02-23 | B73: 1303974 | C73: 1356436 | D73: 1303974 | E73: 1303974 | F73: =IF(ISERROR(MATCH($A73,Calendar!$A$2:$A$2598,0)),"", IF(VLOOKUP(A73,Calendar!$A$2:$D$2598,3)=0,"", IF(ISERROR(AVERAGE(OFFSET(E74,0,0,window_size,1))), IF(COUNTBLANK(OFFSET(E74,0,0,window_size_max-1))=window_size_max-1,"",MAX(OFFSET(D74,0,0,window_size_max-1))), VLOOKUP(A73,Calendar!$A$2:$D$2598,3)*AVERAGE(OFFSET(E74,0,0,window_size,1))+MAX(OFFSET(D74,0,0,window_size_max-1))))) ->  | G73: 1356436 | H73: 823276.5748 | I73: 583844.8634 | J73: 214 | K73: 625455.1896 | L73: 2261823.511 | M73: 3953004.8 | N73: =IF(VLOOKUP(A73,Calendar!A:E,5,FALSE)=0,"",IF(ISERROR(O73),minIMSM+add_margin,CEILING(MAX(OFFSET(M73,O73,0),OFFSET(L73,O73,0),minIMSM)+add_margin,roundto))) -> 4010000 | O73: =IF(INDIRECT("Calendar!E"&MATCH($A73,Calendar!A:A,0)-1),0,IF(INDIRECT("Calendar!E"&MATCH($A73,Calendar!A:A,0)-2),1,2)) -> 0
A74: 2022-02-22 | B74: 1668819 | C74: 639812 | D74: 1668819 | E74: 1668819 | F74: =IF(ISERROR(MATCH($A74,Calendar!$A$2:$A$2598,0)),"", IF(VLOOKUP(A74,Calendar!$A$2:$D$2598,3)=0,"", IF(ISERROR(AVERAGE(OFFSET(E75,0,0,window_size,1))), IF(COUNTBLANK(OFFSET(E75,0,0,window_size_max-1))=window_size_max-1,"",MAX(OFFSET(D75,0,0,window_size_max-1))), VLOOKUP(A74,Calendar!$A$2:$D$2598,3)*AVERAGE(OFFSET(E75,0,0,window_size,1))+MAX(OFFSET(D75,0,0,window_size_max-1))))) ->  | G74: 639812 | H74: 821574.4813 | I74: 587323.9991 | J74: 214 | K74: 629182.2816 | L74: 2268693.729 | M74: 3953004.8 | N74: =IF(VLOOKUP(A74,Calendar!A:E,5,FALSE)=0,"",IF(ISERROR(O74),minIMSM+add_margin,CEILING(MAX(OFFSET(M74,O74,0),OFFSET(L74,O74,0),minIMSM)+add_margin,roundto))) -> 4010000 | O74: =IF(INDIRECT("Calendar!E"&MATCH($A74,Calendar!A:A,0)-1),0,IF(INDIRECT("Calendar!E"&MATCH($A74,Calendar!A:A,0)-2),1,2)) -> 0
A75: 2022-02-21 | B75: 859618 | C75: 611591 | D75: 859618 | F75: =IF(ISERROR(MATCH($A75,Calendar!$A$2:$A$2598,0)),"", IF(VLOOKUP(A75,Calendar!$A$2:$D$2598,3)=0,"", IF(ISERROR(AVERAGE(OFFSET(E76,0,0,window_size,1))), IF(COUNTBLANK(OFFSET(E76,0,0,window_size_max-1))=window_size_max-1,"",MAX(OFFSET(D76,0,0,window_size_max-1))), VLOOKUP(A75,Calendar!$A$2:$D$2598,3)*AVERAGE(OFFSET(E76,0,0,window_size,1))+MAX(OFFSET(D76,0,0,window_size_max-1))))) ->  | G75: =IF(AND(F75<>"",$J$3="YES",F75>minIMSM),F75,IF(C75>minIMSM,C75,"")) -> 611591 | H75: =IF($A75="","",IFERROR((AVERAGE(G76,INDIRECT("D" & ROW(A77) & ":D" & ROW(A77) + window_size-2))),0)) -> 818307.6308 | I75: 590956.2483 | J75: 214 | K75: 633073.3993 | L75: =IF($A75="","",H75+alpha*K75) -> 2274376.449 | M75: =IF($A75="","",beta*MAX(G76,INDIRECT("B" & ROW(A77) & ":B" & ROW(A77) + window_size_max-2))) -> 3953004.8 | N75: =IF(VLOOKUP(A75,Calendar!A:E,5,FALSE)=0,"",IF(ISERROR(O75),minIMSM+add_margin,CEILING(MAX(OFFSET(M75,O75,0),OFFSET(L75,O75,0),minIMSM)+add_margin,roundto))) -> 4010000 | O75: =IF(INDIRECT("Calendar!E"&MATCH($A75,Calendar!A:A,0)-1),0,IF(INDIRECT("Calendar!E"&MATCH($A75,Calendar!A:A,0)-2),1,2)) -> 0
A76: 2022-02-18 | B76: 956969 | C76: 740737 | D76: =IF(B76>minIMSM,B76,"") -> 956969 | E76: =IF(OR(A76=$A$11,A76=""),"",IF(AND(A75-A76=1,A76-A77=1),D76,"")) ->  | F76: =IF(ISERROR(MATCH($A76,Calendar!$A$2:$A$2598,0)),"", IF(VLOOKUP(A76,Calendar!$A$2:$D$2598,3)=0,"", IF(ISERROR(AVERAGE(OFFSET(E77,0,0,window_size,1))), IF(COUNTBLANK(OFFSET(E77,0,0,window_size_max-1))=window_size_max-1,"",MAX(OFFSET(D77,0,0,window_size_max-1))), VLOOKUP(A76,Calendar!$A$2:$D$2598,3)*AVERAGE(OFFSET(E77,0,0,window_size,1))+MAX(OFFSET(D77,0,0,window_size_max-1))))) ->  | G76: 740737 | H76: 814969.229 | I76: 593338.5277 | J76: 214 | K76: 635625.4625 | L76: 2276907.793 | M76: 3953004.8 | N76: =IF(VLOOKUP(A76,Calendar!A:E,5,FALSE)=0,"",IF(ISERROR(O76),minIMSM+add_margin,CEILING(MAX(OFFSET(M76,O76,0),OFFSET(L76,O76,0),minIMSM)+add_margin,roundto))) -> 4010000 | O76: =IF(INDIRECT("Calendar!E"&MATCH($A76,Calendar!A:A,0)-1),0,IF(INDIRECT("Calendar!E"&MATCH($A76,Calendar!A:A,0)-2),1,2)) -> 0
A77: 2022-02-17 | B77: 1200186 | C77: 768569 | D77: 1200186 | E77: 1200186 | F77: =IF(ISERROR(MATCH($A77,Calendar!$A$2:$A$2598,0)),"", IF(VLOOKUP(A77,Calendar!$A$2:$D$2598,3)=0,"", IF(ISERROR(AVERAGE(OFFSET(E78,0,0,window_size,1))), IF(COUNTBLANK(OFFSET(E78,0,0,window_size_max-1))=window_size_max-1,"",MAX(OFFSET(D78,0,0,window_size_max-1))), VLOOKUP(A77,Calendar!$A$2:$D$2598,3)*AVERAGE(OFFSET(E78,0,0,window_size,1))+MAX(OFFSET(D78,0,0,window_size_max-1))))) ->  | G77: 768569 | H77: 812805.0234 | I77: 593810.7747 | J77: 214 | K77: 636131.3663 | L77: 2275907.166 | M77: 3953004.8 | N77: =IF(VLOOKUP(A77,Calendar!A:E,5,FALSE)=0,"",IF(ISERROR(O77),minIMSM+add_margin,CEILING(MAX(OFFSET(M77,O77,0),OFFSET(L77,O77,0),minIMSM)+add_margin,roundto))) -> 4010000 | O77: =IF(INDIRECT("Calendar!E"&MATCH($A77,Calendar!A:A,0)-1),0,IF(INDIRECT("Calendar!E"&MATCH($A77,Calendar!A:A,0)-2),1,2)) -> 0
A78: 2022-02-16 | B78: 1552882 | C78: 1292183 | D78: 1552882 | E78: 1552882 | F78: =IF(ISERROR(MATCH($A78,Calendar!$A$2:$A$2598,0)),"", IF(VLOOKUP(A78,Calendar!$A$2:$D$2598,3)=0,"", IF(ISERROR(AVERAGE(OFFSET(E79,0,0,window_size,1))), IF(COUNTBLANK(OFFSET(E79,0,0,window_size_max-1))=window_size_max-1,"",MAX(OFFSET(D79,0,0,window_size_max-1))), VLOOKUP(A78,Calendar!$A$2:$D$2598,3)*AVERAGE(OFFSET(E79,0,0,window_size,1))+MAX(OFFSET(D79,0,0,window_size_max-1))))) ->  | G78: 1292183 | H78: 805066.0093 | I78: 595643.8671 | J78: 214 | K78: 638095.1023 | L78: 2272684.745 | M78: 3953004.8 | N78: =IF(VLOOKUP(A78,Calendar!A:E,5,FALSE)=0,"",IF(ISERROR(O78),minIMSM+add_margin,CEILING(MAX(OFFSET(M78,O78,0),OFFSET(L78,O78,0),minIMSM)+add_margin,roundto))) -> 4010000 | O78: =IF(INDIRECT("Calendar!E"&MATCH($A78,Calendar!A:A,0)-1),0,IF(INDIRECT("Calendar!E"&MATCH($A78,Calendar!A:A,0)-2),1,2)) -> 0
A79: 2022-02-15 | B79: 1326920 | C79: 347774 | D79: 1326920 | E79: 1326920 | F79: =IF(ISERROR(MATCH($A79,Calendar!$A$2:$A$2598,0)),"", IF(VLOOKUP(A79,Calendar!$A$2:$D$2598,3)=0,"", IF(ISERROR(AVERAGE(OFFSET(E80,0,0,window_size,1))), IF(COUNTBLANK(OFFSET(E80,0,0,window_size_max-1))=window_size_max-1,"",MAX(OFFSET(D80,0,0,window_size_max-1))), VLOOKUP(A79,Calendar!$A$2:$D$2598,3)*AVERAGE(OFFSET(E80,0,0,window_size,1))+MAX(OFFSET(D80,0,0,window_size_max-1))))) ->  | G79: 347774 | H79: 805007.0467 | I79: 596912.2259 | J79: 214 | K79: 639453.8563 | L79: 2275750.916 | M79: 3953004.8 | N79: =IF(VLOOKUP(A79,Calendar!A:E,5,FALSE)=0,"",IF(ISERROR(O79),minIMSM+add_margin,CEILING(MAX(OFFSET(M79,O79,0),OFFSET(L79,O79,0),minIMSM)+add_margin,roundto))) -> 4010000 | O79: =IF(INDIRECT("Calendar!E"&MATCH($A79,Calendar!A:A,0)-1),0,IF(INDIRECT("Calendar!E"&MATCH($A79,Calendar!A:A,0)-2),1,2)) -> 0
A80: 2022-02-14 | B80: 796063 | C80: 703653 | D80: 796063 | F80: =IF(ISERROR(MATCH($A80,Calendar!$A$2:$A$2598,0)),"", IF(VLOOKUP(A80,Calendar!$A$2:$D$2598,3)=0,"", IF(ISERROR(AVERAGE(OFFSET(E81,0,0,window_size,1))), IF(COUNTBLANK(OFFSET(E81,0,0,window_size_max-1))=window_size_max-1,"",MAX(OFFSET(D81,0,0,window_size_max-1))), VLOOKUP(A80,Calendar!$A$2:$D$2598,3)*AVERAGE(OFFSET(E81,0,0,window_size,1))+MAX(OFFSET(D81,0,0,window_size_max-1))))) ->  | G80: 703653 | H80: 803453.3709 | I80: 597202.094 | J80: 213 | K80: 639851.4525 | L80: 2275111.712 | M80: 3953004.8 | N80: =IF(VLOOKUP(A80,Calendar!A:E,5,FALSE)=0,"",IF(ISERROR(O80),minIMSM+add_margin,CEILING(MAX(OFFSET(M80,O80,0),OFFSET(L80,O80,0),minIMSM)+add_margin,roundto))) -> 4010000 | O80: =IF(INDIRECT("Calendar!E"&MATCH($A80,Calendar!A:A,0)-1),0,IF(INDIRECT("Calendar!E"&MATCH($A80,Calendar!A:A,0)-2),1,2)) -> 0
A81: 2022-02-11 | B81: 1427988 | C81: 995701 | D81: 1427988 | F81: =IF(ISERROR(MATCH($A81,Calendar!$A$2:$A$2598,0)),"", IF(VLOOKUP(A81,Calendar!$A$2:$D$2598,3)=0,"", IF(ISERROR(AVERAGE(OFFSET(E82,0,0,window_size,1))), IF(COUNTBLANK(OFFSET(E82,0,0,window_size_max-1))=window_size_max-1,"",MAX(OFFSET(D82,0,0,window_size_max-1))), VLOOKUP(A81,Calendar!$A$2:$D$2598,3)*AVERAGE(OFFSET(E82,0,0,window_size,1))+MAX(OFFSET(D82,0,0,window_size_max-1))))) ->  | G81: 995701 | H81: 799637.5775 | I81: 601174.1242 | J81: 213 | K81: 644107.1463 | L81: 2281084.014 | M81: 3953004.8 | N81: =IF(VLOOKUP(A81,Calendar!A:E,5,FALSE)=0,"",IF(ISERROR(O81),minIMSM+add_margin,CEILING(MAX(OFFSET(M81,O81,0),OFFSET(L81,O81,0),minIMSM)+add_margin,roundto))) -> 4010000 | O81: =IF(INDIRECT("Calendar!E"&MATCH($A81,Calendar!A:A,0)-1),0,IF(INDIRECT("Calendar!E"&MATCH($A81,Calendar!A:A,0)-2),1,2)) -> 0
A82: 2022-02-10 | B82: 928174 | C82: 538325 | D82: 928174 | E82: 928174 | F82: =IF(ISERROR(MATCH($A82,Calendar!$A$2:$A$2598,0)),"", IF(VLOOKUP(A82,Calendar!$A$2:$D$2598,3)=0,"", IF(ISERROR(AVERAGE(OFFSET(E83,0,0,window_size,1))), IF(COUNTBLANK(OFFSET(E83,0,0,window_size_max-1))=window_size_max-1,"",MAX(OFFSET(D83,0,0,window_size_max-1))), VLOOKUP(A82,Calendar!$A$2:$D$2598,3)*AVERAGE(OFFSET(E83,0,0,window_size,1))+MAX(OFFSET(D83,0,0,window_size_max-1))))) ->  | G82: 538325 | H82: 799086.6009 | I82: 600311.6759 | J82: 213 | K82: 643183.1061 | L82: 2278407.745 | M82: 3953004.8 | N82: =IF(VLOOKUP(A82,Calendar!A:E,5,FALSE)=0,"",IF(ISERROR(O82),minIMSM+add_margin,CEILING(MAX(OFFSET(M82,O82,0),OFFSET(L82,O82,0),minIMSM)+add_margin,roundto))) -> 4010000 | O82: =IF(INDIRECT("Calendar!E"&MATCH($A82,Calendar!A:A,0)-1),0,IF(INDIRECT("Calendar!E"&MATCH($A82,Calendar!A:A,0)-2),1,2)) -> 0
A83: 2022-02-09 | B83: 1902723 | C83: 1724674 | D83: 1902723 | E83: 1902723 | F83: =IF(ISERROR(MATCH($A83,Calendar!$A$2:$A$2598,0)),"", IF(VLOOKUP(A83,Calendar!$A$2:$D$2598,3)=0,"", IF(ISERROR(AVERAGE(OFFSET(E84,0,0,window_size,1))), IF(COUNTBLANK(OFFSET(E84,0,0,window_size_max-1))=window_size_max-1,"",MAX(OFFSET(D84,0,0,window_size_max-1))), VLOOKUP(A83,Calendar!$A$2:$D$2598,3)*AVERAGE(OFFSET(E84,0,0,window_size,1))+MAX(OFFSET(D84,0,0,window_size_max-1))))) ->  | G83: 1724674 | H83: 790995.9906 | I83: 584233.4991 | J83: 213 | K83: 625956.7017 | L83: 2230696.405 | M83: 3953004.8 | N83: =IF(VLOOKUP(A83,Calendar!A:E,5,FALSE)=0,"",IF(ISERROR(O83),minIMSM+add_margin,CEILING(MAX(OFFSET(M83,O83,0),OFFSET(L83,O83,0),minIMSM)+add_margin,roundto))) -> 4010000 | O83: =IF(INDIRECT("Calendar!E"&MATCH($A83,Calendar!A:A,0)-1),0,IF(INDIRECT("Calendar!E"&MATCH($A83,Calendar!A:A,0)-2),1,2)) -> 0
A84: 2022-02-08 | B84: 1955406 | C84: 642623 | D84: 1955406 | E84: 1955406 | F84: =IF(ISERROR(MATCH($A84,Calendar!$A$2:$A$2598,0)),"", IF(VLOOKUP(A84,Calendar!$A$2:$D$2598,3)=0,"", IF(ISERROR(AVERAGE(OFFSET(E85,0,0,window_size,1))), IF(COUNTBLANK(OFFSET(E85,0,0,window_size_max-1))=window_size_max-1,"",MAX(OFFSET(D85,0,0,window_size_max-1))), VLOOKUP(A84,Calendar!$A$2:$D$2598,3)*AVERAGE(OFFSET(E85,0,0,window_size,1))+MAX(OFFSET(D85,0,0,window_size_max-1))))) ->  | G84: 642623 | H84: 787730.1925 | I84: 589617.0563 | J84: 213 | K84: 631724.7271 | L84: 2240697.065 | M84: 3953004.8 | N84: =IF(VLOOKUP(A84,Calendar!A:E,5,FALSE)=0,"",IF(ISERROR(O84),minIMSM+add_margin,CEILING(MAX(OFFSET(M84,O84,0),OFFSET(L84,O84,0),minIMSM)+add_margin,roundto))) -> 4010000 | O84: =IF(INDIRECT("Calendar!E"&MATCH($A84,Calendar!A:A,0)-1),0,IF(INDIRECT("Calendar!E"&MATCH($A84,Calendar!A:A,0)-2),1,2)) -> 0
A85: 2022-02-07 | B85: 804904 | C85: 345668 | D85: 804904 | F85: =IF(ISERROR(MATCH($A85,Calendar!$A$2:$A$2598,0)),"", IF(VLOOKUP(A85,Calendar!$A$2:$D$2598,3)=0,"", IF(ISERROR(AVERAGE(OFFSET(E86,0,0,window_size,1))), IF(COUNTBLANK(OFFSET(E86,0,0,window_size_max-1))=window_size_max-1,"",MAX(OFFSET(D86,0,0,window_size_max-1))), VLOOKUP(A85,Calendar!$A$2:$D$2598,3)*AVERAGE(OFFSET(E86,0,0,window_size,1))+MAX(OFFSET(D86,0,0,window_size_max-1))))) ->  | G85: 345668 | H85: 786609 | I85: 591518.3694 | J85: 213 | K85: 633761.823 | L85: 2244261.193 | M85: 3953004.8 | N85: =IF(VLOOKUP(A85,Calendar!A:E,5,FALSE)=0,"",IF(ISERROR(O85),minIMSM+add_margin,CEILING(MAX(OFFSET(M85,O85,0),OFFSET(L85,O85,0),minIMSM)+add_margin,roundto))) -> 4010000 | O85: =IF(INDIRECT("Calendar!E"&MATCH($A85,Calendar!A:A,0)-1),0,IF(INDIRECT("Calendar!E"&MATCH($A85,Calendar!A:A,0)-2),1,2)) -> 0
A86: 2022-02-04 | B86: 699213 | C86: 617360 | D86: 699213 | F86: =IF(ISERROR(MATCH($A86,Calendar!$A$2:$A$2598,0)),"", IF(VLOOKUP(A86,Calendar!$A$2:$D$2598,3)=0,"", IF(ISERROR(AVERAGE(OFFSET(E87,0,0,window_size,1))), IF(COUNTBLANK(OFFSET(E87,0,0,window_size_max-1))=window_size_max-1,"",MAX(OFFSET(D87,0,0,window_size_max-1))), VLOOKUP(A86,Calendar!$A$2:$D$2598,3)*AVERAGE(OFFSET(E87,0,0,window_size,1))+MAX(OFFSET(D87,0,0,window_size_max-1))))) ->  | G86: 617360 | H86: 785375.0189 | I86: 594857.9265 | J86: 212 | K86: 637373.4883 | L86: 2251334.042 | M86: 3953004.8 | N86: =IF(VLOOKUP(A86,Calendar!A:E,5,FALSE)=0,"",IF(ISERROR(O86),minIMSM+add_margin,CEILING(MAX(OFFSET(M86,O86,0),OFFSET(L86,O86,0),minIMSM)+add_margin,roundto))) -> 4010000 | O86: =IF(INDIRECT("Calendar!E"&MATCH($A86,Calendar!A:A,0)-1),0,IF(INDIRECT("Calendar!E"&MATCH($A86,Calendar!A:A,0)-2),1,2)) -> 0
A87: 2022-02-03 | B87: 1001213 | C87: 570360 | D87: 1001213 | E87: 1001213 | F87: =IF(ISERROR(MATCH($A87,Calendar!$A$2:$A$2598,0)),"", IF(VLOOKUP(A87,Calendar!$A$2:$D$2598,3)=0,"", IF(ISERROR(AVERAGE(OFFSET(E88,0,0,window_size,1))), IF(COUNTBLANK(OFFSET(E88,0,0,window_size_max-1))=window_size_max-1,"",MAX(OFFSET(D88,0,0,window_size_max-1))), VLOOKUP(A87,Calendar!$A$2:$D$2598,3)*AVERAGE(OFFSET(E88,0,0,window_size,1))+MAX(OFFSET(D88,0,0,window_size_max-1))))) ->  | G87: 570360 | H87: 784471.4834 | I87: 586528.9282 | J87: 211 | K87: 628443.0689 | L87: 2229890.542 | M87: 3953004.8 | N87: =IF(VLOOKUP(A87,Calendar!A:E,5,FALSE)=0,"",IF(ISERROR(O87),minIMSM+add_margin,CEILING(MAX(OFFSET(M87,O87,0),OFFSET(L87,O87,0),minIMSM)+add_margin,roundto))) -> 4010000 | O87: =IF(INDIRECT("Calendar!E"&MATCH($A87,Calendar!A:A,0)-1),0,IF(INDIRECT("Calendar!E"&MATCH($A87,Calendar!A:A,0)-2),1,2)) -> 0
A88: 2022-02-02 | B88: 2460140 | C88: 2054479 | D88: 2460140 | E88: 2460140 | F88: =IF(ISERROR(MATCH($A88,Calendar!$A$2:$A$2598,0)),"", IF(VLOOKUP(A88,Calendar!$A$2:$D$2598,3)=0,"", IF(ISERROR(AVERAGE(OFFSET(E89,0,0,window_size,1))), IF(COUNTBLANK(OFFSET(E89,0,0,window_size_max-1))=window_size_max-1,"",MAX(OFFSET(D89,0,0,window_size_max-1))), VLOOKUP(A88,Calendar!$A$2:$D$2598,3)*AVERAGE(OFFSET(E89,0,0,window_size,1))+MAX(OFFSET(D89,0,0,window_size_max-1))))) ->  | G88: 2054479 | H88: 767670.91 | I88: 547713.4694 | J88: 211 | K88: 586853.8056 | L88: 2117434.663 | M88: 3861900.8 | N88: =IF(VLOOKUP(A88,Calendar!A:E,5,FALSE)=0,"",IF(ISERROR(O88),minIMSM+add_margin,CEILING(MAX(OFFSET(M88,O88,0),OFFSET(L88,O88,0),minIMSM)+add_margin,roundto))) -> 3920000 | O88: =IF(INDIRECT("Calendar!E"&MATCH($A88,Calendar!A:A,0)-1),0,IF(INDIRECT("Calendar!E"&MATCH($A88,Calendar!A:A,0)-2),1,2)) -> 0
A89: 2022-02-01 | B89: 2470628 | C89: 761079 | D89: 2470628 | E89: 2470628 | F89: =IF(ISERROR(MATCH($A89,Calendar!$A$2:$A$2598,0)),"", IF(VLOOKUP(A89,Calendar!$A$2:$D$2598,3)=0,"", IF(ISERROR(AVERAGE(OFFSET(E90,0,0,window_size,1))), IF(COUNTBLANK(OFFSET(E90,0,0,window_size_max-1))=window_size_max-1,"",MAX(OFFSET(D90,0,0,window_size_max-1))), VLOOKUP(A89,Calendar!$A$2:$D$2598,3)*AVERAGE(OFFSET(E90,0,0,window_size,1))+MAX(OFFSET(D90,0,0,window_size_max-1))))) ->  | G89: 761079 | H89: 762002.0047 | I89: 550173.4755 | J89: 211 | K89: 589489.607 | L89: 2117828.101 | M89: 3861900.8 | N89: =IF(VLOOKUP(A89,Calendar!A:E,5,FALSE)=0,"",IF(ISERROR(O89),minIMSM+add_margin,CEILING(MAX(OFFSET(M89,O89,0),OFFSET(L89,O89,0),minIMSM)+add_margin,roundto))) -> 3920000 | O89: =IF(INDIRECT("Calendar!E"&MATCH($A89,Calendar!A:A,0)-1),0,IF(INDIRECT("Calendar!E"&MATCH($A89,Calendar!A:A,0)-2),1,2)) -> 0
A90: 2022-01-31 | B90: 1216464 | C90: 546597 | D90: =IF(B90>minIMSM,B90,"") -> 1216464 | E90: =IF(OR(A90=$A$11,A90=""),"",IF(AND(A89-A90=1,A90-A91=1),D90,"")) ->  | F90: =IF(ISERROR(MATCH($A90,Calendar!$A$2:$A$2598,0)),"", IF(VLOOKUP(A90,Calendar!$A$2:$D$2598,3)=0,"", IF(ISERROR(AVERAGE(OFFSET(E91,0,0,window_size,1))), IF(COUNTBLANK(OFFSET(E91,0,0,window_size_max-1))=window_size_max-1,"",MAX(OFFSET(D91,0,0,window_size_max-1))), VLOOKUP(A90,Calendar!$A$2:$D$2598,3)*AVERAGE(OFFSET(E91,0,0,window_size,1))+MAX(OFFSET(D91,0,0,window_size_max-1))))) ->  | G90: 546597 | H90: 760813.4429 | I90: 549670.2023 | J90: 210 | K90: 588965.6955 | L90: =IF($A90="","",H90+alpha*K90) -> 2115434.543 | M90: 3861900.8 | N90: =IF(VLOOKUP(A90,Calendar!A:E,5,FALSE)=0,"",IF(ISERROR(O90),minIMSM+add_margin,CEILING(MAX(OFFSET(M90,O90,0),OFFSET(L90,O90,0),minIMSM)+add_margin,roundto))) -> 3920000 | O90: =IF(INDIRECT("Calendar!E"&MATCH($A90,Calendar!A:A,0)-1),0,IF(INDIRECT("Calendar!E"&MATCH($A90,Calendar!A:A,0)-2),1,2)) -> 0
A91: 2022-01-28 | B91: 1345630 | C91: 880627 | D91: 1345630 | F91: =IF(ISERROR(MATCH($A91,Calendar!$A$2:$A$2598,0)),"", IF(VLOOKUP(A91,Calendar!$A$2:$D$2598,3)=0,"", IF(ISERROR(AVERAGE(OFFSET(E92,0,0,window_size,1))), IF(COUNTBLANK(OFFSET(E92,0,0,window_size_max-1))=window_size_max-1,"",MAX(OFFSET(D92,0,0,window_size_max-1))), VLOOKUP(A91,Calendar!$A$2:$D$2598,3)*AVERAGE(OFFSET(E92,0,0,window_size,1))+MAX(OFFSET(D92,0,0,window_size_max-1))))) ->  | G91: 880627 | H91: 754949.019 | I91: 546043.0994 | J91: 210 | K91: 585079.2938 | L91: 2100631.395 | M91: 3861900.8 | N91: =IF(VLOOKUP(A91,Calendar!A:E,5,FALSE)=0,"",IF(ISERROR(O91),minIMSM+add_margin,CEILING(MAX(OFFSET(M91,O91,0),OFFSET(L91,O91,0),minIMSM)+add_margin,roundto))) -> 3920000 | O91: =IF(INDIRECT("Calendar!E"&MATCH($A91,Calendar!A:A,0)-1),0,IF(INDIRECT("Calendar!E"&MATCH($A91,Calendar!A:A,0)-2),1,2)) -> 0
A92: 2022-01-27 | B92: 1603548 | C92: 834068 | D92: 1603548 | E92: 1603548 | F92: =IF(ISERROR(MATCH($A92,Calendar!$A$2:$A$2598,0)),"", IF(VLOOKUP(A92,Calendar!$A$2:$D$2598,3)=0,"", IF(ISERROR(AVERAGE(OFFSET(E93,0,0,window_size,1))), IF(COUNTBLANK(OFFSET(E93,0,0,window_size_max-1))=window_size_max-1,"",MAX(OFFSET(D93,0,0,window_size_max-1))), VLOOKUP(A92,Calendar!$A$2:$D$2598,3)*AVERAGE(OFFSET(E93,0,0,window_size,1))+MAX(OFFSET(D93,0,0,window_size_max-1))))) ->  | G92: 834068 | H92: 752042.3923 | I92: 534055.7338 | J92: 209 | K92: 572307.2253 | L92: 2068349.011 | M92: 3569328 | N92: =IF(VLOOKUP(A92,Calendar!A:E,5,FALSE)=0,"",IF(ISERROR(O92),minIMSM+add_margin,CEILING(MAX(OFFSET(M92,O92,0),OFFSET(L92,O92,0),minIMSM)+add_margin,roundto))) -> 3620000 | O92: =IF(INDIRECT("Calendar!E"&MATCH($A92,Calendar!A:A,0)-1),0,IF(INDIRECT("Calendar!E"&MATCH($A92,Calendar!A:A,0)-2),1,2)) -> 0
A93: 2022-01-26 | B93: 2413688 | C93: 1885322 | D93: 2413688 | E93: 2413688 | F93: =IF(ISERROR(MATCH($A93,Calendar!$A$2:$A$2598,0)),"", IF(VLOOKUP(A93,Calendar!$A$2:$D$2598,3)=0,"", IF(ISERROR(AVERAGE(OFFSET(E94,0,0,window_size,1))), IF(COUNTBLANK(OFFSET(E94,0,0,window_size_max-1))=window_size_max-1,"",MAX(OFFSET(D94,0,0,window_size_max-1))), VLOOKUP(A93,Calendar!$A$2:$D$2598,3)*AVERAGE(OFFSET(E94,0,0,window_size,1))+MAX(OFFSET(D94,0,0,window_size_max-1))))) ->  | G93: 1885322 | H93: 737364.351 | I93: 502948.8826 | J93: 208 | K93: 539099.3344 | L93: 1977292.82 | M93: 3999868.8 | N93: =IF(VLOOKUP(A93,Calendar!A:E,5,FALSE)=0,"",IF(ISERROR(O93),minIMSM+add_margin,CEILING(MAX(OFFSET(M93,O93,0),OFFSET(L93,O93,0),minIMSM)+add_margin,roundto))) -> 4050000 | O93: =IF(INDIRECT("Calendar!E"&MATCH($A93,Calendar!A:A,0)-1),0,IF(INDIRECT("Calendar!E"&MATCH($A93,Calendar!A:A,0)-2),1,2)) -> 0
A94: 2022-01-25 | B94: 2224344 | C94: 304591 | D94: 2224344 | E94: 2224344 | F94: =IF(ISERROR(MATCH($A94,Calendar!$A$2:$A$2598,0)),"", IF(VLOOKUP(A94,Calendar!$A$2:$D$2598,3)=0,"", IF(ISERROR(AVERAGE(OFFSET(E95,0,0,window_size,1))), IF(COUNTBLANK(OFFSET(E95,0,0,window_size_max-1))=window_size_max-1,"",MAX(OFFSET(D95,0,0,window_size_max-1))), VLOOKUP(A94,Calendar!$A$2:$D$2598,3)*AVERAGE(OFFSET(E95,0,0,window_size,1))+MAX(OFFSET(D95,0,0,window_size_max-1))))) ->  | G94: 304591 | H94: 738256.8357 | I94: 503519.3607 | J94: 207 | K94: 539664.5145 | L94: 1979485.219 | M94: 3999868.8 | N94: =IF(VLOOKUP(A94,Calendar!A:E,5,FALSE)=0,"",IF(ISERROR(O94),minIMSM+add_margin,CEILING(MAX(OFFSET(M94,O94,0),OFFSET(L94,O94,0),minIMSM)+add_margin,roundto))) -> 4050000 | O94: =IF(INDIRECT("Calendar!E"&MATCH($A94,Calendar!A:A,0)-1),0,IF(INDIRECT("Calendar!E"&MATCH($A94,Calendar!A:A,0)-2),1,2)) -> 0
A95: 2022-01-24 | B95: 872389 | C95: 624360 | D95: 872389 | F95: =IF(ISERROR(MATCH($A95,Calendar!$A$2:$A$2598,0)),"", IF(VLOOKUP(A95,Calendar!$A$2:$D$2598,3)=0,"", IF(ISERROR(AVERAGE(OFFSET(E96,0,0,window_size,1))), IF(COUNTBLANK(OFFSET(E96,0,0,window_size_max-1))=window_size_max-1,"",MAX(OFFSET(D96,0,0,window_size_max-1))), VLOOKUP(A95,Calendar!$A$2:$D$2598,3)*AVERAGE(OFFSET(E96,0,0,window_size,1))+MAX(OFFSET(D96,0,0,window_size_max-1))))) ->  | G95: 624360 | H95: 736363.9417 | I95: 502505.1992 | J95: 206 | K95: 538666.9914 | L95: 1975298.022 | M95: 3999868.8 | N95: =IF(VLOOKUP(A95,Calendar!A:E,5,FALSE)=0,"",IF(ISERROR(O95),minIMSM+add_margin,CEILING(MAX(OFFSET(M95,O95,0),OFFSET(L95,O95,0),minIMSM)+add_margin,roundto))) -> 4050000 | O95: =IF(INDIRECT("Calendar!E"&MATCH($A95,Calendar!A:A,0)-1),0,IF(INDIRECT("Calendar!E"&MATCH($A95,Calendar!A:A,0)-2),1,2)) -> 0
A96: 2022-01-21 | B96: 1341073 | C96: 837240 | D96: 1341073 | F96: =IF(ISERROR(MATCH($A96,Calendar!$A$2:$A$2598,0)),"", IF(VLOOKUP(A96,Calendar!$A$2:$D$2598,3)=0,"", IF(ISERROR(AVERAGE(OFFSET(E97,0,0,window_size,1))), IF(COUNTBLANK(OFFSET(E97,0,0,window_size_max-1))=window_size_max-1,"",MAX(OFFSET(D97,0,0,window_size_max-1))), VLOOKUP(A96,Calendar!$A$2:$D$2598,3)*AVERAGE(OFFSET(E97,0,0,window_size,1))+MAX(OFFSET(D97,0,0,window_size_max-1))))) ->  | G96: 837240 | H96: 732342.1756 | I96: 507884.3331 | J96: 205 | K96: 544488.1556 | L96: 1984664.934 | M96: 3999868.8 | N96: =IF(VLOOKUP(A96,Calendar!A:E,5,FALSE)=0,"",IF(ISERROR(O96),minIMSM+add_margin,CEILING(MAX(OFFSET(M96,O96,0),OFFSET(L96,O96,0),minIMSM)+add_margin,roundto))) -> 4050000 | O96: =IF(INDIRECT("Calendar!E"&MATCH($A96,Calendar!A:A,0)-1),0,IF(INDIRECT("Calendar!E"&MATCH($A96,Calendar!A:A,0)-2),1,2)) -> 0
A97: 2022-01-20 | B97: 968244 | C97: 244658 | D97: 968244 | E97: 968244 | F97: =IF(ISERROR(MATCH($A97,Calendar!$A$2:$A$2598,0)),"", IF(VLOOKUP(A97,Calendar!$A$2:$D$2598,3)=0,"", IF(ISERROR(AVERAGE(OFFSET(E98,0,0,window_size,1))), IF(COUNTBLANK(OFFSET(E98,0,0,window_size_max-1))=window_size_max-1,"",MAX(OFFSET(D98,0,0,window_size_max-1))), VLOOKUP(A97,Calendar!$A$2:$D$2598,3)*AVERAGE(OFFSET(E98,0,0,window_size,1))+MAX(OFFSET(D98,0,0,window_size_max-1))))) ->  | G97: 244658 | H97: 734603.6373 | I97: 507091.1651 | J97: 204 | K97: 543655.5919 | L97: 1985011.499 | M97: 3999868.8 | N97: =IF(VLOOKUP(A97,Calendar!A:E,5,FALSE)=0,"",IF(ISERROR(O97),minIMSM+add_margin,CEILING(MAX(OFFSET(M97,O97,0),OFFSET(L97,O97,0),minIMSM)+add_margin,roundto))) -> 4050000 | O97: =IF(INDIRECT("Calendar!E"&MATCH($A97,Calendar!A:A,0)-1),0,IF(INDIRECT("Calendar!E"&MATCH($A97,Calendar!A:A,0)-2),1,2)) -> 0
A98: 2022-01-19 | B98: 1968512 | C98: 1942166 | D98: 1968512 | E98: 1968512 | F98: =IF(ISERROR(MATCH($A98,Calendar!$A$2:$A$2598,0)),"", IF(VLOOKUP(A98,Calendar!$A$2:$D$2598,3)=0,"", IF(ISERROR(AVERAGE(OFFSET(E99,0,0,window_size,1))), IF(COUNTBLANK(OFFSET(E99,0,0,window_size_max-1))=window_size_max-1,"",MAX(OFFSET(D99,0,0,window_size_max-1))), VLOOKUP(A98,Calendar!$A$2:$D$2598,3)*AVERAGE(OFFSET(E99,0,0,window_size,1))+MAX(OFFSET(D99,0,0,window_size_max-1))))) ->  | G98: 1942166 | H98: 719799.2167 | I98: 468663.1127 | J98: 203 | K98: 502423.9782 | L98: 1875374.367 | M98: 3999868.8 | N98: =IF(VLOOKUP(A98,Calendar!A:E,5,FALSE)=0,"",IF(ISERROR(O98),minIMSM+add_margin,CEILING(MAX(OFFSET(M98,O98,0),OFFSET(L98,O98,0),minIMSM)+add_margin,roundto))) -> 4050000 | O98: =IF(INDIRECT("Calendar!E"&MATCH($A98,Calendar!A:A,0)-1),0,IF(INDIRECT("Calendar!E"&MATCH($A98,Calendar!A:A,0)-2),1,2)) -> 0
A99: 2022-01-18 | B99: 2230830 | C99: 433095 | D99: 2230830 | E99: 2230830 | F99: =IF(ISERROR(MATCH($A99,Calendar!$A$2:$A$2598,0)),"", IF(VLOOKUP(A99,Calendar!$A$2:$D$2598,3)=0,"", IF(ISERROR(AVERAGE(OFFSET(E100,0,0,window_size,1))), IF(COUNTBLANK(OFFSET(E100,0,0,window_size_max-1))=window_size_max-1,"",MAX(OFFSET(D100,0,0,window_size_max-1))), VLOOKUP(A99,Calendar!$A$2:$D$2598,3)*AVERAGE(OFFSET(E100,0,0,window_size,1))+MAX(OFFSET(D100,0,0,window_size_max-1))))) ->  | G99: 433095 | H99: 720057.6584 | I99: 469711.9025 | J99: 202 | K99: 503679.635 | L99: 1878520.819 | M99: 3999868.8 | N99: =IF(VLOOKUP(A99,Calendar!A:E,5,FALSE)=0,"",IF(ISERROR(O99),minIMSM+add_margin,CEILING(MAX(OFFSET(M99,O99,0),OFFSET(L99,O99,0),minIMSM)+add_margin,roundto))) -> 4050000 | O99: =IF(INDIRECT("Calendar!E"&MATCH($A99,Calendar!A:A,0)-1),0,IF(INDIRECT("Calendar!E"&MATCH($A99,Calendar!A:A,0)-2),1,2)) -> 0
A100: 2022-01-17 | B100: 946304 | C100: 711805 | D100: 946304 | F100: =IF(ISERROR(MATCH($A100,Calendar!$A$2:$A$2598,0)),"", IF(VLOOKUP(A100,Calendar!$A$2:$D$2598,3)=0,"", IF(ISERROR(AVERAGE(OFFSET(E101,0,0,window_size,1))), IF(COUNTBLANK(OFFSET(E101,0,0,window_size_max-1))=window_size_max-1,"",MAX(OFFSET(D101,0,0,window_size_max-1))), VLOOKUP(A100,Calendar!$A$2:$D$2598,3)*AVERAGE(OFFSET(E101,0,0,window_size,1))+MAX(OFFSET(D101,0,0,window_size_max-1))))) ->  | G100: 711805 | H100: 717031.4527 | I100: 468332.629 | J100: 201 | K100: 502182.0788 | L100: 1872050.234 | M100: 3999868.8 | N100: =IF(VLOOKUP(A100,Calendar!A:E,5,FALSE)=0,"",IF(ISERROR(O100),minIMSM+add_margin,CEILING(MAX(OFFSET(M100,O100,0),OFFSET(L100,O100,0),minIMSM)+add_margin,roundto))) -> 4050000 | O100: =IF(INDIRECT("Calendar!E"&MATCH($A100,Calendar!A:A,0)-1),0,IF(INDIRECT("Calendar!E"&MATCH($A100,Calendar!A:A,0)-2),1,2)) -> 0
A101: 2022-01-14 | B101: 1317770 | C101: 701250 | D101: 1317770 | F101: =IF(ISERROR(MATCH($A101,Calendar!$A$2:$A$2598,0)),"", IF(VLOOKUP(A101,Calendar!$A$2:$D$2598,3)=0,"", IF(ISERROR(AVERAGE(OFFSET(E102,0,0,window_size,1))), IF(COUNTBLANK(OFFSET(E102,0,0,window_size_max-1))=window_size_max-1,"",MAX(OFFSET(D102,0,0,window_size_max-1))), VLOOKUP(A101,Calendar!$A$2:$D$2598,3)*AVERAGE(OFFSET(E102,0,0,window_size,1))+MAX(OFFSET(D102,0,0,window_size_max-1))))) ->  | G101: 701250 | H101: 715143.585 | I101: 472276.9152 | J101: 200 | K101: 506526.9023 | L101: 1880155.46 | M101: 3999868.8 | N101: =IF(VLOOKUP(A101,Calendar!A:E,5,FALSE)=0,"",IF(ISERROR(O101),minIMSM+add_margin,CEILING(MAX(OFFSET(M101,O101,0),OFFSET(L101,O101,0),minIMSM)+add_margin,roundto))) -> 4050000 | O101: =IF(INDIRECT("Calendar!E"&MATCH($A101,Calendar!A:A,0)-1),0,IF(INDIRECT("Calendar!E"&MATCH($A101,Calendar!A:A,0)-2),1,2)) -> 0
A102: 2022-01-13 | B102: 803357 | C102: 410002 | D102: 803357 | E102: 803357 | F102: =IF(ISERROR(MATCH($A102,Calendar!$A$2:$A$2598,0)),"", IF(VLOOKUP(A102,Calendar!$A$2:$D$2598,3)=0,"", IF(ISERROR(AVERAGE(OFFSET(E103,0,0,window_size,1))), IF(COUNTBLANK(OFFSET(E103,0,0,window_size_max-1))=window_size_max-1,"",MAX(OFFSET(D103,0,0,window_size_max-1))), VLOOKUP(A102,Calendar!$A$2:$D$2598,3)*AVERAGE(OFFSET(E103,0,0,window_size,1))+MAX(OFFSET(D103,0,0,window_size_max-1))))) ->  | G102: 410002 | H102: 715923.608 | I102: 472389.5496 | J102: 199 | K102: 506689.5928 | L102: 1881309.671 | M102: 3999868.8 | N102: =IF(VLOOKUP(A102,Calendar!A:E,5,FALSE)=0,"",IF(ISERROR(O102),minIMSM+add_margin,CEILING(MAX(OFFSET(M102,O102,0),OFFSET(L102,O102,0),minIMSM)+add_margin,roundto))) -> 4050000 | O102: =IF(INDIRECT("Calendar!E"&MATCH($A102,Calendar!A:A,0)-1),0,IF(INDIRECT("Calendar!E"&MATCH($A102,Calendar!A:A,0)-2),1,2)) -> 0
A103: 2022-01-12 | B103: 1177722 | C103: 1027805 | D103: 1177722 | E103: 1177722 | F103: =IF(ISERROR(MATCH($A103,Calendar!$A$2:$A$2598,0)),"", IF(VLOOKUP(A103,Calendar!$A$2:$D$2598,3)=0,"", IF(ISERROR(AVERAGE(OFFSET(E104,0,0,window_size,1))), IF(COUNTBLANK(OFFSET(E104,0,0,window_size_max-1))=window_size_max-1,"",MAX(OFFSET(D104,0,0,window_size_max-1))), VLOOKUP(A103,Calendar!$A$2:$D$2598,3)*AVERAGE(OFFSET(E104,0,0,window_size,1))+MAX(OFFSET(D104,0,0,window_size_max-1))))) ->  | G103: 1027805 | H103: 711757.0051 | I103: 477109.4958 | J103: 198 | K103: 511721.0355 | L103: 1888715.387 | M103: 3999868.8 | N103: =IF(VLOOKUP(A103,Calendar!A:E,5,FALSE)=0,"",IF(ISERROR(O103),minIMSM+add_margin,CEILING(MAX(OFFSET(M103,O103,0),OFFSET(L103,O103,0),minIMSM)+add_margin,roundto))) -> 4050000 | O103: =IF(INDIRECT("Calendar!E"&MATCH($A103,Calendar!A:A,0)-1),0,IF(INDIRECT("Calendar!E"&MATCH($A103,Calendar!A:A,0)-2),1,2)) -> 0
A104: 2022-01-11 | B104: 729622 | C104: -211009 | D104: 729622 | E104: 729622 | F104: =IF(ISERROR(MATCH($A104,Calendar!$A$2:$A$2598,0)),"", IF(VLOOKUP(A104,Calendar!$A$2:$D$2598,3)=0,"", IF(ISERROR(AVERAGE(OFFSET(E105,0,0,window_size,1))), IF(COUNTBLANK(OFFSET(E105,0,0,window_size_max-1))=window_size_max-1,"",MAX(OFFSET(D105,0,0,window_size_max-1))), VLOOKUP(A104,Calendar!$A$2:$D$2598,3)*AVERAGE(OFFSET(E105,0,0,window_size,1))+MAX(OFFSET(D105,0,0,window_size_max-1))))) ->  | H104: 708300.255 | I104: 477891.8567 | J104: 200 | K104: 512549.0449 | L104: 1887163.058 | M104: 3999868.8 | N104: =IF(VLOOKUP(A104,Calendar!A:E,5,FALSE)=0,"",IF(ISERROR(O104),minIMSM+add_margin,CEILING(MAX(OFFSET(M104,O104,0),OFFSET(L104,O104,0),minIMSM)+add_margin,roundto))) -> 4050000 | O104: =IF(INDIRECT("Calendar!E"&MATCH($A104,Calendar!A:A,0)-1),0,IF(INDIRECT("Calendar!E"&MATCH($A104,Calendar!A:A,0)-2),1,2)) -> 0
A105: 2022-01-10 | B105: -37355 | C105: 166244 | F105: =IF(ISERROR(MATCH($A105,Calendar!$A$2:$A$2598,0)),"", IF(VLOOKUP(A105,Calendar!$A$2:$D$2598,3)=0,"", IF(ISERROR(AVERAGE(OFFSET(E106,0,0,window_size,1))), IF(COUNTBLANK(OFFSET(E106,0,0,window_size_max-1))=window_size_max-1,"",MAX(OFFSET(D106,0,0,window_size_max-1))), VLOOKUP(A105,Calendar!$A$2:$D$2598,3)*AVERAGE(OFFSET(E106,0,0,window_size,1))+MAX(OFFSET(D106,0,0,window_size_max-1))))) ->  | G105: 166244 | H105: 710345.26 | I105: 477236.9733 | J105: 200 | K105: 511846.6687 | L105: 1887592.598 | M105: 3999868.8 | N105: =IF(VLOOKUP(A105,Calendar!A:E,5,FALSE)=0,"",IF(ISERROR(O105),minIMSM+add_margin,CEILING(MAX(OFFSET(M105,O105,0),OFFSET(L105,O105,0),minIMSM)+add_margin,roundto))) -> 4050000 | O105: =IF(INDIRECT("Calendar!E"&MATCH($A105,Calendar!A:A,0)-1),0,IF(INDIRECT("Calendar!E"&MATCH($A105,Calendar!A:A,0)-2),1,2)) -> 0
A106: 2022-01-07 | B106: 526693 | C106: 406053 | D106: 526693 | F106: =IF(ISERROR(MATCH($A106,Calendar!$A$2:$A$2598,0)),"", IF(VLOOKUP(A106,Calendar!$A$2:$D$2598,3)=0,"", IF(ISERROR(AVERAGE(OFFSET(E107,0,0,window_size,1))), IF(COUNTBLANK(OFFSET(E107,0,0,window_size_max-1))=window_size_max-1,"",MAX(OFFSET(D107,0,0,window_size_max-1))), VLOOKUP(A106,Calendar!$A$2:$D$2598,3)*AVERAGE(OFFSET(E107,0,0,window_size,1))+MAX(OFFSET(D107,0,0,window_size_max-1))))) ->  | G106: 406053 | H106: 708906.015 | I106: 479966.6551 | J106: 200 | K106: 514774.3098 | L106: 1892886.927 | M106: 3999868.8 | N106: =IF(VLOOKUP(A106,Calendar!A:E,5,FALSE)=0,"",IF(ISERROR(O106),minIMSM+add_margin,CEILING(MAX(OFFSET(M106,O106,0),OFFSET(L106,O106,0),minIMSM)+add_margin,roundto))) -> 4050000 | O106: =IF(INDIRECT("Calendar!E"&MATCH($A106,Calendar!A:A,0)-1),0,IF(INDIRECT("Calendar!E"&MATCH($A106,Calendar!A:A,0)-2),1,2)) -> 0
A107: 2022-01-06 | B107: 742408 | C107: 389214 | D107: 742408 | E107: 742408 | F107: =IF(ISERROR(MATCH($A107,Calendar!$A$2:$A$2598,0)),"", IF(VLOOKUP(A107,Calendar!$A$2:$D$2598,3)=0,"", IF(ISERROR(AVERAGE(OFFSET(E108,0,0,window_size,1))), IF(COUNTBLANK(OFFSET(E108,0,0,window_size_max-1))=window_size_max-1,"",MAX(OFFSET(D108,0,0,window_size_max-1))), VLOOKUP(A107,Calendar!$A$2:$D$2598,3)*AVERAGE(OFFSET(E108,0,0,window_size,1))+MAX(OFFSET(D108,0,0,window_size_max-1))))) ->  | G107: 389214 | H107: 706266.895 | I107: 476296.2797 | J107: 200 | K107: 510837.7551 | L107: 1881193.732 | M107: 3999868.8 | N107: =IF(VLOOKUP(A107,Calendar!A:E,5,FALSE)=0,"",IF(ISERROR(O107),minIMSM+add_margin,CEILING(MAX(OFFSET(M107,O107,0),OFFSET(L107,O107,0),minIMSM)+add_margin,roundto))) -> 4050000 | O107: =IF(INDIRECT("Calendar!E"&MATCH($A107,Calendar!A:A,0)-1),0,IF(INDIRECT("Calendar!E"&MATCH($A107,Calendar!A:A,0)-2),1,2)) -> 0
A108: 2022-01-05 | B108: 1504967 | C108: 1133773 | D108: 1504967 | E108: 1504967 | F108: =IF(ISERROR(MATCH($A108,Calendar!$A$2:$A$2598,0)),"", IF(VLOOKUP(A108,Calendar!$A$2:$D$2598,3)=0,"", IF(ISERROR(AVERAGE(OFFSET(E109,0,0,window_size,1))), IF(COUNTBLANK(OFFSET(E109,0,0,window_size_max-1))=window_size_max-1,"",MAX(OFFSET(D109,0,0,window_size_max-1))), VLOOKUP(A108,Calendar!$A$2:$D$2598,3)*AVERAGE(OFFSET(E109,0,0,window_size,1))+MAX(OFFSET(D109,0,0,window_size_max-1))))) ->  | G108: 1133773 | H108: 705032.61 | I108: 478174.3221 | J108: 200 | K108: 512851.995 | L108: 1884592.198 | M108: 3999868.8 | N108: =IF(VLOOKUP(A108,Calendar!A:E,5,FALSE)=0,"",IF(ISERROR(O108),minIMSM+add_margin,CEILING(MAX(OFFSET(M108,O108,0),OFFSET(L108,O108,0),minIMSM)+add_margin,roundto))) -> 4050000 | O108: =IF(INDIRECT("Calendar!E"&MATCH($A108,Calendar!A:A,0)-1),0,IF(INDIRECT("Calendar!E"&MATCH($A108,Calendar!A:A,0)-2),1,2)) -> 0
A109: 2022-01-04 | B109: 1277345 | C109: 207172 | D109: 1277345 | E109: 1277345 | F109: =IF(ISERROR(MATCH($A109,Calendar!$A$2:$A$2598,0)),"", IF(VLOOKUP(A109,Calendar!$A$2:$D$2598,3)=0,"", IF(ISERROR(AVERAGE(OFFSET(E110,0,0,window_size,1))), IF(COUNTBLANK(OFFSET(E110,0,0,window_size_max-1))=window_size_max-1,"",MAX(OFFSET(D110,0,0,window_size_max-1))), VLOOKUP(A109,Calendar!$A$2:$D$2598,3)*AVERAGE(OFFSET(E110,0,0,window_size,1))+MAX(OFFSET(D110,0,0,window_size_max-1))))) ->  | G109: 207172 | H109: 713675.32 | I109: 479747.2769 | J109: 200 | K109: 514539.022 | L109: 1897115.071 | M109: 3999868.8 | N109: =IF(VLOOKUP(A109,Calendar!A:E,5,FALSE)=0,"",IF(ISERROR(O109),minIMSM+add_margin,CEILING(MAX(OFFSET(M109,O109,0),OFFSET(L109,O109,0),minIMSM)+add_margin,roundto))) -> 4050000 | O109: =IF(INDIRECT("Calendar!E"&MATCH($A109,Calendar!A:A,0)-1),0,IF(INDIRECT("Calendar!E"&MATCH($A109,Calendar!A:A,0)-2),1,2)) -> 0
A110: 2022-01-03 | B110: 864398 | C110: 716258 | D110: 864398 | F110: =IF(ISERROR(MATCH($A110,Calendar!$A$2:$A$2598,0)),"", IF(VLOOKUP(A110,Calendar!$A$2:$D$2598,3)=0,"", IF(ISERROR(AVERAGE(OFFSET(E111,0,0,window_size,1))), IF(COUNTBLANK(OFFSET(E111,0,0,window_size_max-1))=window_size_max-1,"",MAX(OFFSET(D111,0,0,window_size_max-1))), VLOOKUP(A110,Calendar!$A$2:$D$2598,3)*AVERAGE(OFFSET(E111,0,0,window_size,1))+MAX(OFFSET(D111,0,0,window_size_max-1))))) ->  | G110: 716258 | H110: 711714.7688 | I110: 484867.9865 | J110: 199 | K110: 520074.0847 | L110: 1907885.164 | M110: 3999868.8 | N110: =IF(VLOOKUP(A110,Calendar!A:E,5,FALSE)=0,"",IF(ISERROR(O110),minIMSM+add_margin,CEILING(MAX(OFFSET(M110,O110,0),OFFSET(L110,O110,0),minIMSM)+add_margin,roundto))) -> 4050000 | O110: =IF(INDIRECT("Calendar!E"&MATCH($A110,Calendar!A:A,0)-1),0,IF(INDIRECT("Calendar!E"&MATCH($A110,Calendar!A:A,0)-2),1,2)) -> 0
A111: 2021-12-31 | B111: 428758 | C111: -265008 | D111: 428758 | F111: =IF(ISERROR(MATCH($A111,Calendar!$A$2:$A$2598,0)),"", IF(VLOOKUP(A111,Calendar!$A$2:$D$2598,3)=0,"", IF(ISERROR(AVERAGE(OFFSET(E112,0,0,window_size,1))), IF(COUNTBLANK(OFFSET(E112,0,0,window_size_max-1))=window_size_max-1,"",MAX(OFFSET(D112,0,0,window_size_max-1))), VLOOKUP(A111,Calendar!$A$2:$D$2598,3)*AVERAGE(OFFSET(E112,0,0,window_size,1))+MAX(OFFSET(D112,0,0,window_size_max-1))))) ->  | H111: 712893.54 | I111: 483883.7686 | J111: 200 | K111: 518975.4962 | L111: 1906537.181 | M111: 3999868.8 | N111: =IF(VLOOKUP(A111,Calendar!A:E,5,FALSE)=0,"",IF(ISERROR(O111),minIMSM+add_margin,CEILING(MAX(OFFSET(M111,O111,0),OFFSET(L111,O111,0),minIMSM)+add_margin,roundto))) -> 4050000 | O111: =IF(INDIRECT("Calendar!E"&MATCH($A111,Calendar!A:A,0)-1),0,IF(INDIRECT("Calendar!E"&MATCH($A111,Calendar!A:A,0)-2),1,2)) -> 0
A112: 2021-12-30 | B112: 459716 | C112: 577096 | D112: 459716 | E112: 459716 | F112: =IF(ISERROR(MATCH($A112,Calendar!$A$2:$A$2598,0)),"", IF(VLOOKUP(A112,Calendar!$A$2:$D$2598,3)=0,"", IF(ISERROR(AVERAGE(OFFSET(E113,0,0,window_size,1))), IF(COUNTBLANK(OFFSET(E113,0,0,window_size_max-1))=window_size_max-1,"",MAX(OFFSET(D113,0,0,window_size_max-1))), VLOOKUP(A112,Calendar!$A$2:$D$2598,3)*AVERAGE(OFFSET(E113,0,0,window_size,1))+MAX(OFFSET(D113,0,0,window_size_max-1))))) ->  | G112: 577096 | H112: 710132.95 | I112: 477589.3504 | J112: 200 | K112: 512224.6005 | L112: 1888249.531 | M112: 3999868.8 | N112: =IF(VLOOKUP(A112,Calendar!A:E,5,FALSE)=0,"",IF(ISERROR(O112),minIMSM+add_margin,CEILING(MAX(OFFSET(M112,O112,0),OFFSET(L112,O112,0),minIMSM)+add_margin,roundto))) -> 4050000 | O112: =IF(INDIRECT("Calendar!E"&MATCH($A112,Calendar!A:A,0)-1),0,IF(INDIRECT("Calendar!E"&MATCH($A112,Calendar!A:A,0)-2),1,2)) -> 0
A113: 2021-12-29 | B113: 1663896 | C113: 1131865 | D113: 1663896 | E113: 1663896 | F113: =IF(ISERROR(MATCH($A113,Calendar!$A$2:$A$2598,0)),"", IF(VLOOKUP(A113,Calendar!$A$2:$D$2598,3)=0,"", IF(ISERROR(AVERAGE(OFFSET(E114,0,0,window_size,1))), IF(COUNTBLANK(OFFSET(E114,0,0,window_size_max-1))=window_size_max-1,"",MAX(OFFSET(D114,0,0,window_size_max-1))), VLOOKUP(A113,Calendar!$A$2:$D$2598,3)*AVERAGE(OFFSET(E114,0,0,window_size,1))+MAX(OFFSET(D114,0,0,window_size_max-1))))) ->  | G113: 1131865 | H113: 703069.32 | I113: 467944.6148 | J113: 200 | K113: 501880.4192 | L113: 1857394.284 | M113: 3999868.8 | N113: =IF(VLOOKUP(A113,Calendar!A:E,5,FALSE)=0,"",IF(ISERROR(O113),minIMSM+add_margin,CEILING(MAX(OFFSET(M113,O113,0),OFFSET(L113,O113,0),minIMSM)+add_margin,roundto))) -> 4050000 | O113: =IF(INDIRECT("Calendar!E"&MATCH($A113,Calendar!A:A,0)-1),0,IF(INDIRECT("Calendar!E"&MATCH($A113,Calendar!A:A,0)-2),1,2)) -> 0
A114: 2021-12-28 | B114: 1638245 | C114: 548429 | D114: 1638245 | E114: 1638245 | F114: =IF(ISERROR(MATCH($A114,Calendar!$A$2:$A$2598,0)),"", IF(VLOOKUP(A114,Calendar!$A$2:$D$2598,3)=0,"", IF(ISERROR(AVERAGE(OFFSET(E115,0,0,window_size,1))), IF(COUNTBLANK(OFFSET(E115,0,0,window_size_max-1))=window_size_max-1,"",MAX(OFFSET(D115,0,0,window_size_max-1))), VLOOKUP(A114,Calendar!$A$2:$D$2598,3)*AVERAGE(OFFSET(E115,0,0,window_size,1))+MAX(OFFSET(D115,0,0,window_size_max-1))))) ->  | G114: 548429 | H114: 704100.72 | I114: 469353.0956 | J114: 200 | K114: 503391.0444 | L114: 1861900.122 | M114: 3999868.8 | N114: =IF(VLOOKUP(A114,Calendar!A:E,5,FALSE)=0,"",IF(ISERROR(O114),minIMSM+add_margin,CEILING(MAX(OFFSET(M114,O114,0),OFFSET(L114,O114,0),minIMSM)+add_margin,roundto))) -> 4050000 | O114: =IF(INDIRECT("Calendar!E"&MATCH($A114,Calendar!A:A,0)-1),0,IF(INDIRECT("Calendar!E"&MATCH($A114,Calendar!A:A,0)-2),1,2)) -> 0
A115: 2021-12-27 | B115: 952739 | C115: 692556 | D115: 952739 | F115: =IF(ISERROR(MATCH($A115,Calendar!$A$2:$A$2598,0)),"", IF(VLOOKUP(A115,Calendar!$A$2:$D$2598,3)=0,"", IF(ISERROR(AVERAGE(OFFSET(E116,0,0,window_size,1))), IF(COUNTBLANK(OFFSET(E116,0,0,window_size_max-1))=window_size_max-1,"",MAX(OFFSET(D116,0,0,window_size_max-1))), VLOOKUP(A115,Calendar!$A$2:$D$2598,3)*AVERAGE(OFFSET(E116,0,0,window_size,1))+MAX(OFFSET(D116,0,0,window_size_max-1))))) ->  | G115: 692556 | H115: 698443.98 | I115: 469706.136 | J115: 200 | K115: 503769.6877 | L115: 1857114.262 | M115: 3999868.8 | N115: =IF(VLOOKUP(A115,Calendar!A:E,5,FALSE)=0,"",IF(ISERROR(O115),minIMSM+add_margin,CEILING(MAX(OFFSET(M115,O115,0),OFFSET(L115,O115,0),minIMSM)+add_margin,roundto))) -> 4050000 | O115: =IF(INDIRECT("Calendar!E"&MATCH($A115,Calendar!A:A,0)-1),0,IF(INDIRECT("Calendar!E"&MATCH($A115,Calendar!A:A,0)-2),1,2)) -> 0
A116: 2021-12-24 | B116: 1187990 | C116: 588159 | D116: 1187990 | F116: =IF(ISERROR(MATCH($A116,Calendar!$A$2:$A$2598,0)),"", IF(VLOOKUP(A116,Calendar!$A$2:$D$2598,3)=0,"", IF(ISERROR(AVERAGE(OFFSET(E117,0,0,window_size,1))), IF(COUNTBLANK(OFFSET(E117,0,0,window_size_max-1))=window_size_max-1,"",MAX(OFFSET(D117,0,0,window_size_max-1))), VLOOKUP(A116,Calendar!$A$2:$D$2598,3)*AVERAGE(OFFSET(E117,0,0,window_size,1))+MAX(OFFSET(D117,0,0,window_size_max-1))))) ->  | G116: 588159 | H116: 693687.73 | I116: 471908.8415 | J116: 200 | K116: 506132.1356 | L116: 1857791.642 | M116: 3999868.8 | N116: =IF(VLOOKUP(A116,Calendar!A:E,5,FALSE)=0,"",IF(ISERROR(O116),minIMSM+add_margin,CEILING(MAX(OFFSET(M116,O116,0),OFFSET(L116,O116,0),minIMSM)+add_margin,roundto))) -> 4050000 | O116: =IF(INDIRECT("Calendar!E"&MATCH($A116,Calendar!A:A,0)-1),0,IF(INDIRECT("Calendar!E"&MATCH($A116,Calendar!A:A,0)-2),1,2)) -> 0
A117: 2021-12-23 | B117: 1005080 | C117: 511472 | D117: 1005080 | E117: 1005080 | F117: =IF(ISERROR(MATCH($A117,Calendar!$A$2:$A$2598,0)),"", IF(VLOOKUP(A117,Calendar!$A$2:$D$2598,3)=0,"", IF(ISERROR(AVERAGE(OFFSET(E118,0,0,window_size,1))), IF(COUNTBLANK(OFFSET(E118,0,0,window_size_max-1))=window_size_max-1,"",MAX(OFFSET(D118,0,0,window_size_max-1))), VLOOKUP(A117,Calendar!$A$2:$D$2598,3)*AVERAGE(OFFSET(E118,0,0,window_size,1))+MAX(OFFSET(D118,0,0,window_size_max-1))))) ->  | G117: 511472 | H117: 689373.12 | I117: 464546.2299 | J117: 200 | K117: 498235.5801 | L117: 1835314.954 | M117: 3999868.8 | N117: =IF(VLOOKUP(A117,Calendar!A:E,5,FALSE)=0,"",IF(ISERROR(O117),minIMSM+add_margin,CEILING(MAX(OFFSET(M117,O117,0),OFFSET(L117,O117,0),minIMSM)+add_margin,roundto))) -> 4050000 | O117: =IF(INDIRECT("Calendar!E"&MATCH($A117,Calendar!A:A,0)-1),0,IF(INDIRECT("Calendar!E"&MATCH($A117,Calendar!A:A,0)-2),1,2)) -> 0
A118: 2021-12-22 | B118: 1878893 | C118: 1455454 | D118: 1878893 | E118: 1878893 | F118: =IF(ISERROR(MATCH($A118,Calendar!$A$2:$A$2598,0)),"", IF(VLOOKUP(A118,Calendar!$A$2:$D$2598,3)=0,"", IF(ISERROR(AVERAGE(OFFSET(E119,0,0,window_size,1))), IF(COUNTBLANK(OFFSET(E119,0,0,window_size_max-1))=window_size_max-1,"",MAX(OFFSET(D119,0,0,window_size_max-1))), VLOOKUP(A118,Calendar!$A$2:$D$2598,3)*AVERAGE(OFFSET(E119,0,0,window_size,1))+MAX(OFFSET(D119,0,0,window_size_max-1))))) ->  | G118: 1455454 | H118: 678079.915 | I118: 453659.8749 | J118: 200 | K118: 486559.7359 | L118: 1797167.308 | M118: 3999868.8 | N118: =IF(VLOOKUP(A118,Calendar!A:E,5,FALSE)=0,"",IF(ISERROR(O118),minIMSM+add_margin,CEILING(MAX(OFFSET(M118,O118,0),OFFSET(L118,O118,0),minIMSM)+add_margin,roundto))) -> 4050000 | O118: =IF(INDIRECT("Calendar!E"&MATCH($A118,Calendar!A:A,0)-1),0,IF(INDIRECT("Calendar!E"&MATCH($A118,Calendar!A:A,0)-2),1,2)) -> 0
A119: 2021-12-21 | B119: 1553338 | C119: 159177 | D119: 1553338 | E119: 1553338 | F119: =IF(ISERROR(MATCH($A119,Calendar!$A$2:$A$2598,0)),"", IF(VLOOKUP(A119,Calendar!$A$2:$D$2598,3)=0,"", IF(ISERROR(AVERAGE(OFFSET(E120,0,0,window_size,1))), IF(COUNTBLANK(OFFSET(E120,0,0,window_size_max-1))=window_size_max-1,"",MAX(OFFSET(D120,0,0,window_size_max-1))), VLOOKUP(A119,Calendar!$A$2:$D$2598,3)*AVERAGE(OFFSET(E120,0,0,window_size,1))+MAX(OFFSET(D120,0,0,window_size_max-1))))) ->  | G119: 159177 | H119: 678165.375 | I119: 452702.6409 | J119: 200 | K119: 485533.0824 | L119: 1794891.464 | M119: 3999868.8 | N119: =IF(VLOOKUP(A119,Calendar!A:E,5,FALSE)=0,"",IF(ISERROR(O119),minIMSM+add_margin,CEILING(MAX(OFFSET(M119,O119,0),OFFSET(L119,O119,0),minIMSM)+add_margin,roundto))) -> 4050000 | O119: =IF(INDIRECT("Calendar!E"&MATCH($A119,Calendar!A:A,0)-1),0,IF(INDIRECT("Calendar!E"&MATCH($A119,Calendar!A:A,0)-2),1,2)) -> 0
A120: 2021-12-20 | B120: 749530 | C120: 627048 | D120: 749530 | F120: =IF(ISERROR(MATCH($A120,Calendar!$A$2:$A$2598,0)),"", IF(VLOOKUP(A120,Calendar!$A$2:$D$2598,3)=0,"", IF(ISERROR(AVERAGE(OFFSET(E121,0,0,window_size,1))), IF(COUNTBLANK(OFFSET(E121,0,0,window_size_max-1))=window_size_max-1,"",MAX(OFFSET(D121,0,0,window_size_max-1))), VLOOKUP(A120,Calendar!$A$2:$D$2598,3)*AVERAGE(OFFSET(E121,0,0,window_size,1))+MAX(OFFSET(D121,0,0,window_size_max-1))))) ->  | G120: 627048 | H120: 675728.206 | I120: 449776.6959 | J120: 199 | K120: 482434.8275 | L120: 1785328.309 | M120: 3999868.8 | N120: =IF(VLOOKUP(A120,Calendar!A:E,5,FALSE)=0,"",IF(ISERROR(O120),minIMSM+add_margin,CEILING(MAX(OFFSET(M120,O120,0),OFFSET(L120,O120,0),minIMSM)+add_margin,roundto))) -> 4050000 | O120: =IF(INDIRECT("Calendar!E"&MATCH($A120,Calendar!A:A,0)-1),0,IF(INDIRECT("Calendar!E"&MATCH($A120,Calendar!A:A,0)-2),1,2)) -> 0
A121: 2021-12-17 | B121: 1352378 | C121: 816264 | D121: 1352378 | F121: =IF(ISERROR(MATCH($A121,Calendar!$A$2:$A$2598,0)),"", IF(VLOOKUP(A121,Calendar!$A$2:$D$2598,3)=0,"", IF(ISERROR(AVERAGE(OFFSET(E122,0,0,window_size,1))), IF(COUNTBLANK(OFFSET(E122,0,0,window_size_max-1))=window_size_max-1,"",MAX(OFFSET(D122,0,0,window_size_max-1))), VLOOKUP(A121,Calendar!$A$2:$D$2598,3)*AVERAGE(OFFSET(E122,0,0,window_size,1))+MAX(OFFSET(D122,0,0,window_size_max-1))))) ->  | G121: 816264 | H121: 668781.2915 | I121: 444865.5615 | J121: 199 | K121: 477167.0974 | L121: 1766265.615 | M121: 3999868.8 | N121: =IF(VLOOKUP(A121,Calendar!A:E,5,FALSE)=0,"",IF(ISERROR(O121),minIMSM+add_margin,CEILING(MAX(OFFSET(M121,O121,0),OFFSET(L121,O121,0),minIMSM)+add_margin,roundto))) -> 4050000 | O121: =IF(INDIRECT("Calendar!E"&MATCH($A121,Calendar!A:A,0)-1),0,IF(INDIRECT("Calendar!E"&MATCH($A121,Calendar!A:A,0)-2),1,2)) -> 0
A122: 2021-12-16 | B122: 1438224 | C122: 737263 | D122: 1438224 | E122: 1438224 | F122: =IF(ISERROR(MATCH($A122,Calendar!$A$2:$A$2598,0)),"", IF(VLOOKUP(A122,Calendar!$A$2:$D$2598,3)=0,"", IF(ISERROR(AVERAGE(OFFSET(E123,0,0,window_size,1))), IF(COUNTBLANK(OFFSET(E123,0,0,window_size_max-1))=window_size_max-1,"",MAX(OFFSET(D123,0,0,window_size_max-1))), VLOOKUP(A122,Calendar!$A$2:$D$2598,3)*AVERAGE(OFFSET(E123,0,0,window_size,1))+MAX(OFFSET(D123,0,0,window_size_max-1))))) ->  | G122: 737263 | H122: 663156.7035 | I122: 421296.2732 | J122: 199 | K122: 451886.4511 | L122: 1702495.541 | M122: 3006888 | N122: =IF(VLOOKUP(A122,Calendar!A:E,5,FALSE)=0,"",IF(ISERROR(O122),minIMSM+add_margin,CEILING(MAX(OFFSET(M122,O122,0),OFFSET(L122,O122,0),minIMSM)+add_margin,roundto))) -> 3060000 | O122: =IF(INDIRECT("Calendar!E"&MATCH($A122,Calendar!A:A,0)-1),0,IF(INDIRECT("Calendar!E"&MATCH($A122,Calendar!A:A,0)-2),1,2)) -> 0
A123: 2021-12-15 | B123: 2499918 | C123: 1851718 | D123: 2499918 | E123: 2499918 | F123: =IF(ISERROR(MATCH($A123,Calendar!$A$2:$A$2598,0)),"", IF(VLOOKUP(A123,Calendar!$A$2:$D$2598,3)=0,"", IF(ISERROR(AVERAGE(OFFSET(E124,0,0,window_size,1))), IF(COUNTBLANK(OFFSET(E124,0,0,window_size_max-1))=window_size_max-1,"",MAX(OFFSET(D124,0,0,window_size_max-1))), VLOOKUP(A123,Calendar!$A$2:$D$2598,3)*AVERAGE(OFFSET(E124,0,0,window_size,1))+MAX(OFFSET(D124,0,0,window_size_max-1))))) ->  | G123: 1851718 | H123: 647188.201 | I123: 384867.6053 | J123: 199 | K123: 412812.7101 | L123: 1596657.434 | M123: 1634692.8 | N123: =IF(VLOOKUP(A123,Calendar!A:E,5,FALSE)=0,"",IF(ISERROR(O123),minIMSM+add_margin,CEILING(MAX(OFFSET(M123,O123,0),OFFSET(L123,O123,0),minIMSM)+add_margin,roundto))) -> 1690000 | O123: =IF(INDIRECT("Calendar!E"&MATCH($A123,Calendar!A:A,0)-1),0,IF(INDIRECT("Calendar!E"&MATCH($A123,Calendar!A:A,0)-2),1,2)) -> 0
A124: 2021-12-14 | B124: 1879305 | C124: 140506 | D124: 1879305 | E124: 1879305 | F124: =IF(ISERROR(MATCH($A124,Calendar!$A$2:$A$2598,0)),"", IF(VLOOKUP(A124,Calendar!$A$2:$D$2598,3)=0,"", IF(ISERROR(AVERAGE(OFFSET(E125,0,0,window_size,1))), IF(COUNTBLANK(OFFSET(E125,0,0,window_size_max-1))=window_size_max-1,"",MAX(OFFSET(D125,0,0,window_size_max-1))), VLOOKUP(A124,Calendar!$A$2:$D$2598,3)*AVERAGE(OFFSET(E125,0,0,window_size,1))+MAX(OFFSET(D125,0,0,window_size_max-1))))) ->  | G124: 140506 | H124: 647724.804 | I124: 383605.0711 | J124: 199 | K124: 411458.5037 | L124: 1594079.363 | M124: 1634692.8 | N124: =IF(VLOOKUP(A124,Calendar!A:E,5,FALSE)=0,"",IF(ISERROR(O124),minIMSM+add_margin,CEILING(MAX(OFFSET(M124,O124,0),OFFSET(L124,O124,0),minIMSM)+add_margin,roundto))) -> 1690000 | O124: =IF(INDIRECT("Calendar!E"&MATCH($A124,Calendar!A:A,0)-1),0,IF(INDIRECT("Calendar!E"&MATCH($A124,Calendar!A:A,0)-2),1,2)) -> 0
A125: 2021-12-13 | B125: 541524 | C125: 437428 | D125: 541524 | F125: =IF(ISERROR(MATCH($A125,Calendar!$A$2:$A$2598,0)),"", IF(VLOOKUP(A125,Calendar!$A$2:$D$2598,3)=0,"", IF(ISERROR(AVERAGE(OFFSET(E126,0,0,window_size,1))), IF(COUNTBLANK(OFFSET(E126,0,0,window_size_max-1))=window_size_max-1,"",MAX(OFFSET(D126,0,0,window_size_max-1))), VLOOKUP(A125,Calendar!$A$2:$D$2598,3)*AVERAGE(OFFSET(E126,0,0,window_size,1))+MAX(OFFSET(D126,0,0,window_size_max-1))))) ->  | G125: 437428 | H125: 646664.0101 | I125: 387503.9942 | J125: 198 | K125: 415615.172 | L125: 1602578.906 | M125: 1634692.8 | N125: =IF(VLOOKUP(A125,Calendar!A:E,5,FALSE)=0,"",IF(ISERROR(O125),minIMSM+add_margin,CEILING(MAX(OFFSET(M125,O125,0),OFFSET(L125,O125,0),minIMSM)+add_margin,roundto))) -> 1690000 | O125: =IF(INDIRECT("Calendar!E"&MATCH($A125,Calendar!A:A,0)-1),0,IF(INDIRECT("Calendar!E"&MATCH($A125,Calendar!A:A,0)-2),1,2)) -> 0
A126: 2021-12-10 | B126: 669356 | C126: 249022 | D126: 669356 | F126: =IF(ISERROR(MATCH($A126,Calendar!$A$2:$A$2598,0)),"", IF(VLOOKUP(A126,Calendar!$A$2:$D$2598,3)=0,"", IF(ISERROR(AVERAGE(OFFSET(E127,0,0,window_size,1))), IF(COUNTBLANK(OFFSET(E127,0,0,window_size_max-1))=window_size_max-1,"",MAX(OFFSET(D127,0,0,window_size_max-1))), VLOOKUP(A126,Calendar!$A$2:$D$2598,3)*AVERAGE(OFFSET(E127,0,0,window_size,1))+MAX(OFFSET(D127,0,0,window_size_max-1))))) ->  | G126: 249022 | H126: 647637.3401 | I126: 386987.3009 | J126: 197 | K126: 415130.3277 | L126: 1602437.094 | M126: 1634692.8 | N126: =IF(VLOOKUP(A126,Calendar!A:E,5,FALSE)=0,"",IF(ISERROR(O126),minIMSM+add_margin,CEILING(MAX(OFFSET(M126,O126,0),OFFSET(L126,O126,0),minIMSM)+add_margin,roundto))) -> 1690000 | O126: =IF(INDIRECT("Calendar!E"&MATCH($A126,Calendar!A:A,0)-1),0,IF(INDIRECT("Calendar!E"&MATCH($A126,Calendar!A:A,0)-2),1,2)) -> 0
A127: 2021-12-09 | B127: 819458 | C127: 613562 | D127: 819458 | E127: 819458 | F127: =IF(ISERROR(MATCH($A127,Calendar!$A$2:$A$2598,0)),"", IF(VLOOKUP(A127,Calendar!$A$2:$D$2598,3)=0,"", IF(ISERROR(AVERAGE(OFFSET(E128,0,0,window_size,1))), IF(COUNTBLANK(OFFSET(E128,0,0,window_size_max-1))=window_size_max-1,"",MAX(OFFSET(D128,0,0,window_size_max-1))), VLOOKUP(A127,Calendar!$A$2:$D$2598,3)*AVERAGE(OFFSET(E128,0,0,window_size,1))+MAX(OFFSET(D128,0,0,window_size_max-1))))) ->  | G127: 613562 | H127: 642205.9543 | I127: 387582.8574 | J127: 197 | K127: 415769.1952 | L127: 1598475.103 | M127: 1239851.2 | N127: =IF(VLOOKUP(A127,Calendar!A:E,5,FALSE)=0,"",IF(ISERROR(O127),minIMSM+add_margin,CEILING(MAX(OFFSET(M127,O127,0),OFFSET(L127,O127,0),minIMSM)+add_margin,roundto))) -> 1650000 | O127: =IF(INDIRECT("Calendar!E"&MATCH($A127,Calendar!A:A,0)-1),0,IF(INDIRECT("Calendar!E"&MATCH($A127,Calendar!A:A,0)-2),1,2)) -> 0
A128: 2021-12-08 | B128: 1021683 | C128: 514230 | D128: 1021683 | E128: 1021683 | F128: =IF(ISERROR(MATCH($A128,Calendar!$A$2:$A$2598,0)),"", IF(VLOOKUP(A128,Calendar!$A$2:$D$2598,3)=0,"", IF(ISERROR(AVERAGE(OFFSET(E129,0,0,window_size,1))), IF(COUNTBLANK(OFFSET(E129,0,0,window_size_max-1))=window_size_max-1,"",MAX(OFFSET(D129,0,0,window_size_max-1))), VLOOKUP(A128,Calendar!$A$2:$D$2598,3)*AVERAGE(OFFSET(E129,0,0,window_size,1))+MAX(OFFSET(D129,0,0,window_size_max-1))))) ->  | G128: 514230 | H128: 640485.5736 | I128: 393968.9468 | J128: 197 | K128: 422619.7026 | L128: 1612510.89 | M128: 1239851.2 | N128: =IF(VLOOKUP(A128,Calendar!A:E,5,FALSE)=0,"",IF(ISERROR(O128),minIMSM+add_margin,CEILING(MAX(OFFSET(M128,O128,0),OFFSET(L128,O128,0),minIMSM)+add_margin,roundto))) -> 1670000 | O128: =IF(INDIRECT("Calendar!E"&MATCH($A128,Calendar!A:A,0)-1),0,IF(INDIRECT("Calendar!E"&MATCH($A128,Calendar!A:A,0)-2),1,2)) -> 0
A129: 2021-12-07 | B129: 488945 | C129: 55084 | D129: 488945 | E129: 488945 | F129: =IF(ISERROR(MATCH($A129,Calendar!$A$2:$A$2598,0)),"", IF(VLOOKUP(A129,Calendar!$A$2:$D$2598,3)=0,"", IF(ISERROR(AVERAGE(OFFSET(E130,0,0,window_size,1))), IF(COUNTBLANK(OFFSET(E130,0,0,window_size_max-1))=window_size_max-1,"",MAX(OFFSET(D130,0,0,window_size_max-1))), VLOOKUP(A129,Calendar!$A$2:$D$2598,3)*AVERAGE(OFFSET(E130,0,0,window_size,1))+MAX(OFFSET(D130,0,0,window_size_max-1))))) ->  | G129: 55084 | H129: 643492.2437 | I129: 389293.476 | J129: 197 | K129: 417604.2157 | L129: 1603981.94 | M129: 1239851.2 | N129: =IF(VLOOKUP(A129,Calendar!A:E,5,FALSE)=0,"",IF(ISERROR(O129),minIMSM+add_margin,CEILING(MAX(OFFSET(M129,O129,0),OFFSET(L129,O129,0),minIMSM)+add_margin,roundto))) -> 1660000 | O129: =IF(INDIRECT("Calendar!E"&MATCH($A129,Calendar!A:A,0)-1),0,IF(INDIRECT("Calendar!E"&MATCH($A129,Calendar!A:A,0)-2),1,2)) -> 0
A130: 2021-12-06 | B130: 40017 | C130: 141620 | D130: 40017 | F130: =IF(ISERROR(MATCH($A130,Calendar!$A$2:$A$2598,0)),"", IF(VLOOKUP(A130,Calendar!$A$2:$D$2598,3)=0,"", IF(ISERROR(AVERAGE(OFFSET(E131,0,0,window_size,1))), IF(COUNTBLANK(OFFSET(E131,0,0,window_size_max-1))=window_size_max-1,"",MAX(OFFSET(D131,0,0,window_size_max-1))), VLOOKUP(A130,Calendar!$A$2:$D$2598,3)*AVERAGE(OFFSET(E131,0,0,window_size,1))+MAX(OFFSET(D131,0,0,window_size_max-1))))) ->  | G130: 141620 | H130: 645656.4337 | I130: 388924.5871 | J130: 196 | K130: 417291.5315 | L130: 1605426.956 | M130: 1239851.2 | N130: =IF(VLOOKUP(A130,Calendar!A:E,5,FALSE)=0,"",IF(ISERROR(O130),minIMSM+add_margin,CEILING(MAX(OFFSET(M130,O130,0),OFFSET(L130,O130,0),minIMSM)+add_margin,roundto))) -> 1660000 | O130: =IF(INDIRECT("Calendar!E"&MATCH($A130,Calendar!A:A,0)-1),0,IF(INDIRECT("Calendar!E"&MATCH($A130,Calendar!A:A,0)-2),1,2)) -> 0
A131: 2021-12-03 | B131: 210667 | C131: 132976 | D131: 210667 | F131: =IF(ISERROR(MATCH($A131,Calendar!$A$2:$A$2598,0)),"", IF(VLOOKUP(A131,Calendar!$A$2:$D$2598,3)=0,"", IF(ISERROR(AVERAGE(OFFSET(E132,0,0,window_size,1))), IF(COUNTBLANK(OFFSET(E132,0,0,window_size_max-1))=window_size_max-1,"",MAX(OFFSET(D132,0,0,window_size_max-1))), VLOOKUP(A131,Calendar!$A$2:$D$2598,3)*AVERAGE(OFFSET(E132,0,0,window_size,1))+MAX(OFFSET(D132,0,0,window_size_max-1))))) ->  | G131: 132976 | H131: 648236.2154 | I131: 387235.4119 | J131: 195 | K131: 415515.845 | L131: 1603922.659 | M131: 1224454.4 | N131: =IF(VLOOKUP(A131,Calendar!A:E,5,FALSE)=0,"",IF(ISERROR(O131),minIMSM+add_margin,CEILING(MAX(OFFSET(M131,O131,0),OFFSET(L131,O131,0),minIMSM)+add_margin,roundto))) -> 1660000 | O131: =IF(INDIRECT("Calendar!E"&MATCH($A131,Calendar!A:A,0)-1),0,IF(INDIRECT("Calendar!E"&MATCH($A131,Calendar!A:A,0)-2),1,2)) -> 0
A132: 2021-12-02 | B132: 774907 | C132: 765284 | D132: 774907 | E132: 774907 | F132: =IF(ISERROR(MATCH($A132,Calendar!$A$2:$A$2598,0)),"", IF(VLOOKUP(A132,Calendar!$A$2:$D$2598,3)=0,"", IF(ISERROR(AVERAGE(OFFSET(E133,0,0,window_size,1))), IF(COUNTBLANK(OFFSET(E133,0,0,window_size_max-1))=window_size_max-1,"",MAX(OFFSET(D133,0,0,window_size_max-1))), VLOOKUP(A132,Calendar!$A$2:$D$2598,3)*AVERAGE(OFFSET(E133,0,0,window_size,1))+MAX(OFFSET(D133,0,0,window_size_max-1))))) ->  | G132: 765284 | H132: 644659.5077 | I132: 393806.1695 | J132: 195 | K132: 422566.4757 | L132: 1616562.402 | M132: 556779.2 | N132: =IF(VLOOKUP(A132,Calendar!A:E,5,FALSE)=0,"",IF(ISERROR(O132),minIMSM+add_margin,CEILING(MAX(OFFSET(M132,O132,0),OFFSET(L132,O132,0),minIMSM)+add_margin,roundto))) -> 1670000 | O132: =IF(INDIRECT("Calendar!E"&MATCH($A132,Calendar!A:A,0)-1),0,IF(INDIRECT("Calendar!E"&MATCH($A132,Calendar!A:A,0)-2),1,2)) -> 0
A133: 2021-12-01 | B133: 388039 | C133: 21629 | D133: 388039 | E133: 388039 | F133: =IF(ISERROR(MATCH($A133,Calendar!$A$2:$A$2598,0)),"", IF(VLOOKUP(A133,Calendar!$A$2:$D$2598,3)=0,"", IF(ISERROR(AVERAGE(OFFSET(E134,0,0,window_size,1))), IF(COUNTBLANK(OFFSET(E134,0,0,window_size_max-1))=window_size_max-1,"",MAX(OFFSET(D134,0,0,window_size_max-1))), VLOOKUP(A133,Calendar!$A$2:$D$2598,3)*AVERAGE(OFFSET(E134,0,0,window_size,1))+MAX(OFFSET(D134,0,0,window_size_max-1))))) ->  | G133: 21629 | H133: 652395.1237 | I133: 390217.351 | J133: 194 | K133: 418690.0244 | L133: 1615382.18 | M133: 556779.2 | N133: =IF(VLOOKUP(A133,Calendar!A:E,5,FALSE)=0,"",IF(ISERROR(O133),minIMSM+add_margin,CEILING(MAX(OFFSET(M133,O133,0),OFFSET(L133,O133,0),minIMSM)+add_margin,roundto))) -> 1670000 | O133: =IF(INDIRECT("Calendar!E"&MATCH($A133,Calendar!A:A,0)-1),0,IF(INDIRECT("Calendar!E"&MATCH($A133,Calendar!A:A,0)-2),1,2)) -> 0
A134: 2021-11-30 | B134: 234630 | C134: -156649 | D134: 234630 | E134: 234630 | F134: =IF(ISERROR(MATCH($A134,Calendar!$A$2:$A$2598,0)),"", IF(VLOOKUP(A134,Calendar!$A$2:$D$2598,3)=0,"", IF(ISERROR(AVERAGE(OFFSET(E135,0,0,window_size,1))), IF(COUNTBLANK(OFFSET(E135,0,0,window_size_max-1))=window_size_max-1,"",MAX(OFFSET(D135,0,0,window_size_max-1))), VLOOKUP(A134,Calendar!$A$2:$D$2598,3)*AVERAGE(OFFSET(E135,0,0,window_size,1))+MAX(OFFSET(D135,0,0,window_size_max-1))))) ->  | H134: 651740.9796 | I134: 393180.6962 | J134: 196 | K134: 421858.0678 | L134: 1622014.536 | M134: 556779.2 | N134: =IF(VLOOKUP(A134,Calendar!A:E,5,FALSE)=0,"",IF(ISERROR(O134),minIMSM+add_margin,CEILING(MAX(OFFSET(M134,O134,0),OFFSET(L134,O134,0),minIMSM)+add_margin,roundto))) -> 1680000 | O134: =IF(INDIRECT("Calendar!E"&MATCH($A134,Calendar!A:A,0)-1),0,IF(INDIRECT("Calendar!E"&MATCH($A134,Calendar!A:A,0)-2),1,2)) -> 0
A135: 2021-11-29 | B135: -239525 | C135: 65098 | F135: =IF(ISERROR(MATCH($A135,Calendar!$A$2:$A$2598,0)),"", IF(VLOOKUP(A135,Calendar!$A$2:$D$2598,3)=0,"", IF(ISERROR(AVERAGE(OFFSET(E136,0,0,window_size,1))), IF(COUNTBLANK(OFFSET(E136,0,0,window_size_max-1))=window_size_max-1,"",MAX(OFFSET(D136,0,0,window_size_max-1))), VLOOKUP(A135,Calendar!$A$2:$D$2598,3)*AVERAGE(OFFSET(E136,0,0,window_size,1))+MAX(OFFSET(D136,0,0,window_size_max-1))))) ->  | G135: 65098 | H135: 650266.0863 | I135: 393947.0758 | J135: 197 | K135: 422596.241 | L135: 1622237.441 | M135: 556779.2 | N135: =IF(VLOOKUP(A135,Calendar!A:E,5,FALSE)=0,"",IF(ISERROR(O135),minIMSM+add_margin,CEILING(MAX(OFFSET(M135,O135,0),OFFSET(L135,O135,0),minIMSM)+add_margin,roundto))) -> 1680000 | O135: =IF(INDIRECT("Calendar!E"&MATCH($A135,Calendar!A:A,0)-1),0,IF(INDIRECT("Calendar!E"&MATCH($A135,Calendar!A:A,0)-2),1,2)) -> 0
A136: 2021-11-26 | B136: -24234 | C136: 9461 | F136: =IF(ISERROR(MATCH($A136,Calendar!$A$2:$A$2598,0)),"", IF(VLOOKUP(A136,Calendar!$A$2:$D$2598,3)=0,"", IF(ISERROR(AVERAGE(OFFSET(E137,0,0,window_size,1))), IF(COUNTBLANK(OFFSET(E137,0,0,window_size_max-1))=window_size_max-1,"",MAX(OFFSET(D137,0,0,window_size_max-1))), VLOOKUP(A136,Calendar!$A$2:$D$2598,3)*AVERAGE(OFFSET(E137,0,0,window_size,1))+MAX(OFFSET(D137,0,0,window_size_max-1))))) ->  | G136: 9461 | H136: 651545.2487 | I136: 390130.6978 | J136: 197 | K136: 418502.3231 | L136: =IF($A136="","",H136+alpha*K136) -> 1614100.592 | M136: 556779.2 | N136: =IF(VLOOKUP(A136,Calendar!A:E,5,FALSE)=0,"",IF(ISERROR(O136),minIMSM+add_margin,CEILING(MAX(OFFSET(M136,O136,0),OFFSET(L136,O136,0),minIMSM)+add_margin,roundto))) -> 1670000 | O136: =IF(INDIRECT("Calendar!E"&MATCH($A136,Calendar!A:A,0)-1),0,IF(INDIRECT("Calendar!E"&MATCH($A136,Calendar!A:A,0)-2),1,2)) -> 0
A137: 2021-11-25 | B137: -248581 | C137: -163220 | F137: =IF(ISERROR(MATCH($A137,Calendar!$A$2:$A$2598,0)),"", IF(VLOOKUP(A137,Calendar!$A$2:$D$2598,3)=0,"", IF(ISERROR(AVERAGE(OFFSET(E138,0,0,window_size,1))), IF(COUNTBLANK(OFFSET(E138,0,0,window_size_max-1))=window_size_max-1,"",MAX(OFFSET(D138,0,0,window_size_max-1))), VLOOKUP(A137,Calendar!$A$2:$D$2598,3)*AVERAGE(OFFSET(E138,0,0,window_size,1))+MAX(OFFSET(D138,0,0,window_size_max-1))))) ->  | H137: 649754.7576 | I137: 390061.1367 | J137: 198 | K137: 418357.8204 | L137: 1611977.744 | M137: 556779.2 | N137: =IF(VLOOKUP(A137,Calendar!A:E,5,FALSE)=0,"",IF(ISERROR(O137),minIMSM+add_margin,CEILING(MAX(OFFSET(M137,O137,0),OFFSET(L137,O137,0),minIMSM)+add_margin,roundto))) -> 1670000 | O137: =IF(INDIRECT("Calendar!E"&MATCH($A137,Calendar!A:A,0)-1),0,IF(INDIRECT("Calendar!E"&MATCH($A137,Calendar!A:A,0)-2),1,2)) -> 0
A138: 2021-11-24 | B138: -813705 | C138: -494548 | F138: =IF(ISERROR(MATCH($A138,Calendar!$A$2:$A$2598,0)),"", IF(VLOOKUP(A138,Calendar!$A$2:$D$2598,3)=0,"", IF(ISERROR(AVERAGE(OFFSET(E139,0,0,window_size,1))), IF(COUNTBLANK(OFFSET(E139,0,0,window_size_max-1))=window_size_max-1,"",MAX(OFFSET(D139,0,0,window_size_max-1))), VLOOKUP(A138,Calendar!$A$2:$D$2598,3)*AVERAGE(OFFSET(E139,0,0,window_size,1))+MAX(OFFSET(D139,0,0,window_size_max-1))))) ->  | H138: 651524.4422 | I138: 390016.564 | J138: 199 | K138: 418335.5329 | L138: 1613696.168 | M138: 556779.2 | N138: =IF(VLOOKUP(A138,Calendar!A:E,5,FALSE)=0,"",IF(ISERROR(O138),minIMSM+add_margin,CEILING(MAX(OFFSET(M138,O138,0),OFFSET(L138,O138,0),minIMSM)+add_margin,roundto))) -> 1670000 | O138: =IF(INDIRECT("Calendar!E"&MATCH($A138,Calendar!A:A,0)-1),0,IF(INDIRECT("Calendar!E"&MATCH($A138,Calendar!A:A,0)-2),1,2)) -> 0
A139: 2021-11-23 | B139: -857441 | C139: -175671 | F139: =IF(ISERROR(MATCH($A139,Calendar!$A$2:$A$2598,0)),"", IF(VLOOKUP(A139,Calendar!$A$2:$D$2598,3)=0,"", IF(ISERROR(AVERAGE(OFFSET(E140,0,0,window_size,1))), IF(COUNTBLANK(OFFSET(E140,0,0,window_size_max-1))=window_size_max-1,"",MAX(OFFSET(D140,0,0,window_size_max-1))), VLOOKUP(A139,Calendar!$A$2:$D$2598,3)*AVERAGE(OFFSET(E140,0,0,window_size,1))+MAX(OFFSET(D140,0,0,window_size_max-1))))) ->  | G139: =IF(AND(F139<>"",$J$3="YES",F139>minIMSM),F139,IF(C139>minIMSM,C139,"")) ->  | H139: =IF($A139="","",IFERROR((AVERAGE(G140,INDIRECT("D" & ROW(A141) & ":D" & ROW(A141) + window_size-2))),0)) -> 651165.835 | I139: 389718.7508 | J139: 200 | K139: 417981.5385 | L139: 1612523.373 | M139: =IF($A139="","",beta*MAX(G140,INDIRECT("B" & ROW(A141) & ":B" & ROW(A141) + window_size_max-2))) -> 556779.2 | N139: =IF(VLOOKUP(A139,Calendar!A:E,5,FALSE)=0,"",IF(ISERROR(O139),minIMSM+add_margin,CEILING(MAX(OFFSET(M139,O139,0),OFFSET(L139,O139,0),minIMSM)+add_margin,roundto))) -> 1670000 | O139: =IF(INDIRECT("Calendar!E"&MATCH($A139,Calendar!A:A,0)-1),0,IF(INDIRECT("Calendar!E"&MATCH($A139,Calendar!A:A,0)-2),1,2)) -> 0
A140: 2021-11-22 | B140: -215246 | C140: -50624 | F140: =IF(ISERROR(MATCH($A140,Calendar!$A$2:$A$2598,0)),"", IF(VLOOKUP(A140,Calendar!$A$2:$D$2598,3)=0,"", IF(ISERROR(AVERAGE(OFFSET(E141,0,0,window_size,1))), IF(COUNTBLANK(OFFSET(E141,0,0,window_size_max-1))=window_size_max-1,"",MAX(OFFSET(D141,0,0,window_size_max-1))), VLOOKUP(A140,Calendar!$A$2:$D$2598,3)*AVERAGE(OFFSET(E141,0,0,window_size,1))+MAX(OFFSET(D141,0,0,window_size_max-1))))) ->  | H140: 651165.835 | I140: 389718.7508 | J140: 200 | K140: 417981.5385 | L140: 1612523.373 | M140: 556779.2 | N140: =IF(VLOOKUP(A140,Calendar!A:E,5,FALSE)=0,"",IF(ISERROR(O140),minIMSM+add_margin,CEILING(MAX(OFFSET(M140,O140,0),OFFSET(L140,O140,0),minIMSM)+add_margin,roundto))) -> 1670000 | O140: =IF(INDIRECT("Calendar!E"&MATCH($A140,Calendar!A:A,0)-1),0,IF(INDIRECT("Calendar!E"&MATCH($A140,Calendar!A:A,0)-2),1,2)) -> 0
A141: 2021-11-19 | B141: -222707 | C141: -234024 | F141: =IF(ISERROR(MATCH($A141,Calendar!$A$2:$A$2598,0)),"", IF(VLOOKUP(A141,Calendar!$A$2:$D$2598,3)=0,"", IF(ISERROR(AVERAGE(OFFSET(E142,0,0,window_size,1))), IF(COUNTBLANK(OFFSET(E142,0,0,window_size_max-1))=window_size_max-1,"",MAX(OFFSET(D142,0,0,window_size_max-1))), VLOOKUP(A141,Calendar!$A$2:$D$2598,3)*AVERAGE(OFFSET(E142,0,0,window_size,1))+MAX(OFFSET(D142,0,0,window_size_max-1))))) ->  | H141: 651165.835 | I141: 389718.7508 | J141: 200 | K141: 417981.5385 | L141: 1612523.373 | M141: 556779.2 | N141: =IF(VLOOKUP(A141,Calendar!A:E,5,FALSE)=0,"",IF(ISERROR(O141),minIMSM+add_margin,CEILING(MAX(OFFSET(M141,O141,0),OFFSET(L141,O141,0),minIMSM)+add_margin,roundto))) -> 1670000 | O141: =IF(INDIRECT("Calendar!E"&MATCH($A141,Calendar!A:A,0)-1),0,IF(INDIRECT("Calendar!E"&MATCH($A141,Calendar!A:A,0)-2),1,2)) -> 0
A142: 2021-11-18 | B142: -841585 | C142: -616735 | F142: =IF(ISERROR(MATCH($A142,Calendar!$A$2:$A$2598,0)),"", IF(VLOOKUP(A142,Calendar!$A$2:$D$2598,3)=0,"", IF(ISERROR(AVERAGE(OFFSET(E143,0,0,window_size,1))), IF(COUNTBLANK(OFFSET(E143,0,0,window_size_max-1))=window_size_max-1,"",MAX(OFFSET(D143,0,0,window_size_max-1))), VLOOKUP(A142,Calendar!$A$2:$D$2598,3)*AVERAGE(OFFSET(E143,0,0,window_size,1))+MAX(OFFSET(D143,0,0,window_size_max-1))))) ->  | H142: 648170.99 | I142: 390114.1662 | J142: 201 | K142: 418310.2582 | L142: 1610284.584 | M142: 781470.4 | N142: =IF(VLOOKUP(A142,Calendar!A:E,5,FALSE)=0,"",IF(ISERROR(O142),minIMSM+add_margin,CEILING(MAX(OFFSET(M142,O142,0),OFFSET(L142,O142,0),minIMSM)+add_margin,roundto))) -> 1670000 | O142: =IF(INDIRECT("Calendar!E"&MATCH($A142,Calendar!A:A,0)-1),0,IF(INDIRECT("Calendar!E"&MATCH($A142,Calendar!A:A,0)-2),1,2)) -> 0
A143: 2021-11-17 | B143: -800707 | C143: -580127 | F143: =IF(ISERROR(MATCH($A143,Calendar!$A$2:$A$2598,0)),"", IF(VLOOKUP(A143,Calendar!$A$2:$D$2598,3)=0,"", IF(ISERROR(AVERAGE(OFFSET(E144,0,0,window_size,1))), IF(COUNTBLANK(OFFSET(E144,0,0,window_size_max-1))=window_size_max-1,"",MAX(OFFSET(D144,0,0,window_size_max-1))), VLOOKUP(A143,Calendar!$A$2:$D$2598,3)*AVERAGE(OFFSET(E144,0,0,window_size,1))+MAX(OFFSET(D144,0,0,window_size_max-1))))) ->  | H143: 646234.2475 | I143: 390111.249 | J143: 202 | K143: 418322.5728 | L143: 1608376.165 | M143: 781470.4 | N143: =IF(VLOOKUP(A143,Calendar!A:E,5,FALSE)=0,"",IF(ISERROR(O143),minIMSM+add_margin,CEILING(MAX(OFFSET(M143,O143,0),OFFSET(L143,O143,0),minIMSM)+add_margin,roundto))) -> 1660000 | O143: =IF(INDIRECT("Calendar!E"&MATCH($A143,Calendar!A:A,0)-1),0,IF(INDIRECT("Calendar!E"&MATCH($A143,Calendar!A:A,0)-2),1,2)) -> 0
A144: 2021-11-16 | B144: -452793 | C144: -8225 | F144: =IF(ISERROR(MATCH($A144,Calendar!$A$2:$A$2598,0)),"", IF(VLOOKUP(A144,Calendar!$A$2:$D$2598,3)=0,"", IF(ISERROR(AVERAGE(OFFSET(E145,0,0,window_size,1))), IF(COUNTBLANK(OFFSET(E145,0,0,window_size_max-1))=window_size_max-1,"",MAX(OFFSET(D145,0,0,window_size_max-1))), VLOOKUP(A144,Calendar!$A$2:$D$2598,3)*AVERAGE(OFFSET(E145,0,0,window_size,1))+MAX(OFFSET(D145,0,0,window_size_max-1))))) ->  | H144: 644649.9606 | I144: 390018.3294 | J144: 203 | K144: 418113.8975 | L144: 1606311.925 | M144: 781470.4 | N144: =IF(VLOOKUP(A144,Calendar!A:E,5,FALSE)=0,"",IF(ISERROR(O144),minIMSM+add_margin,CEILING(MAX(OFFSET(M144,O144,0),OFFSET(L144,O144,0),minIMSM)+add_margin,roundto))) -> 1660000 | O144: =IF(INDIRECT("Calendar!E"&MATCH($A144,Calendar!A:A,0)-1),0,IF(INDIRECT("Calendar!E"&MATCH($A144,Calendar!A:A,0)-2),1,2)) -> 0
A145: 2021-11-15 | B145: -501367 | C145: -353042 | F145: =IF(ISERROR(MATCH($A145,Calendar!$A$2:$A$2598,0)),"", IF(VLOOKUP(A145,Calendar!$A$2:$D$2598,3)=0,"", IF(ISERROR(AVERAGE(OFFSET(E146,0,0,window_size,1))), IF(COUNTBLANK(OFFSET(E146,0,0,window_size_max-1))=window_size_max-1,"",MAX(OFFSET(D146,0,0,window_size_max-1))), VLOOKUP(A145,Calendar!$A$2:$D$2598,3)*AVERAGE(OFFSET(E146,0,0,window_size,1))+MAX(OFFSET(D146,0,0,window_size_max-1))))) ->  | H145: 642966.7059 | I145: 389959.2318 | J145: 204 | K145: 418077.7177 | L145: 1604545.457 | M145: 781470.4 | N145: =IF(VLOOKUP(A145,Calendar!A:E,5,FALSE)=0,"",IF(ISERROR(O145),minIMSM+add_margin,CEILING(MAX(OFFSET(M145,O145,0),OFFSET(L145,O145,0),minIMSM)+add_margin,roundto))) -> 1660000 | O145: =IF(INDIRECT("Calendar!E"&MATCH($A145,Calendar!A:A,0)-1),0,IF(INDIRECT("Calendar!E"&MATCH($A145,Calendar!A:A,0)-2),1,2)) -> 0
A146: 2021-11-12 | B146: -747312 | C146: -323918 | F146: =IF(ISERROR(MATCH($A146,Calendar!$A$2:$A$2598,0)),"", IF(VLOOKUP(A146,Calendar!$A$2:$D$2598,3)=0,"", IF(ISERROR(AVERAGE(OFFSET(E147,0,0,window_size,1))), IF(COUNTBLANK(OFFSET(E147,0,0,window_size_max-1))=window_size_max-1,"",MAX(OFFSET(D147,0,0,window_size_max-1))), VLOOKUP(A146,Calendar!$A$2:$D$2598,3)*AVERAGE(OFFSET(E147,0,0,window_size,1))+MAX(OFFSET(D147,0,0,window_size_max-1))))) ->  | H146: 641342.3707 | I146: 389892.2715 | J146: 205 | K146: 417992.2671 | L146: 1602724.585 | M146: 781470.4 | N146: =IF(VLOOKUP(A146,Calendar!A:E,5,FALSE)=0,"",IF(ISERROR(O146),minIMSM+add_margin,CEILING(MAX(OFFSET(M146,O146,0),OFFSET(L146,O146,0),minIMSM)+add_margin,roundto))) -> 1660000 | O146: =IF(INDIRECT("Calendar!E"&MATCH($A146,Calendar!A:A,0)-1),0,IF(INDIRECT("Calendar!E"&MATCH($A146,Calendar!A:A,0)-2),1,2)) -> 0
A147: 2021-11-11 | B147: -470684 | C147: -8284 | F147: =IF(ISERROR(MATCH($A147,Calendar!$A$2:$A$2598,0)),"", IF(VLOOKUP(A147,Calendar!$A$2:$D$2598,3)=0,"", IF(ISERROR(AVERAGE(OFFSET(E148,0,0,window_size,1))), IF(COUNTBLANK(OFFSET(E148,0,0,window_size_max-1))=window_size_max-1,"",MAX(OFFSET(D148,0,0,window_size_max-1))), VLOOKUP(A147,Calendar!$A$2:$D$2598,3)*AVERAGE(OFFSET(E148,0,0,window_size,1))+MAX(OFFSET(D148,0,0,window_size_max-1))))) ->  | H147: 640374.1893 | I147: 389691.3599 | J147: 206 | K147: 417734.7274 | L147: 1601164.062 | M147: 866272 | N147: =IF(VLOOKUP(A147,Calendar!A:E,5,FALSE)=0,"",IF(ISERROR(O147),minIMSM+add_margin,CEILING(MAX(OFFSET(M147,O147,0),OFFSET(L147,O147,0),minIMSM)+add_margin,roundto))) -> 1660000 | O147: =IF(INDIRECT("Calendar!E"&MATCH($A147,Calendar!A:A,0)-1),0,IF(INDIRECT("Calendar!E"&MATCH($A147,Calendar!A:A,0)-2),1,2)) -> 0
A148: 2021-11-10 | B148: -729594 | C148: -632351 | F148: =IF(ISERROR(MATCH($A148,Calendar!$A$2:$A$2598,0)),"", IF(VLOOKUP(A148,Calendar!$A$2:$D$2598,3)=0,"", IF(ISERROR(AVERAGE(OFFSET(E149,0,0,window_size,1))), IF(COUNTBLANK(OFFSET(E149,0,0,window_size_max-1))=window_size_max-1,"",MAX(OFFSET(D149,0,0,window_size_max-1))), VLOOKUP(A148,Calendar!$A$2:$D$2598,3)*AVERAGE(OFFSET(E149,0,0,window_size,1))+MAX(OFFSET(D149,0,0,window_size_max-1))))) ->  | H148: 638795.5604 | I148: 389625.9035 | J148: 207 | K148: 417595.2118 | L148: 1599264.547 | M148: 866272 | N148: =IF(VLOOKUP(A148,Calendar!A:E,5,FALSE)=0,"",IF(ISERROR(O148),minIMSM+add_margin,CEILING(MAX(OFFSET(M148,O148,0),OFFSET(L148,O148,0),minIMSM)+add_margin,roundto))) -> 1650000 | O148: =IF(INDIRECT("Calendar!E"&MATCH($A148,Calendar!A:A,0)-1),0,IF(INDIRECT("Calendar!E"&MATCH($A148,Calendar!A:A,0)-2),1,2)) -> 0
A149: 2021-11-09 | B149: -844047 | C149: -119433 | F149: =IF(ISERROR(MATCH($A149,Calendar!$A$2:$A$2598,0)),"", IF(VLOOKUP(A149,Calendar!$A$2:$D$2598,3)=0,"", IF(ISERROR(AVERAGE(OFFSET(E150,0,0,window_size,1))), IF(COUNTBLANK(OFFSET(E150,0,0,window_size_max-1))=window_size_max-1,"",MAX(OFFSET(D150,0,0,window_size_max-1))), VLOOKUP(A149,Calendar!$A$2:$D$2598,3)*AVERAGE(OFFSET(E150,0,0,window_size,1))+MAX(OFFSET(D150,0,0,window_size_max-1))))) ->  | H149: 635777.9135 | I149: 390113.4804 | J149: 208 | K149: 418153.6632 | L149: 1597531.339 | M149: 1643174.4 | N149: =IF(VLOOKUP(A149,Calendar!A:E,5,FALSE)=0,"",IF(ISERROR(O149),minIMSM+add_margin,CEILING(MAX(OFFSET(M149,O149,0),OFFSET(L149,O149,0),minIMSM)+add_margin,roundto))) -> 1700000 | O149: =IF(INDIRECT("Calendar!E"&MATCH($A149,Calendar!A:A,0)-1),0,IF(INDIRECT("Calendar!E"&MATCH($A149,Calendar!A:A,0)-2),1,2)) -> 0
A150: 2021-11-08 | B150: -494151 | C150: -244280 | F150: =IF(ISERROR(MATCH($A150,Calendar!$A$2:$A$2598,0)),"", IF(VLOOKUP(A150,Calendar!$A$2:$D$2598,3)=0,"", IF(ISERROR(AVERAGE(OFFSET(E151,0,0,window_size,1))), IF(COUNTBLANK(OFFSET(E151,0,0,window_size_max-1))=window_size_max-1,"",MAX(OFFSET(D151,0,0,window_size_max-1))), VLOOKUP(A150,Calendar!$A$2:$D$2598,3)*AVERAGE(OFFSET(E151,0,0,window_size,1))+MAX(OFFSET(D151,0,0,window_size_max-1))))) ->  | H150: 633328.7703 | I150: 390360.7857 | J150: 209 | K150: 418320.194 | L150: 1595465.217 | M150: 1643174.4 | N150: =IF(VLOOKUP(A150,Calendar!A:E,5,FALSE)=0,"",IF(ISERROR(O150),minIMSM+add_margin,CEILING(MAX(OFFSET(M150,O150,0),OFFSET(L150,O150,0),minIMSM)+add_margin,roundto))) -> 1700000 | O150: =IF(INDIRECT("Calendar!E"&MATCH($A150,Calendar!A:A,0)-1),0,IF(INDIRECT("Calendar!E"&MATCH($A150,Calendar!A:A,0)-2),1,2)) -> 0
A151: 2021-11-05 | B151: -777249 | C151: -478533 | F151: =IF(ISERROR(MATCH($A151,Calendar!$A$2:$A$2598,0)),"", IF(VLOOKUP(A151,Calendar!$A$2:$D$2598,3)=0,"", IF(ISERROR(AVERAGE(OFFSET(E152,0,0,window_size,1))), IF(COUNTBLANK(OFFSET(E152,0,0,window_size_max-1))=window_size_max-1,"",MAX(OFFSET(D152,0,0,window_size_max-1))), VLOOKUP(A151,Calendar!$A$2:$D$2598,3)*AVERAGE(OFFSET(E152,0,0,window_size,1))+MAX(OFFSET(D152,0,0,window_size_max-1))))) ->  | H151: 631722.3952 | I151: 390330.4982 | J151: 210 | K151: 418234.9205 | L151: 1593662.712 | M151: 1643174.4 | N151: =IF(VLOOKUP(A151,Calendar!A:E,5,FALSE)=0,"",IF(ISERROR(O151),minIMSM+add_margin,CEILING(MAX(OFFSET(M151,O151,0),OFFSET(L151,O151,0),minIMSM)+add_margin,roundto))) -> 1700000 | O151: =IF(INDIRECT("Calendar!E"&MATCH($A151,Calendar!A:A,0)-1),0,IF(INDIRECT("Calendar!E"&MATCH($A151,Calendar!A:A,0)-2),1,2)) -> 0
A152: 2021-11-04 | B152: -667214 | C152: -109515 | F152: =IF(ISERROR(MATCH($A152,Calendar!$A$2:$A$2598,0)),"", IF(VLOOKUP(A152,Calendar!$A$2:$D$2598,3)=0,"", IF(ISERROR(AVERAGE(OFFSET(E153,0,0,window_size,1))), IF(COUNTBLANK(OFFSET(E153,0,0,window_size_max-1))=window_size_max-1,"",MAX(OFFSET(D153,0,0,window_size_max-1))), VLOOKUP(A152,Calendar!$A$2:$D$2598,3)*AVERAGE(OFFSET(E153,0,0,window_size,1))+MAX(OFFSET(D153,0,0,window_size_max-1))))) ->  | H152: 629793.237 | I152: 390406.1947 | J152: 211 | K152: 418305.1429 | L152: 1591895.066 | M152: 1643174.4 | N152: =IF(VLOOKUP(A152,Calendar!A:E,5,FALSE)=0,"",IF(ISERROR(O152),minIMSM+add_margin,CEILING(MAX(OFFSET(M152,O152,0),OFFSET(L152,O152,0),minIMSM)+add_margin,roundto))) -> 1700000 | O152: =IF(INDIRECT("Calendar!E"&MATCH($A152,Calendar!A:A,0)-1),0,IF(INDIRECT("Calendar!E"&MATCH($A152,Calendar!A:A,0)-2),1,2)) -> 0
A153: 2021-11-03 | B153: -988381 | C153: -810991 | F153: =IF(ISERROR(MATCH($A153,Calendar!$A$2:$A$2598,0)),"", IF(VLOOKUP(A153,Calendar!$A$2:$D$2598,3)=0,"", IF(ISERROR(AVERAGE(OFFSET(E154,0,0,window_size,1))), IF(COUNTBLANK(OFFSET(E154,0,0,window_size_max-1))=window_size_max-1,"",MAX(OFFSET(D154,0,0,window_size_max-1))), VLOOKUP(A153,Calendar!$A$2:$D$2598,3)*AVERAGE(OFFSET(E154,0,0,window_size,1))+MAX(OFFSET(D154,0,0,window_size_max-1))))) ->  | H153: 629688.5189 | I153: 390144.343 | J153: 212 | K153: 418028.6582 | L153: 1591154.433 | M153: 1643174.4 | N153: =IF(VLOOKUP(A153,Calendar!A:E,5,FALSE)=0,"",IF(ISERROR(O153),minIMSM+add_margin,CEILING(MAX(OFFSET(M153,O153,0),OFFSET(L153,O153,0),minIMSM)+add_margin,roundto))) -> 1700000 | O153: =IF(INDIRECT("Calendar!E"&MATCH($A153,Calendar!A:A,0)-1),0,IF(INDIRECT("Calendar!E"&MATCH($A153,Calendar!A:A,0)-2),1,2)) -> 0
A154: 2021-11-02 | B154: -1067812 | C154: -244914 | D154: =IF(B154>minIMSM,B154,"") ->  | E154: =IF(OR(A154=$A$11,A154=""),"",IF(AND(A153-A154=1,A154-A155=1),D154,"")) ->  | F154: =IF(ISERROR(MATCH($A154,Calendar!$A$2:$A$2598,0)),"", IF(VLOOKUP(A154,Calendar!$A$2:$D$2598,3)=0,"", IF(ISERROR(AVERAGE(OFFSET(E155,0,0,window_size,1))), IF(COUNTBLANK(OFFSET(E155,0,0,window_size_max-1))=window_size_max-1,"",MAX(OFFSET(D155,0,0,window_size_max-1))), VLOOKUP(A154,Calendar!$A$2:$D$2598,3)*AVERAGE(OFFSET(E155,0,0,window_size,1))+MAX(OFFSET(D155,0,0,window_size_max-1))))) ->  | H154: 625876.0981 | I154: 392820.6353 | J154: 214 | K154: 420816.762 | L154: 1593754.651 | M154: 1643174.4 | N154: =IF(VLOOKUP(A154,Calendar!A:E,5,FALSE)=0,"",IF(ISERROR(O154),minIMSM+add_margin,CEILING(MAX(OFFSET(M154,O154,0),OFFSET(L154,O154,0),minIMSM)+add_margin,roundto))) -> 1700000 | O154: =IF(INDIRECT("Calendar!E"&MATCH($A154,Calendar!A:A,0)-1),0,IF(INDIRECT("Calendar!E"&MATCH($A154,Calendar!A:A,0)-2),1,2)) -> 0
A155: 2021-11-01 | B155: -405047 | C155: 42484 | F155: =IF(ISERROR(MATCH($A155,Calendar!$A$2:$A$2598,0)),"", IF(VLOOKUP(A155,Calendar!$A$2:$D$2598,3)=0,"", IF(ISERROR(AVERAGE(OFFSET(E156,0,0,window_size,1))), IF(COUNTBLANK(OFFSET(E156,0,0,window_size_max-1))=window_size_max-1,"",MAX(OFFSET(D156,0,0,window_size_max-1))), VLOOKUP(A155,Calendar!$A$2:$D$2598,3)*AVERAGE(OFFSET(E156,0,0,window_size,1))+MAX(OFFSET(D156,0,0,window_size_max-1))))) ->  | G155: 42484 | H155: 625908.8879 | I155: 390406.3433 | J155: 214 | K155: 418230.4047 | L155: 1587838.819 | M155: 1643174.4 | N155: =IF(VLOOKUP(A155,Calendar!A:E,5,FALSE)=0,"",IF(ISERROR(O155),minIMSM+add_margin,CEILING(MAX(OFFSET(M155,O155,0),OFFSET(L155,O155,0),minIMSM)+add_margin,roundto))) -> 1700000 | O155: =IF(INDIRECT("Calendar!E"&MATCH($A155,Calendar!A:A,0)-1),0,IF(INDIRECT("Calendar!E"&MATCH($A155,Calendar!A:A,0)-2),1,2)) -> 0
A156: 2021-10-29 | B156: -204723 | C156: -50316 | F156: =IF(ISERROR(MATCH($A156,Calendar!$A$2:$A$2598,0)),"", IF(VLOOKUP(A156,Calendar!$A$2:$D$2598,3)=0,"", IF(ISERROR(AVERAGE(OFFSET(E157,0,0,window_size,1))), IF(COUNTBLANK(OFFSET(E157,0,0,window_size_max-1))=window_size_max-1,"",MAX(OFFSET(D157,0,0,window_size_max-1))), VLOOKUP(A156,Calendar!$A$2:$D$2598,3)*AVERAGE(OFFSET(E157,0,0,window_size,1))+MAX(OFFSET(D157,0,0,window_size_max-1))))) ->  | H156: 625895.0233 | I156: 388023.2384 | J156: 215 | K156: 415576.8677 | L156: 1581721.819 | M156: 1643174.4 | N156: =IF(VLOOKUP(A156,Calendar!A:E,5,FALSE)=0,"",IF(ISERROR(O156),minIMSM+add_margin,CEILING(MAX(OFFSET(M156,O156,0),OFFSET(L156,O156,0),minIMSM)+add_margin,roundto))) -> 1700000 | O156: =IF(INDIRECT("Calendar!E"&MATCH($A156,Calendar!A:A,0)-1),0,IF(INDIRECT("Calendar!E"&MATCH($A156,Calendar!A:A,0)-2),1,2)) -> 0
A157: 2021-10-28 | B157: 24438 | C157: 164435 | D157: 24438 | E157: 24438 | F157: =IF(ISERROR(MATCH($A157,Calendar!$A$2:$A$2598,0)),"", IF(VLOOKUP(A157,Calendar!$A$2:$D$2598,3)=0,"", IF(ISERROR(AVERAGE(OFFSET(E158,0,0,window_size,1))), IF(COUNTBLANK(OFFSET(E158,0,0,window_size_max-1))=window_size_max-1,"",MAX(OFFSET(D158,0,0,window_size_max-1))), VLOOKUP(A157,Calendar!$A$2:$D$2598,3)*AVERAGE(OFFSET(E158,0,0,window_size,1))+MAX(OFFSET(D158,0,0,window_size_max-1))))) ->  | G157: 164435 | H157: 626671.1953 | I157: 386955.3249 | J157: 215 | K157: 414433.1213 | L157: 1579867.374 | M157: 1643174.4 | N157: =IF(VLOOKUP(A157,Calendar!A:E,5,FALSE)=0,"",IF(ISERROR(O157),minIMSM+add_margin,CEILING(MAX(OFFSET(M157,O157,0),OFFSET(L157,O157,0),minIMSM)+add_margin,roundto))) -> 1700000 | O157: =IF(INDIRECT("Calendar!E"&MATCH($A157,Calendar!A:A,0)-1),0,IF(INDIRECT("Calendar!E"&MATCH($A157,Calendar!A:A,0)-2),1,2)) -> 0
A158: 2021-10-27 | B158: -440352 | C158: -328512 | F158: =IF(ISERROR(MATCH($A158,Calendar!$A$2:$A$2598,0)),"", IF(VLOOKUP(A158,Calendar!$A$2:$D$2598,3)=0,"", IF(ISERROR(AVERAGE(OFFSET(E159,0,0,window_size,1))), IF(COUNTBLANK(OFFSET(E159,0,0,window_size_max-1))=window_size_max-1,"",MAX(OFFSET(D159,0,0,window_size_max-1))), VLOOKUP(A158,Calendar!$A$2:$D$2598,3)*AVERAGE(OFFSET(E159,0,0,window_size,1))+MAX(OFFSET(D159,0,0,window_size_max-1))))) ->  | H158: 625076.2361 | I158: 386986.518 | J158: 216 | K158: 414450.7186 | L158: 1578312.889 | M158: 1643174.4 | N158: =IF(VLOOKUP(A158,Calendar!A:E,5,FALSE)=0,"",IF(ISERROR(O158),minIMSM+add_margin,CEILING(MAX(OFFSET(M158,O158,0),OFFSET(L158,O158,0),minIMSM)+add_margin,roundto))) -> 1700000 | O158: =IF(INDIRECT("Calendar!E"&MATCH($A158,Calendar!A:A,0)-1),0,IF(INDIRECT("Calendar!E"&MATCH($A158,Calendar!A:A,0)-2),1,2)) -> 0
A159: 2021-10-26 | B159: -976454 | C159: -403449 | F159: =IF(ISERROR(MATCH($A159,Calendar!$A$2:$A$2598,0)),"", IF(VLOOKUP(A159,Calendar!$A$2:$D$2598,3)=0,"", IF(ISERROR(AVERAGE(OFFSET(E160,0,0,window_size,1))), IF(COUNTBLANK(OFFSET(E160,0,0,window_size_max-1))=window_size_max-1,"",MAX(OFFSET(D160,0,0,window_size_max-1))), VLOOKUP(A159,Calendar!$A$2:$D$2598,3)*AVERAGE(OFFSET(E160,0,0,window_size,1))+MAX(OFFSET(D160,0,0,window_size_max-1))))) ->  | H159: 622476.7064 | I159: 385785.0867 | J159: 218 | K159: 413021.7488 | L159: 1572426.729 | M159: 1643174.4 | N159: =IF(VLOOKUP(A159,Calendar!A:E,5,FALSE)=0,"",IF(ISERROR(O159),minIMSM+add_margin,CEILING(MAX(OFFSET(M159,O159,0),OFFSET(L159,O159,0),minIMSM)+add_margin,roundto))) -> 1700000 | O159: =IF(INDIRECT("Calendar!E"&MATCH($A159,Calendar!A:A,0)-1),0,IF(INDIRECT("Calendar!E"&MATCH($A159,Calendar!A:A,0)-2),1,2)) -> 0
A160: 2021-10-25 | B160: -196979 | C160: 371152 | F160: =IF(ISERROR(MATCH($A160,Calendar!$A$2:$A$2598,0)),"", IF(VLOOKUP(A160,Calendar!$A$2:$D$2598,3)=0,"", IF(ISERROR(AVERAGE(OFFSET(E161,0,0,window_size,1))), IF(COUNTBLANK(OFFSET(E161,0,0,window_size_max-1))=window_size_max-1,"",MAX(OFFSET(D161,0,0,window_size_max-1))), VLOOKUP(A160,Calendar!$A$2:$D$2598,3)*AVERAGE(OFFSET(E161,0,0,window_size,1))+MAX(OFFSET(D161,0,0,window_size_max-1))))) ->  | G160: 371152 | H160: 620717.1468 | I160: 388620.6036 | J160: 218 | K160: 416057.4549 | L160: 1577649.293 | M160: 1643174.4 | N160: =IF(VLOOKUP(A160,Calendar!A:E,5,FALSE)=0,"",IF(ISERROR(O160),minIMSM+add_margin,CEILING(MAX(OFFSET(M160,O160,0),OFFSET(L160,O160,0),minIMSM)+add_margin,roundto))) -> 1700000 | O160: =IF(INDIRECT("Calendar!E"&MATCH($A160,Calendar!A:A,0)-1),0,IF(INDIRECT("Calendar!E"&MATCH($A160,Calendar!A:A,0)-2),1,2)) -> 0
A161: 2021-10-22 | B161: 347987 | C161: 215979 | D161: 347987 | F161: =IF(ISERROR(MATCH($A161,Calendar!$A$2:$A$2598,0)),"", IF(VLOOKUP(A161,Calendar!$A$2:$D$2598,3)=0,"", IF(ISERROR(AVERAGE(OFFSET(E162,0,0,window_size,1))), IF(COUNTBLANK(OFFSET(E162,0,0,window_size_max-1))=window_size_max-1,"",MAX(OFFSET(D162,0,0,window_size_max-1))), VLOOKUP(A161,Calendar!$A$2:$D$2598,3)*AVERAGE(OFFSET(E162,0,0,window_size,1))+MAX(OFFSET(D162,0,0,window_size_max-1))))) ->  | G161: 215979 | H161: 621347.0688 | I161: 387434.3095 | J161: 218 | K161: 414787.4077 | L161: 1575358.106 | M161: 1643174.4 | N161: =IF(VLOOKUP(A161,Calendar!A:E,5,FALSE)=0,"",IF(ISERROR(O161),minIMSM+add_margin,CEILING(MAX(OFFSET(M161,O161,0),OFFSET(L161,O161,0),minIMSM)+add_margin,roundto))) -> 1700000 | O161: =IF(INDIRECT("Calendar!E"&MATCH($A161,Calendar!A:A,0)-1),0,IF(INDIRECT("Calendar!E"&MATCH($A161,Calendar!A:A,0)-2),1,2)) -> 0
A162: 2021-10-21 | B162: 124573 | C162: 190731 | D162: 124573 | E162: 124573 | F162: =IF(ISERROR(MATCH($A162,Calendar!$A$2:$A$2598,0)),"", IF(VLOOKUP(A162,Calendar!$A$2:$D$2598,3)=0,"", IF(ISERROR(AVERAGE(OFFSET(E163,0,0,window_size,1))), IF(COUNTBLANK(OFFSET(E163,0,0,window_size_max-1))=window_size_max-1,"",MAX(OFFSET(D163,0,0,window_size_max-1))), VLOOKUP(A162,Calendar!$A$2:$D$2598,3)*AVERAGE(OFFSET(E163,0,0,window_size,1))+MAX(OFFSET(D163,0,0,window_size_max-1))))) ->  | G162: 190731 | H162: 622012.5 | I162: 386748.115 | J162: 218 | K162: 414052.7674 | L162: 1574333.865 | M162: 1643174.4 | N162: =IF(VLOOKUP(A162,Calendar!A:E,5,FALSE)=0,"",IF(ISERROR(O162),minIMSM+add_margin,CEILING(MAX(OFFSET(M162,O162,0),OFFSET(L162,O162,0),minIMSM)+add_margin,roundto))) -> 1700000 | O162: =IF(INDIRECT("Calendar!E"&MATCH($A162,Calendar!A:A,0)-1),0,IF(INDIRECT("Calendar!E"&MATCH($A162,Calendar!A:A,0)-2),1,2)) -> 0
A163: 2021-10-20 | B163: -142360 | C163: -181130 | F163: =IF(ISERROR(MATCH($A163,Calendar!$A$2:$A$2598,0)),"", IF(VLOOKUP(A163,Calendar!$A$2:$D$2598,3)=0,"", IF(ISERROR(AVERAGE(OFFSET(E164,0,0,window_size,1))), IF(COUNTBLANK(OFFSET(E164,0,0,window_size_max-1))=window_size_max-1,"",MAX(OFFSET(D164,0,0,window_size_max-1))), VLOOKUP(A163,Calendar!$A$2:$D$2598,3)*AVERAGE(OFFSET(E164,0,0,window_size,1))+MAX(OFFSET(D164,0,0,window_size_max-1))))) ->  | H163: 621860.9452 | I163: 386519.0487 | J163: 219 | K163: 413833.8417 | L163: 1573678.781 | M163: 1643174.4 | N163: =IF(VLOOKUP(A163,Calendar!A:E,5,FALSE)=0,"",IF(ISERROR(O163),minIMSM+add_margin,CEILING(MAX(OFFSET(M163,O163,0),OFFSET(L163,O163,0),minIMSM)+add_margin,roundto))) -> 1700000 | O163: =IF(INDIRECT("Calendar!E"&MATCH($A163,Calendar!A:A,0)-1),0,IF(INDIRECT("Calendar!E"&MATCH($A163,Calendar!A:A,0)-2),1,2)) -> 0
A164: 2021-10-19 | B164: -485112 | C164: -159767 | F164: =IF(ISERROR(MATCH($A164,Calendar!$A$2:$A$2598,0)),"", IF(VLOOKUP(A164,Calendar!$A$2:$D$2598,3)=0,"", IF(ISERROR(AVERAGE(OFFSET(E165,0,0,window_size,1))), IF(COUNTBLANK(OFFSET(E165,0,0,window_size_max-1))=window_size_max-1,"",MAX(OFFSET(D165,0,0,window_size_max-1))), VLOOKUP(A164,Calendar!$A$2:$D$2598,3)*AVERAGE(OFFSET(E165,0,0,window_size,1))+MAX(OFFSET(D165,0,0,window_size_max-1))))) ->  | H164: 622259.65 | I164: 386258.6893 | J164: 220 | K164: 413485.9069 | L164: 1573277.236 | M164: 1737654.4 | N164: =IF(VLOOKUP(A164,Calendar!A:E,5,FALSE)=0,"",IF(ISERROR(O164),minIMSM+add_margin,CEILING(MAX(OFFSET(M164,O164,0),OFFSET(L164,O164,0),minIMSM)+add_margin,roundto))) -> 1790000 | O164: =IF(INDIRECT("Calendar!E"&MATCH($A164,Calendar!A:A,0)-1),0,IF(INDIRECT("Calendar!E"&MATCH($A164,Calendar!A:A,0)-2),1,2)) -> 0
A165: 2021-10-18 | B165: -691785 | C165: -99808 | F165: =IF(ISERROR(MATCH($A165,Calendar!$A$2:$A$2598,0)),"", IF(VLOOKUP(A165,Calendar!$A$2:$D$2598,3)=0,"", IF(ISERROR(AVERAGE(OFFSET(E166,0,0,window_size,1))), IF(COUNTBLANK(OFFSET(E166,0,0,window_size_max-1))=window_size_max-1,"",MAX(OFFSET(D166,0,0,window_size_max-1))), VLOOKUP(A165,Calendar!$A$2:$D$2598,3)*AVERAGE(OFFSET(E166,0,0,window_size,1))+MAX(OFFSET(D166,0,0,window_size_max-1))))) ->  | H165: 619922.4279 | I165: 386103.1086 | J165: 222 | K165: 413383.6899 | L165: 1570704.915 | M165: 1737654.4 | N165: =IF(VLOOKUP(A165,Calendar!A:E,5,FALSE)=0,"",IF(ISERROR(O165),minIMSM+add_margin,CEILING(MAX(OFFSET(M165,O165,0),OFFSET(L165,O165,0),minIMSM)+add_margin,roundto))) -> 1790000 | O165: =IF(INDIRECT("Calendar!E"&MATCH($A165,Calendar!A:A,0)-1),0,IF(INDIRECT("Calendar!E"&MATCH($A165,Calendar!A:A,0)-2),1,2)) -> 0
A166: 2021-10-15 | B166: -227154 | C166: 246891 | F166: =IF(ISERROR(MATCH($A166,Calendar!$A$2:$A$2598,0)),"", IF(VLOOKUP(A166,Calendar!$A$2:$D$2598,3)=0,"", IF(ISERROR(AVERAGE(OFFSET(E167,0,0,window_size,1))), IF(COUNTBLANK(OFFSET(E167,0,0,window_size_max-1))=window_size_max-1,"",MAX(OFFSET(D167,0,0,window_size_max-1))), VLOOKUP(A166,Calendar!$A$2:$D$2598,3)*AVERAGE(OFFSET(E167,0,0,window_size,1))+MAX(OFFSET(D167,0,0,window_size_max-1))))) ->  | G166: 246891 | H166: 619620.1126 | I166: 386344.5003 | J166: 222 | K166: 413642.1375 | L166: 1570997.029 | M166: 1737654.4 | N166: =IF(VLOOKUP(A166,Calendar!A:E,5,FALSE)=0,"",IF(ISERROR(O166),minIMSM+add_margin,CEILING(MAX(OFFSET(M166,O166,0),OFFSET(L166,O166,0),minIMSM)+add_margin,roundto))) -> 1790000 | O166: =IF(INDIRECT("Calendar!E"&MATCH($A166,Calendar!A:A,0)-1),0,IF(INDIRECT("Calendar!E"&MATCH($A166,Calendar!A:A,0)-2),1,2)) -> 0
A167: 2021-10-14 | B167: -580427 | C167: -852064 | F167: =IF(ISERROR(MATCH($A167,Calendar!$A$2:$A$2598,0)),"", IF(VLOOKUP(A167,Calendar!$A$2:$D$2598,3)=0,"", IF(ISERROR(AVERAGE(OFFSET(E168,0,0,window_size,1))), IF(COUNTBLANK(OFFSET(E168,0,0,window_size_max-1))=window_size_max-1,"",MAX(OFFSET(D168,0,0,window_size_max-1))), VLOOKUP(A167,Calendar!$A$2:$D$2598,3)*AVERAGE(OFFSET(E168,0,0,window_size,1))+MAX(OFFSET(D168,0,0,window_size_max-1))))) ->  | H167: 618838.0942 | I167: 386226.8304 | J167: 223 | K167: 413522.7858 | L167: 1569940.502 | M167: 1737654.4 | N167: =IF(VLOOKUP(A167,Calendar!A:E,5,FALSE)=0,"",IF(ISERROR(O167),minIMSM+add_margin,CEILING(MAX(OFFSET(M167,O167,0),OFFSET(L167,O167,0),minIMSM)+add_margin,roundto))) -> 1790000 | O167: =IF(INDIRECT("Calendar!E"&MATCH($A167,Calendar!A:A,0)-1),0,IF(INDIRECT("Calendar!E"&MATCH($A167,Calendar!A:A,0)-2),1,2)) -> 0
A168: 2021-10-13 | B168: -1257375 | C168: -400167 | F168: =IF(ISERROR(MATCH($A168,Calendar!$A$2:$A$2598,0)),"", IF(VLOOKUP(A168,Calendar!$A$2:$D$2598,3)=0,"", IF(ISERROR(AVERAGE(OFFSET(E169,0,0,window_size,1))), IF(COUNTBLANK(OFFSET(E169,0,0,window_size_max-1))=window_size_max-1,"",MAX(OFFSET(D169,0,0,window_size_max-1))), VLOOKUP(A168,Calendar!$A$2:$D$2598,3)*AVERAGE(OFFSET(E169,0,0,window_size,1))+MAX(OFFSET(D169,0,0,window_size_max-1))))) ->  | H168: 618036.1422 | I168: 384901.9594 | J168: 225 | K168: 411961.5439 | L168: 1565547.693 | M168: 2149096 | N168: =IF(VLOOKUP(A168,Calendar!A:E,5,FALSE)=0,"",IF(ISERROR(O168),minIMSM+add_margin,CEILING(MAX(OFFSET(M168,O168,0),OFFSET(L168,O168,0),minIMSM)+add_margin,roundto))) -> 2200000 | O168: =IF(INDIRECT("Calendar!E"&MATCH($A168,Calendar!A:A,0)-1),0,IF(INDIRECT("Calendar!E"&MATCH($A168,Calendar!A:A,0)-2),1,2)) -> 0
A169: 2021-10-12 | B169: -11454 | C169: 357592 | F169: =IF(ISERROR(MATCH($A169,Calendar!$A$2:$A$2598,0)),"", IF(VLOOKUP(A169,Calendar!$A$2:$D$2598,3)=0,"", IF(ISERROR(AVERAGE(OFFSET(E170,0,0,window_size,1))), IF(COUNTBLANK(OFFSET(E170,0,0,window_size_max-1))=window_size_max-1,"",MAX(OFFSET(D170,0,0,window_size_max-1))), VLOOKUP(A169,Calendar!$A$2:$D$2598,3)*AVERAGE(OFFSET(E170,0,0,window_size,1))+MAX(OFFSET(D170,0,0,window_size_max-1))))) ->  | G169: 357592 | H169: 621902.6875 | I169: 382647.7593 | J169: 224 | K169: 409571.373 | L169: 1563916.845 | M169: 2149096 | N169: =IF(VLOOKUP(A169,Calendar!A:E,5,FALSE)=0,"",IF(ISERROR(O169),minIMSM+add_margin,CEILING(MAX(OFFSET(M169,O169,0),OFFSET(L169,O169,0),minIMSM)+add_margin,roundto))) -> 2200000 | O169: =IF(INDIRECT("Calendar!E"&MATCH($A169,Calendar!A:A,0)-1),0,IF(INDIRECT("Calendar!E"&MATCH($A169,Calendar!A:A,0)-2),1,2)) -> 0
A170: 2021-10-11 | B170: 34976 | C170: -327035 | D170: 34976 | F170: =IF(ISERROR(MATCH($A170,Calendar!$A$2:$A$2598,0)),"", IF(VLOOKUP(A170,Calendar!$A$2:$D$2598,3)=0,"", IF(ISERROR(AVERAGE(OFFSET(E171,0,0,window_size,1))), IF(COUNTBLANK(OFFSET(E171,0,0,window_size_max-1))=window_size_max-1,"",MAX(OFFSET(D171,0,0,window_size_max-1))), VLOOKUP(A170,Calendar!$A$2:$D$2598,3)*AVERAGE(OFFSET(E171,0,0,window_size,1))+MAX(OFFSET(D171,0,0,window_size_max-1))))) ->  | H170: 617372.6549 | I170: 385535.3604 | J170: 226 | K170: 412645.4066 | L170: 1566457.09 | M170: 2149096 | N170: =IF(VLOOKUP(A170,Calendar!A:E,5,FALSE)=0,"",IF(ISERROR(O170),minIMSM+add_margin,CEILING(MAX(OFFSET(M170,O170,0),OFFSET(L170,O170,0),minIMSM)+add_margin,roundto))) -> 2200000 | O170: =IF(INDIRECT("Calendar!E"&MATCH($A170,Calendar!A:A,0)-1),0,IF(INDIRECT("Calendar!E"&MATCH($A170,Calendar!A:A,0)-2),1,2)) -> 0
A171: 2021-10-08 | B171: -223907 | C171: 63737 | F171: =IF(ISERROR(MATCH($A171,Calendar!$A$2:$A$2598,0)),"", IF(VLOOKUP(A171,Calendar!$A$2:$D$2598,3)=0,"", IF(ISERROR(AVERAGE(OFFSET(E172,0,0,window_size,1))), IF(COUNTBLANK(OFFSET(E172,0,0,window_size_max-1))=window_size_max-1,"",MAX(OFFSET(D172,0,0,window_size_max-1))), VLOOKUP(A171,Calendar!$A$2:$D$2598,3)*AVERAGE(OFFSET(E172,0,0,window_size,1))+MAX(OFFSET(D172,0,0,window_size_max-1))))) ->  | G171: 63737 | H171: 618214.6106 | I171: 383262.9306 | J171: 226 | K171: 410213.1843 | L171: 1561704.934 | M171: 2149096 | N171: =IF(VLOOKUP(A171,Calendar!A:E,5,FALSE)=0,"",IF(ISERROR(O171),minIMSM+add_margin,CEILING(MAX(OFFSET(M171,O171,0),OFFSET(L171,O171,0),minIMSM)+add_margin,roundto))) -> 2200000 | O171: =IF(INDIRECT("Calendar!E"&MATCH($A171,Calendar!A:A,0)-1),0,IF(INDIRECT("Calendar!E"&MATCH($A171,Calendar!A:A,0)-2),1,2)) -> 0
A172: 2021-10-07 | B172: 488419 | C172: 442895 | D172: 488419 | E172: 488419 | F172: =IF(ISERROR(MATCH($A172,Calendar!$A$2:$A$2598,0)),"", IF(VLOOKUP(A172,Calendar!$A$2:$D$2598,3)=0,"", IF(ISERROR(AVERAGE(OFFSET(E173,0,0,window_size,1))), IF(COUNTBLANK(OFFSET(E173,0,0,window_size_max-1))=window_size_max-1,"",MAX(OFFSET(D173,0,0,window_size_max-1))), VLOOKUP(A172,Calendar!$A$2:$D$2598,3)*AVERAGE(OFFSET(E173,0,0,window_size,1))+MAX(OFFSET(D173,0,0,window_size_max-1))))) ->  | G172: 442895 | H172: 614696.6372 | I172: 390503.863 | J172: 226 | K172: 417963.284 | L172: 1576012.19 | M172: 2149096 | N172: =IF(VLOOKUP(A172,Calendar!A:E,5,FALSE)=0,"",IF(ISERROR(O172),minIMSM+add_margin,CEILING(MAX(OFFSET(M172,O172,0),OFFSET(L172,O172,0),minIMSM)+add_margin,roundto))) -> 2200000 | O172: =IF(INDIRECT("Calendar!E"&MATCH($A172,Calendar!A:A,0)-1),0,IF(INDIRECT("Calendar!E"&MATCH($A172,Calendar!A:A,0)-2),1,2)) -> 0
A173: 2021-10-06 | B173: 471324 | C173: 9046 | D173: 471324 | E173: 471324 | F173: =IF(ISERROR(MATCH($A173,Calendar!$A$2:$A$2598,0)),"", IF(VLOOKUP(A173,Calendar!$A$2:$D$2598,3)=0,"", IF(ISERROR(AVERAGE(OFFSET(E174,0,0,window_size,1))), IF(COUNTBLANK(OFFSET(E174,0,0,window_size_max-1))=window_size_max-1,"",MAX(OFFSET(D174,0,0,window_size_max-1))), VLOOKUP(A173,Calendar!$A$2:$D$2598,3)*AVERAGE(OFFSET(E174,0,0,window_size,1))+MAX(OFFSET(D174,0,0,window_size_max-1))))) ->  | G173: 9046 | H173: 616174.9956 | I173: 387653.8867 | J173: 226 | K173: 414912.9034 | L173: 1570474.673 | M173: 2149096 | N173: =IF(VLOOKUP(A173,Calendar!A:E,5,FALSE)=0,"",IF(ISERROR(O173),minIMSM+add_margin,CEILING(MAX(OFFSET(M173,O173,0),OFFSET(L173,O173,0),minIMSM)+add_margin,roundto))) -> 2200000 | O173: =IF(INDIRECT("Calendar!E"&MATCH($A173,Calendar!A:A,0)-1),0,IF(INDIRECT("Calendar!E"&MATCH($A173,Calendar!A:A,0)-2),1,2)) -> 0
A174: 2021-10-05 | B174: 230442 | C174: 181029 | D174: 230442 | E174: 230442 | F174: =IF(ISERROR(MATCH($A174,Calendar!$A$2:$A$2598,0)),"", IF(VLOOKUP(A174,Calendar!$A$2:$D$2598,3)=0,"", IF(ISERROR(AVERAGE(OFFSET(E175,0,0,window_size,1))), IF(COUNTBLANK(OFFSET(E175,0,0,window_size_max-1))=window_size_max-1,"",MAX(OFFSET(D175,0,0,window_size_max-1))), VLOOKUP(A174,Calendar!$A$2:$D$2598,3)*AVERAGE(OFFSET(E175,0,0,window_size,1))+MAX(OFFSET(D175,0,0,window_size_max-1))))) ->  | G174: 181029 | H174: 617038.9912 | I174: 389411.5376 | J174: 226 | K174: 416794.1486 | L174: 1575665.533 | M174: 2149096 | N174: =IF(VLOOKUP(A174,Calendar!A:E,5,FALSE)=0,"",IF(ISERROR(O174),minIMSM+add_margin,CEILING(MAX(OFFSET(M174,O174,0),OFFSET(L174,O174,0),minIMSM)+add_margin,roundto))) -> 2200000 | O174: =IF(INDIRECT("Calendar!E"&MATCH($A174,Calendar!A:A,0)-1),0,IF(INDIRECT("Calendar!E"&MATCH($A174,Calendar!A:A,0)-2),1,2)) -> 0
A175: 2021-10-04 | B175: 253646 | C175: 53828 | D175: 253646 | F175: =IF(ISERROR(MATCH($A175,Calendar!$A$2:$A$2598,0)),"", IF(VLOOKUP(A175,Calendar!$A$2:$D$2598,3)=0,"", IF(ISERROR(AVERAGE(OFFSET(E176,0,0,window_size,1))), IF(COUNTBLANK(OFFSET(E176,0,0,window_size_max-1))=window_size_max-1,"",MAX(OFFSET(D176,0,0,window_size_max-1))), VLOOKUP(A175,Calendar!$A$2:$D$2598,3)*AVERAGE(OFFSET(E176,0,0,window_size,1))+MAX(OFFSET(D176,0,0,window_size_max-1))))) ->  | G175: 53828 | H175: 617476.1549 | I175: 388628.9839 | J175: 226 | K175: 415956.5673 | L175: 1574176.26 | M175: 2149096 | N175: =IF(VLOOKUP(A175,Calendar!A:E,5,FALSE)=0,"",IF(ISERROR(O175),minIMSM+add_margin,CEILING(MAX(OFFSET(M175,O175,0),OFFSET(L175,O175,0),minIMSM)+add_margin,roundto))) -> 2200000 | O175: =IF(INDIRECT("Calendar!E"&MATCH($A175,Calendar!A:A,0)-1),0,IF(INDIRECT("Calendar!E"&MATCH($A175,Calendar!A:A,0)-2),1,2)) -> 0
A176: 2021-10-01 | B176: 323624 | C176: 159708 | D176: 323624 | F176: =IF(ISERROR(MATCH($A176,Calendar!$A$2:$A$2598,0)),"", IF(VLOOKUP(A176,Calendar!$A$2:$D$2598,3)=0,"", IF(ISERROR(AVERAGE(OFFSET(E177,0,0,window_size,1))), IF(COUNTBLANK(OFFSET(E177,0,0,window_size_max-1))=window_size_max-1,"",MAX(OFFSET(D177,0,0,window_size_max-1))), VLOOKUP(A176,Calendar!$A$2:$D$2598,3)*AVERAGE(OFFSET(E177,0,0,window_size,1))+MAX(OFFSET(D177,0,0,window_size_max-1))))) ->  | G176: 159708 | H176: 616799.7478 | I176: 388936.1968 | J176: 226 | K176: 416285.3828 | L176: 1574256.128 | M176: 2149096 | N176: =IF(VLOOKUP(A176,Calendar!A:E,5,FALSE)=0,"",IF(ISERROR(O176),minIMSM+add_margin,CEILING(MAX(OFFSET(M176,O176,0),OFFSET(L176,O176,0),minIMSM)+add_margin,roundto))) -> 2200000 | O176: =IF(INDIRECT("Calendar!E"&MATCH($A176,Calendar!A:A,0)-1),0,IF(INDIRECT("Calendar!E"&MATCH($A176,Calendar!A:A,0)-2),1,2)) -> 0
A177: 2021-09-30 | B177: 541420 | C177: 337875 | D177: 541420 | E177: 541420 | F177: =IF(ISERROR(MATCH($A177,Calendar!$A$2:$A$2598,0)),"", IF(VLOOKUP(A177,Calendar!$A$2:$D$2598,3)=0,"", IF(ISERROR(AVERAGE(OFFSET(E178,0,0,window_size,1))), IF(COUNTBLANK(OFFSET(E178,0,0,window_size_max-1))=window_size_max-1,"",MAX(OFFSET(D178,0,0,window_size_max-1))), VLOOKUP(A177,Calendar!$A$2:$D$2598,3)*AVERAGE(OFFSET(E178,0,0,window_size,1))+MAX(OFFSET(D178,0,0,window_size_max-1))))) ->  | G177: 337875 | H177: 616709.4469 | I177: 389919.6772 | J177: 226 | K177: 417338.0195 | L177: 1576586.892 | M177: 2149096 | N177: =IF(VLOOKUP(A177,Calendar!A:E,5,FALSE)=0,"",IF(ISERROR(O177),minIMSM+add_margin,CEILING(MAX(OFFSET(M177,O177,0),OFFSET(L177,O177,0),minIMSM)+add_margin,roundto))) -> 2200000 | O177: =IF(INDIRECT("Calendar!E"&MATCH($A177,Calendar!A:A,0)-1),0,IF(INDIRECT("Calendar!E"&MATCH($A177,Calendar!A:A,0)-2),1,2)) -> 0
A178: 2021-09-29 | B178: 518681 | C178: 518938 | D178: 518681 | E178: 518681 | F178: =IF(ISERROR(MATCH($A178,Calendar!$A$2:$A$2598,0)),"", IF(VLOOKUP(A178,Calendar!$A$2:$D$2598,3)=0,"", IF(ISERROR(AVERAGE(OFFSET(E179,0,0,window_size,1))), IF(COUNTBLANK(OFFSET(E179,0,0,window_size_max-1))=window_size_max-1,"",MAX(OFFSET(D179,0,0,window_size_max-1))), VLOOKUP(A178,Calendar!$A$2:$D$2598,3)*AVERAGE(OFFSET(E179,0,0,window_size,1))+MAX(OFFSET(D179,0,0,window_size_max-1))))) ->  | G178: 518938 | H178: 614163.6814 | I178: 390062.9934 | J178: 226 | K178: 417491.4134 | L178: 1574393.932 | M178: 2149096 | N178: =IF(VLOOKUP(A178,Calendar!A:E,5,FALSE)=0,"",IF(ISERROR(O178),minIMSM+add_margin,CEILING(MAX(OFFSET(M178,O178,0),OFFSET(L178,O178,0),minIMSM)+add_margin,roundto))) -> 2200000 | O178: =IF(INDIRECT("Calendar!E"&MATCH($A178,Calendar!A:A,0)-1),0,IF(INDIRECT("Calendar!E"&MATCH($A178,Calendar!A:A,0)-2),1,2)) -> 0
A179: 2021-09-28 | B179: 1026984 | C179: 461645 | D179: 1026984 | E179: 1026984 | F179: =IF(ISERROR(MATCH($A179,Calendar!$A$2:$A$2598,0)),"", IF(VLOOKUP(A179,Calendar!$A$2:$D$2598,3)=0,"", IF(ISERROR(AVERAGE(OFFSET(E180,0,0,window_size,1))), IF(COUNTBLANK(OFFSET(E180,0,0,window_size_max-1))=window_size_max-1,"",MAX(OFFSET(D180,0,0,window_size_max-1))), VLOOKUP(A179,Calendar!$A$2:$D$2598,3)*AVERAGE(OFFSET(E180,0,0,window_size,1))+MAX(OFFSET(D180,0,0,window_size_max-1))))) ->  | G179: 461645 | H179: 613613.7478 | I179: 391718.0655 | J179: 226 | K179: 419262.8667 | L179: 1577918.341 | M179: 2149096 | N179: =IF(VLOOKUP(A179,Calendar!A:E,5,FALSE)=0,"",IF(ISERROR(O179),minIMSM+add_margin,CEILING(MAX(OFFSET(M179,O179,0),OFFSET(L179,O179,0),minIMSM)+add_margin,roundto))) -> 2200000 | O179: =IF(INDIRECT("Calendar!E"&MATCH($A179,Calendar!A:A,0)-1),0,IF(INDIRECT("Calendar!E"&MATCH($A179,Calendar!A:A,0)-2),1,2)) -> 0
A180: 2021-09-27 | B180: 775885 | C180: 464850 | D180: 775885 | F180: =IF(ISERROR(MATCH($A180,Calendar!$A$2:$A$2598,0)),"", IF(VLOOKUP(A180,Calendar!$A$2:$D$2598,3)=0,"", IF(ISERROR(AVERAGE(OFFSET(E181,0,0,window_size,1))), IF(COUNTBLANK(OFFSET(E181,0,0,window_size_max-1))=window_size_max-1,"",MAX(OFFSET(D181,0,0,window_size_max-1))), VLOOKUP(A180,Calendar!$A$2:$D$2598,3)*AVERAGE(OFFSET(E181,0,0,window_size,1))+MAX(OFFSET(D181,0,0,window_size_max-1))))) ->  | G180: 464850 | H180: 611131 | I180: 394443.4189 | J180: 226 | K180: 422179.8613 | L180: 1582144.681 | M180: 2149096 | N180: =IF(VLOOKUP(A180,Calendar!A:E,5,FALSE)=0,"",IF(ISERROR(O180),minIMSM+add_margin,CEILING(MAX(OFFSET(M180,O180,0),OFFSET(L180,O180,0),minIMSM)+add_margin,roundto))) -> 2200000 | O180: =IF(INDIRECT("Calendar!E"&MATCH($A180,Calendar!A:A,0)-1),0,IF(INDIRECT("Calendar!E"&MATCH($A180,Calendar!A:A,0)-2),1,2)) -> 0
A181: 2021-09-24 | B181: 827347 | C181: 307247 | D181: 827347 | F181: =IF(ISERROR(MATCH($A181,Calendar!$A$2:$A$2598,0)),"", IF(VLOOKUP(A181,Calendar!$A$2:$D$2598,3)=0,"", IF(ISERROR(AVERAGE(OFFSET(E182,0,0,window_size,1))), IF(COUNTBLANK(OFFSET(E182,0,0,window_size_max-1))=window_size_max-1,"",MAX(OFFSET(D182,0,0,window_size_max-1))), VLOOKUP(A181,Calendar!$A$2:$D$2598,3)*AVERAGE(OFFSET(E182,0,0,window_size,1))+MAX(OFFSET(D182,0,0,window_size_max-1))))) ->  | G181: 307247 | H181: 609581.8496 | I181: 398075.8588 | J181: 226 | K181: 426067.7268 | L181: 1589537.621 | M181: 2149096 | N181: =IF(VLOOKUP(A181,Calendar!A:E,5,FALSE)=0,"",IF(ISERROR(O181),minIMSM+add_margin,CEILING(MAX(OFFSET(M181,O181,0),OFFSET(L181,O181,0),minIMSM)+add_margin,roundto))) -> 2200000 | O181: =IF(INDIRECT("Calendar!E"&MATCH($A181,Calendar!A:A,0)-1),0,IF(INDIRECT("Calendar!E"&MATCH($A181,Calendar!A:A,0)-2),1,2)) -> 0
A182: 2021-09-23 | B182: 546345 | C182: 173714 | D182: 546345 | E182: 546345 | F182: =IF(ISERROR(MATCH($A182,Calendar!$A$2:$A$2598,0)),"", IF(VLOOKUP(A182,Calendar!$A$2:$D$2598,3)=0,"", IF(ISERROR(AVERAGE(OFFSET(E183,0,0,window_size,1))), IF(COUNTBLANK(OFFSET(E183,0,0,window_size_max-1))=window_size_max-1,"",MAX(OFFSET(D183,0,0,window_size_max-1))), VLOOKUP(A182,Calendar!$A$2:$D$2598,3)*AVERAGE(OFFSET(E183,0,0,window_size,1))+MAX(OFFSET(D183,0,0,window_size_max-1))))) ->  | G182: 173714 | H182: 608470.6903 | I182: 396390.9522 | J182: 226 | K182: 424264.3411 | L182: 1584278.675 | M182: 2149096 | N182: =IF(VLOOKUP(A182,Calendar!A:E,5,FALSE)=0,"",IF(ISERROR(O182),minIMSM+add_margin,CEILING(MAX(OFFSET(M182,O182,0),OFFSET(L182,O182,0),minIMSM)+add_margin,roundto))) -> 2200000 | O182: =IF(INDIRECT("Calendar!E"&MATCH($A182,Calendar!A:A,0)-1),0,IF(INDIRECT("Calendar!E"&MATCH($A182,Calendar!A:A,0)-2),1,2)) -> 0
A183: 2021-09-22 | B183: 920645 | C183: 591439 | D183: 920645 | E183: 920645 | F183: =IF(ISERROR(MATCH($A183,Calendar!$A$2:$A$2598,0)),"", IF(VLOOKUP(A183,Calendar!$A$2:$D$2598,3)=0,"", IF(ISERROR(AVERAGE(OFFSET(E184,0,0,window_size,1))), IF(COUNTBLANK(OFFSET(E184,0,0,window_size_max-1))=window_size_max-1,"",MAX(OFFSET(D184,0,0,window_size_max-1))), VLOOKUP(A183,Calendar!$A$2:$D$2598,3)*AVERAGE(OFFSET(E184,0,0,window_size,1))+MAX(OFFSET(D184,0,0,window_size_max-1))))) ->  | G183: 591439 | H183: 605545.208 | I183: 402757.9542 | J183: 226 | K183: 431079.0575 | L183: 1597027.04 | M183: 2149096 | N183: =IF(VLOOKUP(A183,Calendar!A:E,5,FALSE)=0,"",IF(ISERROR(O183),minIMSM+add_margin,CEILING(MAX(OFFSET(M183,O183,0),OFFSET(L183,O183,0),minIMSM)+add_margin,roundto))) -> 2200000 | O183: =IF(INDIRECT("Calendar!E"&MATCH($A183,Calendar!A:A,0)-1),0,IF(INDIRECT("Calendar!E"&MATCH($A183,Calendar!A:A,0)-2),1,2)) -> 0
A184: 2021-09-21 | B184: 672534 | C184: 70044 | D184: 672534 | E184: 672534 | F184: =IF(ISERROR(MATCH($A184,Calendar!$A$2:$A$2598,0)),"", IF(VLOOKUP(A184,Calendar!$A$2:$D$2598,3)=0,"", IF(ISERROR(AVERAGE(OFFSET(E185,0,0,window_size,1))), IF(COUNTBLANK(OFFSET(E185,0,0,window_size_max-1))=window_size_max-1,"",MAX(OFFSET(D185,0,0,window_size_max-1))), VLOOKUP(A184,Calendar!$A$2:$D$2598,3)*AVERAGE(OFFSET(E185,0,0,window_size,1))+MAX(OFFSET(D185,0,0,window_size_max-1))))) ->  | G184: 70044 | H184: 606847.5044 | I184: 400916.8386 | J184: 226 | K184: 429108.4785 | L184: 1593797.005 | M184: 2149096 | N184: =IF(VLOOKUP(A184,Calendar!A:E,5,FALSE)=0,"",IF(ISERROR(O184),minIMSM+add_margin,CEILING(MAX(OFFSET(M184,O184,0),OFFSET(L184,O184,0),minIMSM)+add_margin,roundto))) -> 2200000 | O184: =IF(INDIRECT("Calendar!E"&MATCH($A184,Calendar!A:A,0)-1),0,IF(INDIRECT("Calendar!E"&MATCH($A184,Calendar!A:A,0)-2),1,2)) -> 0
A185: 2021-09-20 | B185: 491604 | C185: 421560 | D185: 491604 | F185: =IF(ISERROR(MATCH($A185,Calendar!$A$2:$A$2598,0)),"", IF(VLOOKUP(A185,Calendar!$A$2:$D$2598,3)=0,"", IF(ISERROR(AVERAGE(OFFSET(E186,0,0,window_size,1))), IF(COUNTBLANK(OFFSET(E186,0,0,window_size_max-1))=window_size_max-1,"",MAX(OFFSET(D186,0,0,window_size_max-1))), VLOOKUP(A185,Calendar!$A$2:$D$2598,3)*AVERAGE(OFFSET(E186,0,0,window_size,1))+MAX(OFFSET(D186,0,0,window_size_max-1))))) ->  | G185: 421560 | H185: 604751.5664 | I185: 405639.4776 | J185: 226 | K185: 434163.2036 | L185: 1603326.935 | M185: 2149096 | N185: =IF(VLOOKUP(A185,Calendar!A:E,5,FALSE)=0,"",IF(ISERROR(O185),minIMSM+add_margin,CEILING(MAX(OFFSET(M185,O185,0),OFFSET(L185,O185,0),minIMSM)+add_margin,roundto))) -> 2200000 | O185: =IF(INDIRECT("Calendar!E"&MATCH($A185,Calendar!A:A,0)-1),0,IF(INDIRECT("Calendar!E"&MATCH($A185,Calendar!A:A,0)-2),1,2)) -> 0
A186: 2021-09-17 | B186: 265730 | C186: 55893 | D186: 265730 | F186: =IF(ISERROR(MATCH($A186,Calendar!$A$2:$A$2598,0)),"", IF(VLOOKUP(A186,Calendar!$A$2:$D$2598,3)=0,"", IF(ISERROR(AVERAGE(OFFSET(E187,0,0,window_size,1))), IF(COUNTBLANK(OFFSET(E187,0,0,window_size_max-1))=window_size_max-1,"",MAX(OFFSET(D187,0,0,window_size_max-1))), VLOOKUP(A186,Calendar!$A$2:$D$2598,3)*AVERAGE(OFFSET(E187,0,0,window_size,1))+MAX(OFFSET(D187,0,0,window_size_max-1))))) ->  | G186: 55893 | H186: 604545.0796 | I186: 405971.3874 | J186: 226 | K186: 434518.4526 | L186: 1603937.521 | M186: 2149096 | N186: =IF(VLOOKUP(A186,Calendar!A:E,5,FALSE)=0,"",IF(ISERROR(O186),minIMSM+add_margin,CEILING(MAX(OFFSET(M186,O186,0),OFFSET(L186,O186,0),minIMSM)+add_margin,roundto))) -> 2200000 | O186: =IF(INDIRECT("Calendar!E"&MATCH($A186,Calendar!A:A,0)-1),0,IF(INDIRECT("Calendar!E"&MATCH($A186,Calendar!A:A,0)-2),1,2)) -> 0
A187: 2021-09-16 | B187: 210365 | C187: 45093 | D187: 210365 | E187: 210365 | F187: =IF(ISERROR(MATCH($A187,Calendar!$A$2:$A$2598,0)),"", IF(VLOOKUP(A187,Calendar!$A$2:$D$2598,3)=0,"", IF(ISERROR(AVERAGE(OFFSET(E188,0,0,window_size,1))), IF(COUNTBLANK(OFFSET(E188,0,0,window_size_max-1))=window_size_max-1,"",MAX(OFFSET(D188,0,0,window_size_max-1))), VLOOKUP(A187,Calendar!$A$2:$D$2598,3)*AVERAGE(OFFSET(E188,0,0,window_size,1))+MAX(OFFSET(D188,0,0,window_size_max-1))))) ->  | G187: 45093 | H187: 603281 | I187: 406580.2911 | J187: 226 | K187: 435170.1732 | L187: 1604172.398 | M187: 2149096 | N187: =IF(VLOOKUP(A187,Calendar!A:E,5,FALSE)=0,"",IF(ISERROR(O187),minIMSM+add_margin,CEILING(MAX(OFFSET(M187,O187,0),OFFSET(L187,O187,0),minIMSM)+add_margin,roundto))) -> 2200000 | O187: =IF(INDIRECT("Calendar!E"&MATCH($A187,Calendar!A:A,0)-1),0,IF(INDIRECT("Calendar!E"&MATCH($A187,Calendar!A:A,0)-2),1,2)) -> 0
A188: 2021-09-15 | B188: 418253 | C188: 164411 | D188: 418253 | E188: 418253 | F188: =IF(ISERROR(MATCH($A188,Calendar!$A$2:$A$2598,0)),"", IF(VLOOKUP(A188,Calendar!$A$2:$D$2598,3)=0,"", IF(ISERROR(AVERAGE(OFFSET(E189,0,0,window_size,1))), IF(COUNTBLANK(OFFSET(E189,0,0,window_size_max-1))=window_size_max-1,"",MAX(OFFSET(D189,0,0,window_size_max-1))), VLOOKUP(A188,Calendar!$A$2:$D$2598,3)*AVERAGE(OFFSET(E189,0,0,window_size,1))+MAX(OFFSET(D189,0,0,window_size_max-1))))) ->  | G188: 164411 | H188: 604144.9513 | I188: 406699.6324 | J188: 226 | K188: 435297.9064 | L188: 1605330.136 | M188: 2197801.6 | N188: =IF(VLOOKUP(A188,Calendar!A:E,5,FALSE)=0,"",IF(ISERROR(O188),minIMSM+add_margin,CEILING(MAX(OFFSET(M188,O188,0),OFFSET(L188,O188,0),minIMSM)+add_margin,roundto))) -> 2250000 | O188: =IF(INDIRECT("Calendar!E"&MATCH($A188,Calendar!A:A,0)-1),0,IF(INDIRECT("Calendar!E"&MATCH($A188,Calendar!A:A,0)-2),1,2)) -> 0
A189: 2021-09-14 | B189: 662949 | C189: 343262 | D189: 662949 | E189: 662949 | F189: =IF(ISERROR(MATCH($A189,Calendar!$A$2:$A$2598,0)),"", IF(VLOOKUP(A189,Calendar!$A$2:$D$2598,3)=0,"", IF(ISERROR(AVERAGE(OFFSET(E190,0,0,window_size,1))), IF(COUNTBLANK(OFFSET(E190,0,0,window_size_max-1))=window_size_max-1,"",MAX(OFFSET(D190,0,0,window_size_max-1))), VLOOKUP(A189,Calendar!$A$2:$D$2598,3)*AVERAGE(OFFSET(E190,0,0,window_size,1))+MAX(OFFSET(D190,0,0,window_size_max-1))))) ->  | G189: 343262 | H189: 603131.0398 | I189: 408360.2174 | J189: 226 | K189: 437075.2602 | L189: 1608404.138 | M189: 2572342.4 | N189: =IF(VLOOKUP(A189,Calendar!A:E,5,FALSE)=0,"",IF(ISERROR(O189),minIMSM+add_margin,CEILING(MAX(OFFSET(M189,O189,0),OFFSET(L189,O189,0),minIMSM)+add_margin,roundto))) -> 2630000 | O189: =IF(INDIRECT("Calendar!E"&MATCH($A189,Calendar!A:A,0)-1),0,IF(INDIRECT("Calendar!E"&MATCH($A189,Calendar!A:A,0)-2),1,2)) -> 0
A190: 2021-09-13 | B190: 754547 | C190: 384051 | D190: 754547 | F190: =IF(ISERROR(MATCH($A190,Calendar!$A$2:$A$2598,0)),"", IF(VLOOKUP(A190,Calendar!$A$2:$D$2598,3)=0,"", IF(ISERROR(AVERAGE(OFFSET(E191,0,0,window_size,1))), IF(COUNTBLANK(OFFSET(E191,0,0,window_size_max-1))=window_size_max-1,"",MAX(OFFSET(D191,0,0,window_size_max-1))), VLOOKUP(A190,Calendar!$A$2:$D$2598,3)*AVERAGE(OFFSET(E191,0,0,window_size,1))+MAX(OFFSET(D191,0,0,window_size_max-1))))) ->  | G190: 384051 | H190: 602325.1681 | I190: 410940.3217 | J190: 226 | K190: 439836.7921 | L190: 1613949.79 | M190: 2572342.4 | N190: =IF(VLOOKUP(A190,Calendar!A:E,5,FALSE)=0,"",IF(ISERROR(O190),minIMSM+add_margin,CEILING(MAX(OFFSET(M190,O190,0),OFFSET(L190,O190,0),minIMSM)+add_margin,roundto))) -> 2630000 | O190: =IF(INDIRECT("Calendar!E"&MATCH($A190,Calendar!A:A,0)-1),0,IF(INDIRECT("Calendar!E"&MATCH($A190,Calendar!A:A,0)-2),1,2)) -> 0
A191: 2021-09-10 | B191: 513387 | C191: 320346 | D191: 513387 | F191: =IF(ISERROR(MATCH($A191,Calendar!$A$2:$A$2598,0)),"", IF(VLOOKUP(A191,Calendar!$A$2:$D$2598,3)=0,"", IF(ISERROR(AVERAGE(OFFSET(E192,0,0,window_size,1))), IF(COUNTBLANK(OFFSET(E192,0,0,window_size_max-1))=window_size_max-1,"",MAX(OFFSET(D192,0,0,window_size_max-1))), VLOOKUP(A191,Calendar!$A$2:$D$2598,3)*AVERAGE(OFFSET(E192,0,0,window_size,1))+MAX(OFFSET(D192,0,0,window_size_max-1))))) ->  | G191: 320346 | H191: 601495.708 | I191: 412487.7798 | J191: 226 | K191: 441493.0642 | L191: 1616929.756 | M191: 2572342.4 | N191: =IF(VLOOKUP(A191,Calendar!A:E,5,FALSE)=0,"",IF(ISERROR(O191),minIMSM+add_margin,CEILING(MAX(OFFSET(M191,O191,0),OFFSET(L191,O191,0),minIMSM)+add_margin,roundto))) -> 2630000 | O191: =IF(INDIRECT("Calendar!E"&MATCH($A191,Calendar!A:A,0)-1),0,IF(INDIRECT("Calendar!E"&MATCH($A191,Calendar!A:A,0)-2),1,2)) -> 0
A192: 2021-09-09 | B192: 673807 | C192: 428044 | D192: 673807 | E192: 673807 | F192: =IF(ISERROR(MATCH($A192,Calendar!$A$2:$A$2598,0)),"", IF(VLOOKUP(A192,Calendar!$A$2:$D$2598,3)=0,"", IF(ISERROR(AVERAGE(OFFSET(E193,0,0,window_size,1))), IF(COUNTBLANK(OFFSET(E193,0,0,window_size_max-1))=window_size_max-1,"",MAX(OFFSET(D193,0,0,window_size_max-1))), VLOOKUP(A192,Calendar!$A$2:$D$2598,3)*AVERAGE(OFFSET(E193,0,0,window_size,1))+MAX(OFFSET(D193,0,0,window_size_max-1))))) ->  | G192: 428044 | H192: 600735.8274 | I192: 413488.3984 | J192: 226 | K192: 442564.0442 | L192: 1618633.129 | M192: 2572342.4 | N192: =IF(VLOOKUP(A192,Calendar!A:E,5,FALSE)=0,"",IF(ISERROR(O192),minIMSM+add_margin,CEILING(MAX(OFFSET(M192,O192,0),OFFSET(L192,O192,0),minIMSM)+add_margin,roundto))) -> 2630000 | O192: =IF(INDIRECT("Calendar!E"&MATCH($A192,Calendar!A:A,0)-1),0,IF(INDIRECT("Calendar!E"&MATCH($A192,Calendar!A:A,0)-2),1,2)) -> 0
A193: 2021-09-08 | B193: 1024299 | C193: 935816 | D193: 1024299 | E193: 1024299 | F193: =IF(ISERROR(MATCH($A193,Calendar!$A$2:$A$2598,0)),"", IF(VLOOKUP(A193,Calendar!$A$2:$D$2598,3)=0,"", IF(ISERROR(AVERAGE(OFFSET(E194,0,0,window_size,1))), IF(COUNTBLANK(OFFSET(E194,0,0,window_size_max-1))=window_size_max-1,"",MAX(OFFSET(D194,0,0,window_size_max-1))), VLOOKUP(A193,Calendar!$A$2:$D$2598,3)*AVERAGE(OFFSET(E194,0,0,window_size,1))+MAX(OFFSET(D194,0,0,window_size_max-1))))) ->  | G193: 935816 | H193: 597111.9336 | I193: 412304.8332 | J193: 226 | K193: 441297.2532 | L193: 1612095.616 | M193: 2572342.4 | N193: =IF(VLOOKUP(A193,Calendar!A:E,5,FALSE)=0,"",IF(ISERROR(O193),minIMSM+add_margin,CEILING(MAX(OFFSET(M193,O193,0),OFFSET(L193,O193,0),minIMSM)+add_margin,roundto))) -> 2630000 | O193: =IF(INDIRECT("Calendar!E"&MATCH($A193,Calendar!A:A,0)-1),0,IF(INDIRECT("Calendar!E"&MATCH($A193,Calendar!A:A,0)-2),1,2)) -> 0
A194: 2021-09-07 | B194: 1086034 | C194: 364152 | D194: 1086034 | E194: 1086034 | F194: =IF(ISERROR(MATCH($A194,Calendar!$A$2:$A$2598,0)),"", IF(VLOOKUP(A194,Calendar!$A$2:$D$2598,3)=0,"", IF(ISERROR(AVERAGE(OFFSET(E195,0,0,window_size,1))), IF(COUNTBLANK(OFFSET(E195,0,0,window_size_max-1))=window_size_max-1,"",MAX(OFFSET(D195,0,0,window_size_max-1))), VLOOKUP(A194,Calendar!$A$2:$D$2598,3)*AVERAGE(OFFSET(E195,0,0,window_size,1))+MAX(OFFSET(D195,0,0,window_size_max-1))))) ->  | G194: 364152 | H194: 596477.7788 | I194: 416190.6103 | J194: 226 | K194: 445456.2701 | L194: 1621027.2 | M194: 2572342.4 | N194: =IF(VLOOKUP(A194,Calendar!A:E,5,FALSE)=0,"",IF(ISERROR(O194),minIMSM+add_margin,CEILING(MAX(OFFSET(M194,O194,0),OFFSET(L194,O194,0),minIMSM)+add_margin,roundto))) -> 2630000 | O194: =IF(INDIRECT("Calendar!E"&MATCH($A194,Calendar!A:A,0)-1),0,IF(INDIRECT("Calendar!E"&MATCH($A194,Calendar!A:A,0)-2),1,2)) -> 0
A195: 2021-09-06 | B195: 489950 | C195: 157980 | D195: 489950 | F195: =IF(ISERROR(MATCH($A195,Calendar!$A$2:$A$2598,0)),"", IF(VLOOKUP(A195,Calendar!$A$2:$D$2598,3)=0,"", IF(ISERROR(AVERAGE(OFFSET(E196,0,0,window_size,1))), IF(COUNTBLANK(OFFSET(E196,0,0,window_size_max-1))=window_size_max-1,"",MAX(OFFSET(D196,0,0,window_size_max-1))), VLOOKUP(A195,Calendar!$A$2:$D$2598,3)*AVERAGE(OFFSET(E196,0,0,window_size,1))+MAX(OFFSET(D196,0,0,window_size_max-1))))) ->  | G195: 157980 | H195: 596405.8451 | I195: 417287.8966 | J195: 226 | K195: 446630.7153 | L195: 1623656.49 | M195: 2572342.4 | N195: =IF(VLOOKUP(A195,Calendar!A:E,5,FALSE)=0,"",IF(ISERROR(O195),minIMSM+add_margin,CEILING(MAX(OFFSET(M195,O195,0),OFFSET(L195,O195,0),minIMSM)+add_margin,roundto))) -> 2630000 | O195: =IF(INDIRECT("Calendar!E"&MATCH($A195,Calendar!A:A,0)-1),0,IF(INDIRECT("Calendar!E"&MATCH($A195,Calendar!A:A,0)-2),1,2)) -> 0
A196: 2021-09-03 | B196: 224279 | C196: 101051 | D196: 224279 | F196: =IF(ISERROR(MATCH($A196,Calendar!$A$2:$A$2598,0)),"", IF(VLOOKUP(A196,Calendar!$A$2:$D$2598,3)=0,"", IF(ISERROR(AVERAGE(OFFSET(E197,0,0,window_size,1))), IF(COUNTBLANK(OFFSET(E197,0,0,window_size_max-1))=window_size_max-1,"",MAX(OFFSET(D197,0,0,window_size_max-1))), VLOOKUP(A196,Calendar!$A$2:$D$2598,3)*AVERAGE(OFFSET(E197,0,0,window_size,1))+MAX(OFFSET(D197,0,0,window_size_max-1))))) ->  | G196: 101051 | H196: 595173.4735 | I196: 414751.0818 | J196: 226 | K196: 443915.5169 | L196: 1616179.162 | M196: 2572342.4 | N196: =IF(VLOOKUP(A196,Calendar!A:E,5,FALSE)=0,"",IF(ISERROR(O196),minIMSM+add_margin,CEILING(MAX(OFFSET(M196,O196,0),OFFSET(L196,O196,0),minIMSM)+add_margin,roundto))) -> 2630000 | O196: =IF(INDIRECT("Calendar!E"&MATCH($A196,Calendar!A:A,0)-1),0,IF(INDIRECT("Calendar!E"&MATCH($A196,Calendar!A:A,0)-2),1,2)) -> 0
A197: 2021-09-02 | B197: 963462 | C197: 609343 | D197: 963462 | E197: 963462 | F197: =IF(ISERROR(MATCH($A197,Calendar!$A$2:$A$2598,0)),"", IF(VLOOKUP(A197,Calendar!$A$2:$D$2598,3)=0,"", IF(ISERROR(AVERAGE(OFFSET(E198,0,0,window_size,1))), IF(COUNTBLANK(OFFSET(E198,0,0,window_size_max-1))=window_size_max-1,"",MAX(OFFSET(D198,0,0,window_size_max-1))), VLOOKUP(A197,Calendar!$A$2:$D$2598,3)*AVERAGE(OFFSET(E198,0,0,window_size,1))+MAX(OFFSET(D198,0,0,window_size_max-1))))) ->  | G197: 609343 | H197: 591995.8761 | I197: 410971.039 | J197: 226 | K197: 439869.6694 | L197: 1603696.116 | M197: 2572342.4 | N197: =IF(VLOOKUP(A197,Calendar!A:E,5,FALSE)=0,"",IF(ISERROR(O197),minIMSM+add_margin,CEILING(MAX(OFFSET(M197,O197,0),OFFSET(L197,O197,0),minIMSM)+add_margin,roundto))) -> 2630000 | O197: =IF(INDIRECT("Calendar!E"&MATCH($A197,Calendar!A:A,0)-1),0,IF(INDIRECT("Calendar!E"&MATCH($A197,Calendar!A:A,0)-2),1,2)) -> 0
A198: 2021-09-01 | B198: 1343185 | C198: 870921 | D198: 1343185 | E198: 1343185 | F198: =IF(ISERROR(MATCH($A198,Calendar!$A$2:$A$2598,0)),"", IF(VLOOKUP(A198,Calendar!$A$2:$D$2598,3)=0,"", IF(ISERROR(AVERAGE(OFFSET(E199,0,0,window_size,1))), IF(COUNTBLANK(OFFSET(E199,0,0,window_size_max-1))=window_size_max-1,"",MAX(OFFSET(D199,0,0,window_size_max-1))), VLOOKUP(A198,Calendar!$A$2:$D$2598,3)*AVERAGE(OFFSET(E199,0,0,window_size,1))+MAX(OFFSET(D199,0,0,window_size_max-1))))) ->  | G198: 870921 | H198: 586606.2655 | I198: 408474.4684 | J198: 226 | K198: 437197.5451 | L198: 1592160.619 | M198: 2572342.4 | N198: =IF(VLOOKUP(A198,Calendar!A:E,5,FALSE)=0,"",IF(ISERROR(O198),minIMSM+add_margin,CEILING(MAX(OFFSET(M198,O198,0),OFFSET(L198,O198,0),minIMSM)+add_margin,roundto))) -> 2630000 | O198: =IF(INDIRECT("Calendar!E"&MATCH($A198,Calendar!A:A,0)-1),0,IF(INDIRECT("Calendar!E"&MATCH($A198,Calendar!A:A,0)-2),1,2)) -> 0
A199: 2021-08-31 | B199: 1183134 | C199: 443927 | D199: 1183134 | E199: 1183134 | F199: =IF(ISERROR(MATCH($A199,Calendar!$A$2:$A$2598,0)),"", IF(VLOOKUP(A199,Calendar!$A$2:$D$2598,3)=0,"", IF(ISERROR(AVERAGE(OFFSET(E200,0,0,window_size,1))), IF(COUNTBLANK(OFFSET(E200,0,0,window_size_max-1))=window_size_max-1,"",MAX(OFFSET(D200,0,0,window_size_max-1))), VLOOKUP(A199,Calendar!$A$2:$D$2598,3)*AVERAGE(OFFSET(E200,0,0,window_size,1))+MAX(OFFSET(D200,0,0,window_size_max-1))))) ->  | G199: 443927 | H199: 583616.6018 | I199: 413341.7934 | J199: 226 | K199: 442407.1303 | L199: 1601153.001 | M199: 3092462.4 | N199: =IF(VLOOKUP(A199,Calendar!A:E,5,FALSE)=0,"",IF(ISERROR(O199),minIMSM+add_margin,CEILING(MAX(OFFSET(M199,O199,0),OFFSET(L199,O199,0),minIMSM)+add_margin,roundto))) -> 3150000 | O199: =IF(INDIRECT("Calendar!E"&MATCH($A199,Calendar!A:A,0)-1),0,IF(INDIRECT("Calendar!E"&MATCH($A199,Calendar!A:A,0)-2),1,2)) -> 0
A200: 2021-08-30 | B200: 498189 | C200: 170228 | D200: 498189 | F200: =IF(ISERROR(MATCH($A200,Calendar!$A$2:$A$2598,0)),"", IF(VLOOKUP(A200,Calendar!$A$2:$D$2598,3)=0,"", IF(ISERROR(AVERAGE(OFFSET(E201,0,0,window_size,1))), IF(COUNTBLANK(OFFSET(E201,0,0,window_size_max-1))=window_size_max-1,"",MAX(OFFSET(D201,0,0,window_size_max-1))), VLOOKUP(A200,Calendar!$A$2:$D$2598,3)*AVERAGE(OFFSET(E201,0,0,window_size,1))+MAX(OFFSET(D201,0,0,window_size_max-1))))) ->  | G200: 170228 | H200: 581536.0664 | I200: 416491.67 | J200: 226 | K200: 445778.4997 | L200: =IF($A200="","",H200+alpha*K200) -> 1606826.616 | M200: 3092462.4 | N200: =IF(VLOOKUP(A200,Calendar!A:E,5,FALSE)=0,"",IF(ISERROR(O200),minIMSM+add_margin,CEILING(MAX(OFFSET(M200,O200,0),OFFSET(L200,O200,0),minIMSM)+add_margin,roundto))) -> 3150000 | O200: =IF(INDIRECT("Calendar!E"&MATCH($A200,Calendar!A:A,0)-1),0,IF(INDIRECT("Calendar!E"&MATCH($A200,Calendar!A:A,0)-2),1,2)) -> 0
A201: 2021-08-27 | B201: 426838 | C201: 120387 | D201: 426838 | F201: =IF(ISERROR(MATCH($A201,Calendar!$A$2:$A$2598,0)),"", IF(VLOOKUP(A201,Calendar!$A$2:$D$2598,3)=0,"", IF(ISERROR(AVERAGE(OFFSET(E202,0,0,window_size,1))), IF(COUNTBLANK(OFFSET(E202,0,0,window_size_max-1))=window_size_max-1,"",MAX(OFFSET(D202,0,0,window_size_max-1))), VLOOKUP(A201,Calendar!$A$2:$D$2598,3)*AVERAGE(OFFSET(E202,0,0,window_size,1))+MAX(OFFSET(D202,0,0,window_size_max-1))))) ->  | G201: 120387 | H201: 581752.0265 | I201: 415902.1385 | J201: 226 | K201: 445147.5135 | L201: 1605591.308 | M201: 3092462.4 | N201: =IF(VLOOKUP(A201,Calendar!A:E,5,FALSE)=0,"",IF(ISERROR(O201),minIMSM+add_margin,CEILING(MAX(OFFSET(M201,O201,0),OFFSET(L201,O201,0),minIMSM)+add_margin,roundto))) -> 3150000 | O201: =IF(INDIRECT("Calendar!E"&MATCH($A201,Calendar!A:A,0)-1),0,IF(INDIRECT("Calendar!E"&MATCH($A201,Calendar!A:A,0)-2),1,2)) -> 0
A202: 2021-08-26 | B202: 698006 | C202: 694978 | D202: 698006 | E202: 698006 | F202: =IF(ISERROR(MATCH($A202,Calendar!$A$2:$A$2598,0)),"", IF(VLOOKUP(A202,Calendar!$A$2:$D$2598,3)=0,"", IF(ISERROR(AVERAGE(OFFSET(E203,0,0,window_size,1))), IF(COUNTBLANK(OFFSET(E203,0,0,window_size_max-1))=window_size_max-1,"",MAX(OFFSET(D203,0,0,window_size_max-1))), VLOOKUP(A202,Calendar!$A$2:$D$2598,3)*AVERAGE(OFFSET(E203,0,0,window_size,1))+MAX(OFFSET(D203,0,0,window_size_max-1))))) ->  | G202: 694978 | H202: 577985.1593 | I202: 414692.6021 | J202: 226 | K202: 443852.925 | L202: 1598846.887 | M202: 3092462.4 | N202: =IF(VLOOKUP(A202,Calendar!A:E,5,FALSE)=0,"",IF(ISERROR(O202),minIMSM+add_margin,CEILING(MAX(OFFSET(M202,O202,0),OFFSET(L202,O202,0),minIMSM)+add_margin,roundto))) -> 3150000 | O202: =IF(INDIRECT("Calendar!E"&MATCH($A202,Calendar!A:A,0)-1),0,IF(INDIRECT("Calendar!E"&MATCH($A202,Calendar!A:A,0)-2),1,2)) -> 0
A203: 2021-08-25 | B203: 1129731 | C203: 666572 | D203: 1129731 | E203: 1129731 | F203: =IF(ISERROR(MATCH($A203,Calendar!$A$2:$A$2598,0)),"", IF(VLOOKUP(A203,Calendar!$A$2:$D$2598,3)=0,"", IF(ISERROR(AVERAGE(OFFSET(E204,0,0,window_size,1))), IF(COUNTBLANK(OFFSET(E204,0,0,window_size_max-1))=window_size_max-1,"",MAX(OFFSET(D204,0,0,window_size_max-1))), VLOOKUP(A203,Calendar!$A$2:$D$2598,3)*AVERAGE(OFFSET(E204,0,0,window_size,1))+MAX(OFFSET(D204,0,0,window_size_max-1))))) ->  | G203: =IF(AND(F203<>"",$J$3="YES",F203>minIMSM),F203,IF(C203>minIMSM,C203,"")) -> 666572 | H203: =IF($A203="","",IFERROR((AVERAGE(G204,INDIRECT("D" & ROW(A205) & ":D" & ROW(A205) + window_size-2))),0)) -> 573677.8628 | I203: 412559.0117 | J203: 226 | K203: 441569.305 | L203: 1589287.264 | M203: =IF($A203="","",beta*MAX(G204,INDIRECT("B" & ROW(A205) & ":B" & ROW(A205) + window_size_max-2))) -> 3092462.4 | N203: =IF(VLOOKUP(A203,Calendar!A:E,5,FALSE)=0,"",IF(ISERROR(O203),minIMSM+add_margin,CEILING(MAX(OFFSET(M203,O203,0),OFFSET(L203,O203,0),minIMSM)+add_margin,roundto))) -> 3150000 | O203: =IF(INDIRECT("Calendar!E"&MATCH($A203,Calendar!A:A,0)-1),0,IF(INDIRECT("Calendar!E"&MATCH($A203,Calendar!A:A,0)-2),1,2)) -> 0
A204: 2021-08-24 | B204: 1186026 | C204: 565970 | D204: 1186026 | E204: 1186026 | F204: =IF(ISERROR(MATCH($A204,Calendar!$A$2:$A$2598,0)),"", IF(VLOOKUP(A204,Calendar!$A$2:$D$2598,3)=0,"", IF(ISERROR(AVERAGE(OFFSET(E205,0,0,window_size,1))), IF(COUNTBLANK(OFFSET(E205,0,0,window_size_max-1))=window_size_max-1,"",MAX(OFFSET(D205,0,0,window_size_max-1))), VLOOKUP(A204,Calendar!$A$2:$D$2598,3)*AVERAGE(OFFSET(E205,0,0,window_size,1))+MAX(OFFSET(D205,0,0,window_size_max-1))))) ->  | G204: 565970 | H204: 570895.3496 | I204: 413700.7331 | J204: 226 | K204: 442791.3099 | L204: 1589315.362 | M204: 3092462.4 | N204: =IF(VLOOKUP(A204,Calendar!A:E,5,FALSE)=0,"",IF(ISERROR(O204),minIMSM+add_margin,CEILING(MAX(OFFSET(M204,O204,0),OFFSET(L204,O204,0),minIMSM)+add_margin,roundto))) -> 3150000 | O204: =IF(INDIRECT("Calendar!E"&MATCH($A204,Calendar!A:A,0)-1),0,IF(INDIRECT("Calendar!E"&MATCH($A204,Calendar!A:A,0)-2),1,2)) -> 0
A205: 2021-08-23 | B205: 971335 | C205: 755741 | D205: 971335 | F205: =IF(ISERROR(MATCH($A205,Calendar!$A$2:$A$2598,0)),"", IF(VLOOKUP(A205,Calendar!$A$2:$D$2598,3)=0,"", IF(ISERROR(AVERAGE(OFFSET(E206,0,0,window_size,1))), IF(COUNTBLANK(OFFSET(E206,0,0,window_size_max-1))=window_size_max-1,"",MAX(OFFSET(D206,0,0,window_size_max-1))), VLOOKUP(A205,Calendar!$A$2:$D$2598,3)*AVERAGE(OFFSET(E206,0,0,window_size,1))+MAX(OFFSET(D206,0,0,window_size_max-1))))) ->  | G205: 755741 | H205: 567138.9646 | I205: 417759.2225 | J205: 226 | K205: 447135.1839 | L205: 1595549.888 | M205: 3092462.4 | N205: =IF(VLOOKUP(A205,Calendar!A:E,5,FALSE)=0,"",IF(ISERROR(O205),minIMSM+add_margin,CEILING(MAX(OFFSET(M205,O205,0),OFFSET(L205,O205,0),minIMSM)+add_margin,roundto))) -> 3150000 | O205: =IF(INDIRECT("Calendar!E"&MATCH($A205,Calendar!A:A,0)-1),0,IF(INDIRECT("Calendar!E"&MATCH($A205,Calendar!A:A,0)-2),1,2)) -> 0
A206: 2021-08-20 | B206: 543916 | C206: 221462 | D206: 543916 | F206: =IF(ISERROR(MATCH($A206,Calendar!$A$2:$A$2598,0)),"", IF(VLOOKUP(A206,Calendar!$A$2:$D$2598,3)=0,"", IF(ISERROR(AVERAGE(OFFSET(E207,0,0,window_size,1))), IF(COUNTBLANK(OFFSET(E207,0,0,window_size_max-1))=window_size_max-1,"",MAX(OFFSET(D207,0,0,window_size_max-1))), VLOOKUP(A206,Calendar!$A$2:$D$2598,3)*AVERAGE(OFFSET(E207,0,0,window_size,1))+MAX(OFFSET(D207,0,0,window_size_max-1))))) ->  | G206: 221462 | H206: 568522.8186 | I206: 416791.3786 | J206: 226 | K206: 446099.2831 | L206: 1594551.17 | M206: 3092462.4 | N206: =IF(VLOOKUP(A206,Calendar!A:E,5,FALSE)=0,"",IF(ISERROR(O206),minIMSM+add_margin,CEILING(MAX(OFFSET(M206,O206,0),OFFSET(L206,O206,0),minIMSM)+add_margin,roundto))) -> 3150000 | O206: =IF(INDIRECT("Calendar!E"&MATCH($A206,Calendar!A:A,0)-1),0,IF(INDIRECT("Calendar!E"&MATCH($A206,Calendar!A:A,0)-2),1,2)) -> 0
... 304 more rows

Sheet Parameter
A1: Number of Datapoints | B1: Security Addon
A2: 0 | B2: 0 | D2: Window Size Statistic | E2: 250
A3: 1 | B3: 0 | D3: Window Size Maximum | E3: 30
A4: 2 | B4: 1.646453192 | D4: EWMA Factor | E4: 0.99
A5: 3 | B5: 1.515964294 | D5: alpha | E5: 2.3
A6: 4 | B6: 1.443167374 | D6: beta | E6: 1.6
A7: 5 | B7: 1.394246774 | D7: minIMSM_initial in EUR | E7: 0
A8: 6 | B8: 1.359192892 | D8: minIMSM_initial in EUR Window Size | E8: 30
A9: 7 | B9: 1.332964932 | D9: minIMSM in EUR | E9: 0
A10: 8 | B10: 1.310597544 | D10: roundto | E10: 10000
A11: 9 | B11: 1.292426084 | D11: Additional Margin in EUR | E11: 50000
A12: 10 | B12: 1.27705215
A13: 11 | B13: 1.264419457
A14: 12 | B14: 1.253459254
A15: 13 | B15: 1.243358109
A16: 14 | B16: 1.234947863
A17: 15 | B17: 1.226157543
A18: 16 | B18: 1.219659221
A19: 17 | B19: 1.213080457
A20: 18 | B20: 1.20749661
A21: 19 | B21: 1.202012485
A22: 20 | B22: 1.197029804
A23: 21 | B23: 1.192173406
A24: 22 | B24: 1.188140008
A25: 23 | B25: 1.18407171
A26: 24 | B26: 1.1800214
A27: 25 | B27: 1.17652192
A28: 26 | B28: 1.173119982
A29: 27 | B29: 1.169535978
A30: 28 | B30: 1.16730325
A31: 29 | B31: 1.16416477
A32: 30 | B32: 1.161422076
A33: 31 | B33: 1.159151541
A34: 32 | B34: 1.156164552
A35: 33 | B35: 1.153909269
A36: 34 | B36: 1.152081506
A37: 35 | B37: 1.149936078
A38: 36 | B38: 1.148178473
A39: 37 | B39: 1.145984481
A40: 38 | B40: 1.144232634
A41: 39 | B41: 1.142550115
A42: 40 | B42: 1.140381755
A43: 41 | B43: 1.138932948
A44: 42 | B44: 1.137323189
A45: 43 | B45: 1.136134974
A46: 44 | B46: 1.134463909
A47: 45 | B47: 1.133215074
A48: 46 | B48: 1.131756861
A49: 47 | B49: 1.130307484
A50: 48 | B50: 1.128906158
A51: 49 | B51: 1.127649298
A52: 50 | B52: 1.12640884
A53: 51 | B53: 1.125386398
A54: 52 | B54: 1.124343032
A55: 53 | B55: 1.123094251
A56: 54 | B56: 1.121933411
A57: 55 | B57: 1.120840122
A58: 56 | B58: 1.120174045
A59: 57 | B59: 1.11905813
A60: 58 | B60: 1.117897335
A61: 59 | B61: 1.117025692
A62: 60 | B62: 1.116399872
A63: 61 | B63: 1.115277009
A64: 62 | B64: 1.114278224
A65: 63 | B65: 1.113367078
A66: 64 | B66: 1.112461063
A67: 65 | B67: 1.111701726
A68: 66 | B68: 1.111298376
A69: 67 | B69: 1.110261213
A70: 68 | B70: 1.109716978
A71: 69 | B71: 1.108906923
A72: 70 | B72: 1.107989669
A73: 71 | B73: 1.107557447
A74: 72 | B74: 1.106707429
A75: 73 | B75: 1.106180878
A76: 74 | B76: 1.105297908
A77: 75 | B77: 1.104797033
A78: 76 | B78: 1.104398777
A79: 77 | B79: 1.103875682
A80: 78 | B80: 1.103152124
A81: 79 | B81: 1.102164867
A82: 80 | B82: 1.101915517
A83: 81 | B83: 1.101442752
A84: 82 | B84: 1.100746263
A85: 83 | B85: 1.100381599
A86: 84 | B86: 1.099932617
A87: 85 | B87: 1.099431192
A88: 86 | B88: 1.098990387
A89: 87 | B89: 1.098312874
A90: 88 | B90: 1.097774925
A91: 89 | B91: 1.097347237
A92: 90 | B92: 1.096786018
A93: 91 | B93: 1.096363538
A94: 92 | B94: 1.095816387
A95: 93 | B95: 1.095574372
A96: 94 | B96: 1.094910627
A97: 95 | B97: 1.094169373
A98: 96 | B98: 1.094010116
A99: 97 | B99: 1.093656565
A100: 98 | B100: 1.093218449
A101: 99 | B101: 1.092988967
A102: 100 | B102: 1.092344007
A103: 101 | B103: 1.092125249
A104: 102 | B104: 1.091962403
A105: 103 | B105: 1.091401331
A106: 104 | B106: 1.09106148
A107: 105 | B107: 1.090662343
A108: 106 | B108: 1.090517309
A109: 107 | B109: 1.089966874
A110: 108 | B110: 1.089572751
A111: 109 | B111: 1.089322678
A112: 110 | B112: 1.08891309
A113: 111 | B113: 1.088820834
A114: 112 | B114: 1.08837003
A115: 113 | B115: 1.08792234
A116: 114 | B116: 1.087736885
A117: 115 | B117: 1.087490052
A118: 116 | B118: 1.087257512
A119: 117 | B119: 1.086835198
A120: 118 | B120: 1.08640167
A121: 119 | B121: 1.086475765
A122: 120 | B122: 1.086129878
A123: 121 | B123: 1.085839042
A124: 122 | B124: 1.085376289
A125: 123 | B125: 1.085076985
A126: 124 | B126: 1.084844767
A127: 125 | B127: 1.084798844
A128: 126 | B128: 1.084302369
A129: 127 | B129: 1.084055707
A130: 128 | B130: 1.083857398
A131: 129 | B131: 1.083424791
A132: 130 | B132: 1.083437832
A133: 131 | B133: 1.082939711
A134: 132 | B134: 1.082885456
A135: 133 | B135: 1.082675067
A136: 134 | B136: 1.082346582
A137: 135 | B137: 1.082172302
A138: 136 | B138: 1.082031482
A139: 137 | B139: 1.081808674
A140: 138 | B140: 1.081677053
A141: 139 | B141: 1.081292807
A142: 140 | B142: 1.081055471
A143: 141 | B143: 1.080891304
A144: 142 | B144: 1.080688234
A145: 143 | B145: 1.08053619
A146: 144 | B146: 1.080261387
A147: 145 | B147: 1.080137952
A148: 146 | B148: 1.079993529
A149: 147 | B149: 1.079667078
A150: 148 | B150: 1.07944325
A151: 149 | B151: 1.079225752
A152: 150 | B152: 1.079087189
A153: 151 | B153: 1.079024375
A154: 152 | B154: 1.078881046
A155: 153 | B155: 1.078665125
A156: 154 | B156: 1.078420245
A157: 155 | B157: 1.07810761
A158: 156 | B158: 1.078298085
A159: 157 | B159: 1.078027971
A160: 158 | B160: 1.077604829
A161: 159 | B161: 1.077607536
A162: 160 | B162: 1.077456396
A163: 161 | B163: 1.077404123
A164: 162 | B164: 1.077011054
A165: 163 | B165: 1.076995277
A166: 164 | B166: 1.076901285
A167: 165 | B167: 1.07677353
A168: 166 | B168: 1.076501754
A169: 167 | B169: 1.07620542
A170: 168 | B170: 1.076281379
A171: 169 | B171: 1.076099727
A172: 170 | B172: 1.075890158
A173: 171 | B173: 1.075756636
A174: 172 | B174: 1.075786598
A175: 173 | B175: 1.075516533
A176: 174 | B176: 1.075558822
A177: 175 | B177: 1.075476649
A178: 176 | B178: 1.075136045
A179: 177 | B179: 1.075058171
A180: 178 | B180: 1.07507848
A181: 179 | B181: 1.074618834
A182: 180 | B182: 1.074441295
A183: 181 | B183: 1.074639307
A184: 182 | B184: 1.074270758
A185: 183 | B185: 1.074295996
A186: 184 | B186: 1.074341677
A187: 185 | B187: 1.074040246
A188: 186 | B188: 1.073899308
A189: 187 | B189: 1.07361353
A190: 188 | B190: 1.073729818
A191: 189 | B191: 1.073667928
A192: 190 | B192: 1.073389075
A193: 191 | B193: 1.073414448
A194: 192 | B194: 1.073224524
A195: 193 | B195: 1.073224442
A196: 194 | B196: 1.07296619
A197: 195 | B197: 1.073031629
A198: 196 | B198: 1.072936876
A199: 197 | B199: 1.072723386
A200: 198 | B200: 1.072544227
... 52 more rows

Sheet Calendar
A1: ECC Calendar | B1: index | C1: Holiday Adjustment Factor | D1: Flag Weekday | E1: ECC Business Day | F1: Rows Until Next Business Day | G1: Days Until Business Day After Next BD
A2: 2015-01-02 | B2: =ROW(A2)-1 -> 1 | C2: =MAX(G2-4,0) -> 0 | E2: 1 | F2: =IF($E2=1,MATCH(1,INDIRECT("$E$"&ROW($A2)+1&":$E$2598"),0),0) -> 1 | G2: =IF($E2=1,INDIRECT("$A$"&ROW($A2)+MATCH(1,INDIRECT("$E$"&ROW($A2)+1+$F2&":$E$2598"),0)+$F2)-$A2,0) -> 4
A3: 2015-01-05 | B3: =ROW(A3)-1 -> 2 | C3: 0 | D3: =IF(ABS(WEEKDAY($A3)-4)<=1,1,0) -> 0 | E3: 1 | F3: =IF($E3=1,MATCH(1,INDIRECT("$E$"&ROW($A3)+1&":$E$2598"),0),0) -> 1 | G3: 2
A4: 2015-01-06 | B4: 3 | C4: 0 | D4: 1 | E4: 1 | F4: 1 | G4: 2
A5: 2015-01-07 | B5: 4 | C5: 0 | D5: 1 | E5: 1 | F5: 1 | G5: 2
A6: 2015-01-08 | B6: 5 | C6: 0 | D6: 1 | E6: 1 | F6: 1 | G6: 4
A7: 2015-01-09 | B7: 6 | C7: 0 | D7: 0 | E7: 1 | F7: 1 | G7: 4
A8: 2015-01-12 | B8: 7 | C8: 0 | D8: 0 | E8: 1 | F8: 1 | G8: 2
A9: 2015-01-13 | B9: 8 | C9: 0 | D9: 1 | E9: 1 | F9: 1 | G9: 2
A10: 2015-01-14 | B10: 9 | C10: 0 | D10: 1 | E10: 1 | F10: 1 | G10: 2
A11: 2015-01-15 | B11: 10 | C11: 0 | D11: 1 | E11: 1 | F11: 1 | G11: 4
A12: 2015-01-16 | B12: 11 | C12: 0 | D12: 0 | E12: 1 | F12: 1 | G12: 4
A13: 2015-01-19 | B13: 12 | C13: 0 | D13: 0 | E13: 1 | F13: 1 | G13: 2
A14: 2015-01-20 | B14: 13 | C14: 0 | D14: 1 | E14: 1 | F14: 1 | G14: 2
A15: 2015-01-21 | B15: 14 | C15: 0 | D15: 1 | E15: 1 | F15: 1 | G15: 2
A16: 2015-01-22 | B16: 15 | C16: 0 | D16: 1 | E16: 1 | F16: 1 | G16: 4
A17: 2015-01-23 | B17: 16 | C17: 0 | D17: 0 | E17: 1 | F17: 1 | G17: 4
A18: 2015-01-26 | B18: 17 | C18: 0 | D18: 0 | E18: 1 | F18: 1 | G18: 2
A19: 2015-01-27 | B19: 18 | C19: 0 | D19: 1 | E19: 1 | F19: 1 | G19: 2
A20: 2015-01-28 | B20: 19 | C20: 0 | D20: 1 | E20: 1 | F20: 1 | G20: 2
A21: 2015-01-29 | B21: 20 | C21: 0 | D21: 1 | E21: 1 | F21: 1 | G21: 4
A22: 2015-01-30 | B22: 21 | C22: 0 | D22: 0 | E22: 1 | F22: 1 | G22: 4
A23: 2015-02-02 | B23: 22 | C23: 0 | D23: 0 | E23: 1 | F23: 1 | G23: 2
A24: 2015-02-03 | B24: 23 | C24: 0 | D24: 1 | E24: 1 | F24: 1 | G24: 2
A25: 2015-02-04 | B25: 24 | C25: 0 | D25: 1 | E25: 1 | F25: 1 | G25: 2
A26: 2015-02-05 | B26: 25 | C26: 0 | D26: 1 | E26: 1 | F26: 1 | G26: 4
A27: 2015-02-06 | B27: 26 | C27: 0 | D27: 0 | E27: 1 | F27: 1 | G27: 4
A28: 2015-02-09 | B28: 27 | C28: 0 | D28: 0 | E28: 1 | F28: 1 | G28: 2
A29: 2015-02-10 | B29: 28 | C29: 0 | D29: 1 | E29: 1 | F29: 1 | G29: 2
A30: 2015-02-11 | B30: 29 | C30: 0 | D30: 1 | E30: 1 | F30: 1 | G30: 2
A31: 2015-02-12 | B31: 30 | C31: 0 | D31: 1 | E31: 1 | F31: 1 | G31: 4
A32: 2015-02-13 | B32: 31 | C32: 0 | D32: 0 | E32: 1 | F32: 1 | G32: 4
A33: 2015-02-16 | B33: 32 | C33: 0 | D33: 0 | E33: 1 | F33: 1 | G33: 2
A34: 2015-02-17 | B34: 33 | C34: 0 | D34: 1 | E34: 1 | F34: 1 | G34: 2
A35: 2015-02-18 | B35: 34 | C35: 0 | D35: 1 | E35: 1 | F35: 1 | G35: 2
A36: 2015-02-19 | B36: 35 | C36: 0 | D36: 1 | E36: 1 | F36: 1 | G36: 4
A37: 2015-02-20 | B37: 36 | C37: 0 | D37: 0 | E37: 1 | F37: 1 | G37: 4
A38: 2015-02-23 | B38: 37 | C38: 0 | D38: 0 | E38: 1 | F38: 1 | G38: 2
A39: 2015-02-24 | B39: 38 | C39: 0 | D39: 1 | E39: 1 | F39: 1 | G39: 2
A40: 2015-02-25 | B40: 39 | C40: 0 | D40: 1 | E40: 1 | F40: 1 | G40: 2
A41: 2015-02-26 | B41: 40 | C41: 0 | D41: 1 | E41: 1 | F41: 1 | G41: 4
A42: 2015-02-27 | B42: 41 | C42: 0 | D42: 0 | E42: 1 | F42: 1 | G42: 4
A43: 2015-03-02 | B43: 42 | C43: 0 | D43: 0 | E43: 1 | F43: 1 | G43: 2
A44: 2015-03-03 | B44: 43 | C44: 0 | D44: 1 | E44: 1 | F44: 1 | G44: 2
A45: 2015-03-04 | B45: 44 | C45: 0 | D45: 1 | E45: 1 | F45: 1 | G45: 2
A46: 2015-03-05 | B46: 45 | C46: 0 | D46: 1 | E46: 1 | F46: 1 | G46: 4
A47: 2015-03-06 | B47: 46 | C47: 0 | D47: 0 | E47: 1 | F47: 1 | G47: 4
A48: 2015-03-09 | B48: 47 | C48: 0 | D48: 0 | E48: 1 | F48: 1 | G48: 2
A49: 2015-03-10 | B49: 48 | C49: 0 | D49: 1 | E49: 1 | F49: 1 | G49: 2
A50: 2015-03-11 | B50: 49 | C50: 0 | D50: 1 | E50: 1 | F50: 1 | G50: 2
A51: 2015-03-12 | B51: 50 | C51: 0 | D51: 1 | E51: 1 | F51: 1 | G51: 4
A52: 2015-03-13 | B52: 51 | C52: 0 | D52: 0 | E52: 1 | F52: 1 | G52: 4
A53: 2015-03-16 | B53: 52 | C53: 0 | D53: 0 | E53: 1 | F53: 1 | G53: 2
A54: 2015-03-17 | B54: 53 | C54: 0 | D54: 1 | E54: 1 | F54: 1 | G54: 2
A55: 2015-03-18 | B55: 54 | C55: 0 | D55: 1 | E55: 1 | F55: 1 | G55: 2
A56: 2015-03-19 | B56: 55 | C56: 0 | D56: 1 | E56: 1 | F56: 1 | G56: 4
A57: 2015-03-20 | B57: 56 | C57: 0 | D57: 0 | E57: 1 | F57: 1 | G57: 4
A58: 2015-03-23 | B58: 57 | C58: 0 | D58: 0 | E58: 1 | F58: 1 | G58: 2
A59: 2015-03-24 | B59: 58 | C59: 0 | D59: 1 | E59: 1 | F59: 1 | G59: 2
A60: 2015-03-25 | B60: 59 | C60: 0 | D60: 1 | E60: 1 | F60: 1 | G60: 2
A61: 2015-03-26 | B61: 60 | C61: 0 | D61: 1 | E61: 1 | F61: 1 | G61: 4
A62: 2015-03-27 | B62: 61 | C62: 0 | D62: 0 | E62: 1 | F62: 1 | G62: 4
A63: 2015-03-30 | B63: 62 | C63: 0 | D63: 0 | E63: 1 | F63: 1 | G63: 2
A64: 2015-03-31 | B64: 63 | C64: 0 | D64: 1 | E64: 1 | F64: 1 | G64: 2
A65: 2015-04-01 | B65: 64 | C65: 2 | D65: 1 | E65: 1 | F65: 1 | G65: 6
A66: 2015-04-02 | B66: 65 | C66: =MAX(G66-4,0) -> 2 | D66: 1 | E66: 1 | F66: 1 | G66: =IF($E66=1,INDIRECT("$A$"&ROW($A66)+MATCH(1,INDIRECT("$E$"&ROW($A66)+1+$F66&":$E$2598"),0)+$F66)-$A66,0) -> 6
A67: 2015-04-07 | B67: =ROW(A67)-1 -> 66 | C67: 0 | D67: =IF(ABS(WEEKDAY($A67)-4)<=1,1,0) -> 1 | E67: 1 | F67: =IF($E67=1,MATCH(1,INDIRECT("$E$"&ROW($A67)+1&":$E$2598"),0),0) -> 1 | G67: 2
A68: 2015-04-08 | B68: 67 | C68: 0 | D68: 1 | E68: 1 | F68: 1 | G68: 2
A69: 2015-04-09 | B69: 68 | C69: 0 | D69: 1 | E69: 1 | F69: 1 | G69: 4
A70: 2015-04-10 | B70: 69 | C70: 0 | D70: 0 | E70: 1 | F70: 1 | G70: 4
A71: 2015-04-13 | B71: 70 | C71: 0 | D71: 0 | E71: 1 | F71: 1 | G71: 2
A72: 2015-04-14 | B72: 71 | C72: 0 | D72: 1 | E72: 1 | F72: 1 | G72: 2
A73: 2015-04-15 | B73: 72 | C73: 0 | D73: 1 | E73: 1 | F73: 1 | G73: 2
A74: 2015-04-16 | B74: 73 | C74: 0 | D74: 1 | E74: 1 | F74: 1 | G74: 4
A75: 2015-04-17 | B75: 74 | C75: 0 | D75: 0 | E75: 1 | F75: 1 | G75: 4
A76: 2015-04-20 | B76: 75 | C76: 0 | D76: 0 | E76: 1 | F76: 1 | G76: 2
A77: 2015-04-21 | B77: 76 | C77: 0 | D77: 1 | E77: 1 | F77: 1 | G77: 2
A78: 2015-04-22 | B78: 77 | C78: 0 | D78: 1 | E78: 1 | F78: 1 | G78: 2
A79: 2015-04-23 | B79: 78 | C79: 0 | D79: 1 | E79: 1 | F79: 1 | G79: 4
A80: 2015-04-24 | B80: 79 | C80: 0 | D80: 0 | E80: 1 | F80: 1 | G80: 4
A81: 2015-04-27 | B81: 80 | C81: 0 | D81: 0 | E81: 1 | F81: 1 | G81: 2
A82: 2015-04-28 | B82: 81 | C82: 0 | D82: 1 | E82: 1 | F82: 1 | G82: 2
A83: 2015-04-29 | B83: 82 | C83: 1 | D83: 1 | E83: 1 | F83: 1 | G83: 5
A84: 2015-04-30 | B84: 83 | C84: 1 | D84: 1 | E84: 1 | F84: 1 | G84: 5
A85: 2015-05-04 | B85: 84 | C85: 0 | D85: 0 | E85: 1 | F85: 1 | G85: 2
A86: 2015-05-05 | B86: 85 | C86: 0 | D86: 1 | E86: 1 | F86: 1 | G86: 2
A87: 2015-05-06 | B87: 86 | C87: 0 | D87: 1 | E87: 1 | F87: 1 | G87: 2
A88: 2015-05-07 | B88: 87 | C88: 0 | D88: 1 | E88: 1 | F88: 1 | G88: 4
A89: 2015-05-08 | B89: 88 | C89: 0 | D89: 0 | E89: 1 | F89: 1 | G89: 4
A90: 2015-05-11 | B90: 89 | C90: 0 | D90: 0 | E90: 1 | F90: 1 | G90: 2
A91: 2015-05-12 | B91: 90 | C91: 0 | D91: 1 | E91: 1 | F91: 1 | G91: 2
A92: 2015-05-13 | B92: 91 | C92: 0 | D92: 1 | E92: 1 | F92: 1 | G92: 2
A93: 2015-05-14 | B93: 92 | C93: 0 | D93: 1 | E93: 1 | F93: 1 | G93: 4
A94: 2015-05-15 | B94: 93 | C94: 0 | D94: 0 | E94: 1 | F94: 1 | G94: 4
A95: 2015-05-18 | B95: 94 | C95: 0 | D95: 0 | E95: 1 | F95: 1 | G95: 2
A96: 2015-05-19 | B96: 95 | C96: 0 | D96: 1 | E96: 1 | F96: 1 | G96: 2
A97: 2015-05-20 | B97: 96 | C97: 0 | D97: 1 | E97: 1 | F97: 1 | G97: 2
A98: 2015-05-21 | B98: 97 | C98: 0 | D98: 1 | E98: 1 | F98: 1 | G98: 4
A99: 2015-05-22 | B99: 98 | C99: 0 | D99: 0 | E99: 1 | F99: 1 | G99: 4
A100: 2015-05-25 | B100: 99 | C100: 0 | D100: 0 | E100: 1 | F100: 1 | G100: 2
A101: 2015-05-26 | B101: 100 | C101: 0 | D101: 1 | E101: 1 | F101: 1 | G101: 2
A102: 2015-05-27 | B102: 101 | C102: 0 | D102: 1 | E102: 1 | F102: 1 | G102: 2
A103: 2015-05-28 | B103: 102 | C103: 0 | D103: 1 | E103: 1 | F103: 1 | G103: 4
A104: 2015-05-29 | B104: 103 | C104: 0 | D104: 0 | E104: 1 | F104: 1 | G104: 4
A105: 2015-06-01 | B105: 104 | C105: 0 | D105: 0 | E105: 1 | F105: 1 | G105: 2
A106: 2015-06-02 | B106: 105 | C106: 0 | D106: 1 | E106: 1 | F106: 1 | G106: 2
A107: 2015-06-03 | B107: 106 | C107: 0 | D107: 1 | E107: 1 | F107: 1 | G107: 2
A108: 2015-06-04 | B108: 107 | C108: 0 | D108: 1 | E108: 1 | F108: 1 | G108: 4
A109: 2015-06-05 | B109: 108 | C109: 0 | D109: 0 | E109: 1 | F109: 1 | G109: 4
A110: 2015-06-08 | B110: 109 | C110: 0 | D110: 0 | E110: 1 | F110: 1 | G110: 2
A111: 2015-06-09 | B111: 110 | C111: 0 | D111: 1 | E111: 1 | F111: 1 | G111: 2
A112: 2015-06-10 | B112: 111 | C112: 0 | D112: 1 | E112: 1 | F112: 1 | G112: 2
A113: 2015-06-11 | B113: 112 | C113: 0 | D113: 1 | E113: 1 | F113: 1 | G113: 4
A114: 2015-06-12 | B114: 113 | C114: 0 | D114: 0 | E114: 1 | F114: 1 | G114: 4
A115: 2015-06-15 | B115: 114 | C115: 0 | D115: 0 | E115: 1 | F115: 1 | G115: 2
A116: 2015-06-16 | B116: 115 | C116: 0 | D116: 1 | E116: 1 | F116: 1 | G116: 2
A117: 2015-06-17 | B117: 116 | C117: 0 | D117: 1 | E117: 1 | F117: 1 | G117: 2
A118: 2015-06-18 | B118: 117 | C118: 0 | D118: 1 | E118: 1 | F118: 1 | G118: 4
A119: 2015-06-19 | B119: 118 | C119: 0 | D119: 0 | E119: 1 | F119: 1 | G119: 4
A120: 2015-06-22 | B120: 119 | C120: 0 | D120: 0 | E120: 1 | F120: 1 | G120: 2
A121: 2015-06-23 | B121: 120 | C121: 0 | D121: 1 | E121: 1 | F121: 1 | G121: 2
A122: 2015-06-24 | B122: 121 | C122: 0 | D122: 1 | E122: 1 | F122: 1 | G122: 2
A123: 2015-06-25 | B123: 122 | C123: 0 | D123: 1 | E123: 1 | F123: 1 | G123: 4
A124: 2015-06-26 | B124: 123 | C124: 0 | D124: 0 | E124: 1 | F124: 1 | G124: 4
A125: 2015-06-29 | B125: 124 | C125: 0 | D125: 0 | E125: 1 | F125: 1 | G125: 2
A126: 2015-06-30 | B126: 125 | C126: 0 | D126: 1 | E126: 1 | F126: 1 | G126: 2
A127: 2015-07-01 | B127: 126 | C127: 0 | D127: 1 | E127: 1 | F127: 1 | G127: 2
A128: 2015-07-02 | B128: 127 | C128: 0 | D128: 1 | E128: 1 | F128: 1 | G128: 4
A129: 2015-07-03 | B129: 128 | C129: 0 | D129: 0 | E129: 1 | F129: 1 | G129: 4
A130: 2015-07-06 | B130: 129 | C130: =MAX(G130-4,0) -> 0 | D130: 0 | E130: 1 | F130: 1 | G130: =IF($E130=1,INDIRECT("$A$"&ROW($A130)+MATCH(1,INDIRECT("$E$"&ROW($A130)+1+$F130&":$E$2598"),0)+$F130)-$A130,0) -> 2
A131: 2015-07-07 | B131: =ROW(A131)-1 -> 130 | C131: 0 | D131: =IF(ABS(WEEKDAY($A131)-4)<=1,1,0) -> 1 | E131: 1 | F131: =IF($E131=1,MATCH(1,INDIRECT("$E$"&ROW($A131)+1&":$E$2598"),0),0) -> 1 | G131: 2
A132: 2015-07-08 | B132: 131 | C132: 0 | D132: 1 | E132: 1 | F132: 1 | G132: 2
A133: 2015-07-09 | B133: 132 | C133: 0 | D133: 1 | E133: 1 | F133: 1 | G133: 4
A134: 2015-07-10 | B134: 133 | C134: 0 | D134: 0 | E134: 1 | F134: 1 | G134: 4
A135: 2015-07-13 | B135: 134 | C135: 0 | D135: 0 | E135: 1 | F135: 1 | G135: 2
A136: 2015-07-14 | B136: 135 | C136: 0 | D136: 1 | E136: 1 | F136: 1 | G136: 2
A137: 2015-07-15 | B137: 136 | C137: 0 | D137: 1 | E137: 1 | F137: 1 | G137: 2
A138: 2015-07-16 | B138: 137 | C138: 0 | D138: 1 | E138: 1 | F138: 1 | G138: 4
A139: 2015-07-17 | B139: 138 | C139: 0 | D139: 0 | E139: 1 | F139: 1 | G139: 4
A140: 2015-07-20 | B140: 139 | C140: 0 | D140: 0 | E140: 1 | F140: 1 | G140: 2
A141: 2015-07-21 | B141: 140 | C141: 0 | D141: 1 | E141: 1 | F141: 1 | G141: 2
A142: 2015-07-22 | B142: 141 | C142: 0 | D142: 1 | E142: 1 | F142: 1 | G142: 2
A143: 2015-07-23 | B143: 142 | C143: 0 | D143: 1 | E143: 1 | F143: 1 | G143: 4
A144: 2015-07-24 | B144: 143 | C144: 0 | D144: 0 | E144: 1 | F144: 1 | G144: 4
A145: 2015-07-27 | B145: 144 | C145: 0 | D145: 0 | E145: 1 | F145: 1 | G145: 2
A146: 2015-07-28 | B146: 145 | C146: 0 | D146: 1 | E146: 1 | F146: 1 | G146: 2
A147: 2015-07-29 | B147: 146 | C147: 0 | D147: 1 | E147: 1 | F147: 1 | G147: 2
A148: 2015-07-30 | B148: 147 | C148: 0 | D148: 1 | E148: 1 | F148: 1 | G148: 4
A149: 2015-07-31 | B149: 148 | C149: 0 | D149: 0 | E149: 1 | F149: 1 | G149: 4
A150: 2015-08-03 | B150: 149 | C150: 0 | D150: 0 | E150: 1 | F150: 1 | G150: 2
A151: 2015-08-04 | B151: 150 | C151: 0 | D151: 1 | E151: 1 | F151: 1 | G151: 2
A152: 2015-08-05 | B152: 151 | C152: 0 | D152: 1 | E152: 1 | F152: 1 | G152: 2
A153: 2015-08-06 | B153: 152 | C153: 0 | D153: 1 | E153: 1 | F153: 1 | G153: 4
A154: 2015-08-07 | B154: 153 | C154: 0 | D154: 0 | E154: 1 | F154: 1 | G154: 4
A155: 2015-08-10 | B155: 154 | C155: 0 | D155: 0 | E155: 1 | F155: 1 | G155: 2
A156: 2015-08-11 | B156: 155 | C156: 0 | D156: 1 | E156: 1 | F156: 1 | G156: 2
A157: 2015-08-12 | B157: 156 | C157: 0 | D157: 1 | E157: 1 | F157: 1 | G157: 2
A158: 2015-08-13 | B158: 157 | C158: 0 | D158: 1 | E158: 1 | F158: 1 | G158: 4
A159: 2015-08-14 | B159: 158 | C159: 0 | D159: 0 | E159: 1 | F159: 1 | G159: 4
A160: 2015-08-17 | B160: 159 | C160: 0 | D160: 0 | E160: 1 | F160: 1 | G160: 2
A161: 2015-08-18 | B161: 160 | C161: 0 | D161: 1 | E161: 1 | F161: 1 | G161: 2
A162: 2015-08-19 | B162: 161 | C162: 0 | D162: 1 | E162: 1 | F162: 1 | G162: 2
A163: 2015-08-20 | B163: 162 | C163: 0 | D163: 1 | E163: 1 | F163: 1 | G163: 4
A164: 2015-08-21 | B164: 163 | C164: 0 | D164: 0 | E164: 1 | F164: 1 | G164: 4
A165: 2015-08-24 | B165: 164 | C165: 0 | D165: 0 | E165: 1 | F165: 1 | G165: 2
A166: 2015-08-25 | B166: 165 | C166: 0 | D166: 1 | E166: 1 | F166: 1 | G166: 2
A167: 2015-08-26 | B167: 166 | C167: 0 | D167: 1 | E167: 1 | F167: 1 | G167: 2
A168: 2015-08-27 | B168: 167 | C168: 0 | D168: 1 | E168: 1 | F168: 1 | G168: 4
A169: 2015-08-28 | B169: 168 | C169: 0 | D169: 0 | E169: 1 | F169: 1 | G169: 4
A170: 2015-08-31 | B170: 169 | C170: 0 | D170: 0 | E170: 1 | F170: 1 | G170: 2
A171: 2015-09-01 | B171: 170 | C171: 0 | D171: 1 | E171: 1 | F171: 1 | G171: 2
A172: 2015-09-02 | B172: 171 | C172: 0 | D172: 1 | E172: 1 | F172: 1 | G172: 2
A173: 2015-09-03 | B173: 172 | C173: 0 | D173: 1 | E173: 1 | F173: 1 | G173: 4
A174: 2015-09-04 | B174: 173 | C174: 0 | D174: 0 | E174: 1 | F174: 1 | G174: 4
A175: 2015-09-07 | B175: 174 | C175: 0 | D175: 0 | E175: 1 | F175: 1 | G175: 2
A176: 2015-09-08 | B176: 175 | C176: 0 | D176: 1 | E176: 1 | F176: 1 | G176: 2
A177: 2015-09-09 | B177: 176 | C177: 0 | D177: 1 | E177: 1 | F177: 1 | G177: 2
A178: 2015-09-10 | B178: 177 | C178: 0 | D178: 1 | E178: 1 | F178: 1 | G178: 4
A179: 2015-09-11 | B179: 178 | C179: 0 | D179: 0 | E179: 1 | F179: 1 | G179: 4
A180: 2015-09-14 | B180: 179 | C180: 0 | D180: 0 | E180: 1 | F180: 1 | G180: 2
A181: 2015-09-15 | B181: 180 | C181: 0 | D181: 1 | E181: 1 | F181: 1 | G181: 2
A182: 2015-09-16 | B182: 181 | C182: 0 | D182: 1 | E182: 1 | F182: 1 | G182: 2
A183: 2015-09-17 | B183: 182 | C183: 0 | D183: 1 | E183: 1 | F183: 1 | G183: 4
A184: 2015-09-18 | B184: 183 | C184: 0 | D184: 0 | E184: 1 | F184: 1 | G184: 4
A185: 2015-09-21 | B185: 184 | C185: 0 | D185: 0 | E185: 1 | F185: 1 | G185: 2
A186: 2015-09-22 | B186: 185 | C186: 0 | D186: 1 | E186: 1 | F186: 1 | G186: 2
A187: 2015-09-23 | B187: 186 | C187: 0 | D187: 1 | E187: 1 | F187: 1 | G187: 2
A188: 2015-09-24 | B188: 187 | C188: 0 | D188: 1 | E188: 1 | F188: 1 | G188: 4
A189: 2015-09-25 | B189: 188 | C189: 0 | D189: 0 | E189: 1 | F189: 1 | G189: 4
A190: 2015-09-28 | B190: 189 | C190: 0 | D190: 0 | E190: 1 | F190: 1 | G190: 2
A191: 2015-09-29 | B191: 190 | C191: 0 | D191: 1 | E191: 1 | F191: 1 | G191: 2
A192: 2015-09-30 | B192: 191 | C192: 0 | D192: 1 | E192: 1 | F192: 1 | G192: 2
A193: 2015-10-01 | B193: 192 | C193: 0 | D193: 1 | E193: 1 | F193: 1 | G193: 4
A194: 2015-10-02 | B194: 193 | C194: =MAX(G194-4,0) -> 0 | D194: 0 | E194: 1 | F194: 1 | G194: =IF($E194=1,INDIRECT("$A$"&ROW($A194)+MATCH(1,INDIRECT("$E$"&ROW($A194)+1+$F194&":$E$2598"),0)+$F194)-$A194,0) -> 4
A195: 2015-10-05 | B195: =ROW(A195)-1 -> 194 | C195: 0 | D195: =IF(ABS(WEEKDAY($A195)-4)<=1,1,0) -> 0 | E195: 1 | F195: =IF($E195=1,MATCH(1,INDIRECT("$E$"&ROW($A195)+1&":$E$2598"),0),0) -> 1 | G195: 2
A196: 2015-10-06 | B196: 195 | C196: 0 | D196: 1 | E196: 1 | F196: 1 | G196: 2
A197: 2015-10-07 | B197: 196 | C197: 0 | D197: 1 | E197: 1 | F197: 1 | G197: 2
A198: 2015-10-08 | B198: 197 | C198: 0 | D198: 1 | E198: 1 | F198: 1 | G198: 4
A199: 2015-10-09 | B199: 198 | C199: 0 | D199: 0 | E199: 1 | F199: 1 | G199: 4
A200: 2015-10-12 | B200: 199 | C200: 0 | D200: 0 | E200: 1 | F200: 1 | G200: 2
... 2398 more rows

Sheet Disclaimer
D5: Disclaimer
D6: last update: 2023-03-08
D8: This tool is only a service for recalculating the Initial Margin Spot Market. Although the tool was constructed with greatest diligence, errors, rounding errors and therefore deviations from the productive process cannot be excluded. In cases of doubt, the calculated value of the IMSM programm shall prevail. The disclaimer at http://www.ecc.de/ecc-en/extras/disclaimer shall apply to the use of this tool as well.
